Department Family,Entity,Date of Payment,Expense Type,Expense Area,Supplier,Voluntary & Community Sector,SME Class,Sole Trader,Transaction number,Narrative,Postal Code,Amount in Sterling,Grant?
Communities & Local Government,DCLG,01/10/2012,Current Grants to Non Profit Bodies,Localism,CHURCH URBAN FUND,,Small,,2100221613,Near Neighbours Initiative Grant Payment,SW1P 3AZ,"607,694.00",Yes
Communities & Local Government,DCLG,01/10/2012,Finance Consultancy,Localism,KPMG,,Large,,5106183960,Info Man supprot FSC Future Options,WD17 1DE,"12,000.00",
Communities & Local Government,DCLG,01/10/2012,Gas,Finance & Corporate Services,CORONA ENERGY LTD,,Medium,,2100222090,Eland House Gas 2012-13,WD17 1JW,-559.18,
Communities & Local Government,DCLG,01/10/2012,Gas,Finance & Corporate Services,CORONA ENERGY LTD,,Medium,,5106183962,Eland House Gas 2012-13,WD17 1JW,559.18,
Communities & Local Government,DCLG,01/10/2012,Research,Finance & Corporate Services,GLENIGAN,,Large,,5106183944,Data on stalled development sites,BH8 8AQ,"6,000.00",
Communities & Local Government,DCLG,01/10/2012,Research,Finance & Corporate Services,NATIONAL CENTRE FOR SOCIAL RESEARCH,,Large,,5106183945,12/13 budget,EC1V 0AX,"282,585.29",
Communities & Local Government,DCLG,01/10/2012,Research,Finance & Corporate Services,NATIONAL CENTRE FOR SOCIAL RESEARCH,,Large,,5106183946,12/13 budget,EC1V 0AX,"282,585.29",
Communities & Local Government,DCLG,01/10/2012,Training,Finance & Corporate Services,EUROPA TRAINING LTD,,Micro,,5106183954,Introduction to Photoshop (Restructuring,N7 9DP,299.00,
Communities & Local Government,DCLG,01/10/2012,Training,Finance & Corporate Services,PRIVACY & DATA PROTECTION LTD,,Micro,,5106183964,Data Security Course,SW4 0JY,445.00,
Communities & Local Government,DCLG,01/10/2012,Vehicle Maintenance,Localism,BABCOCK CRITICAL SERVICES LTD,,Large,,5106183935,Planned Vehicle Maintenance 12/13,NG15 0DR,-940.85,
Communities & Local Government,DCLG,01/10/2012,Vehicle Maintenance,Localism,BABCOCK CRITICAL SERVICES LTD,,Large,,5106183958,Unplanne Maintenance 12/13,NG15 0DR,"42,297.48",
Communities & Local Government,DCLG,01/10/2012,Work In Progress Pre-Cert 40373 Spend,Neighbourhoods,BARNSLEY METROPOLITAN BC,,Public Bodies,,7600002833,ERDF Claim - 4 - P2-SY,S70 9OO,"71,900.44",
Communities & Local Government,DCLG,01/10/2012,Work In Progress Pre-Cert 40373 Spend,Neighbourhoods,BUSINESS & ENTERPRISE COMMERCIAL,,Medium,,7600002814,ERDF Claim - 12 - P1,SR7 7TT,"145,787.74",
Communities & Local Government,DCLG,01/10/2012,Work In Progress Pre-Cert 40373 Spend,Neighbourhoods,CARBON LIMITING TECHNOLOGIES LTD,,Small,,7600002818,ERDF Claim - 23 - P1,GU51 5SY,"5,155.19",
Communities & Local Government,DCLG,01/10/2012,Work In Progress Pre-Cert 40373 Spend,Neighbourhoods,DURHAM UNIVERSITY,,,,7600002811,ERDF Claim - 8 - P1,DH1 3UP,"34,853.42",
Communities & Local Government,DCLG,01/10/2012,Work In Progress Pre-Cert 40373 Spend,Neighbourhoods,ENVIRONMENTAL ACADEMY LTD,,Micro,,7600002823,ERDF Claim - 6 - P2,NE16 3AS,"11,855.90",
Communities & Local Government,DCLG,01/10/2012,Work In Progress Pre-Cert 40373 Spend,Neighbourhoods,LIGHTHOUSE GROUP UK LTD,Yes,Small,,7600002835,ERDF Claim - 22 - P2-YH,BD5 8HH,"1,672.19",
Communities & Local Government,DCLG,01/10/2012,Work In Progress Pre-Cert 40373 Spend,Neighbourhoods,LIGHTHOUSE GROUP UK LTD,Yes,Small,,7600002836,ERDF Claim - 23 - P2-YH,BD5 8HH,"1,449.55",
Communities & Local Government,DCLG,01/10/2012,Work In Progress Pre-Cert 40373 Spend,Neighbourhoods,NORTH EAST LINCOLNSHIRE COUNCIL,,,,7600002815,ERDF Claim - 16 - P3-YH,DN31 1HN,"20,623.77",
Communities & Local Government,DCLG,01/10/2012,Work In Progress Pre-Cert 40373 Spend,Neighbourhoods,REMADE SOUTH EAST,,Micro,,7600002817,ERDF Claim - 34 - P1,ME19 6BJ,"3,754.40",
Communities & Local Government,DCLG,01/10/2012,Work In Progress Pre-Cert 40373 Spend,Neighbourhoods,REMADE SOUTH EAST,,Micro,,7600002819,ERDF Claim - 32 - P1,ME19 6BJ,"1,307.81",
Communities & Local Government,DCLG,01/10/2012,Work In Progress Pre-Cert 40373 Spend,Neighbourhoods,REMADE SOUTH EAST,,Micro,,7600002821,ERDF Claim - 33 - P1,ME19 6BJ,"6,813.19",
Communities & Local Government,DCLG,01/10/2012,Work In Progress Pre-Cert 40373 Spend,Neighbourhoods,SCIENCE CITY YORK,,,,7600002830,ERDF Claim - 67 - P2-YH,YO10 5NY,"15,903.68",
Communities & Local Government,DCLG,01/10/2012,Work In Progress Pre-Cert 40373 Spend,Neighbourhoods,SHEFFIELD CITY COUNCIL,,,,7600002816,ERDF Claim - 16 - P2-SY,S1 2SH,"29,256.24",
Communities & Local Government,DCLG,01/10/2012,Work In Progress Pre-Cert 40373 Spend,Neighbourhoods,SHEFFIELD CITY COUNCIL,,,,7600002828,ERDF Claim - 48 - P3-SY,S1 2SH,"82,782.81",
Communities & Local Government,DCLG,01/10/2012,Work In Progress Pre-Cert 40373 Spend,Neighbourhoods,SHEFFIELD HALLAM UNIVERSITY,,,,7600002829,ERDF Claim - 42 - P1-SY,S1 1WB,"36,684.13",
Communities & Local Government,DCLG,01/10/2012,Work In Progress Pre-Cert 40373 Spend,Neighbourhoods,SHEFFIELD HALLAM UNIVERSITY,,,,7600002834,ERDF Claim - 42 - P1-YH,S1 1WB,"13,359.87",
Communities & Local Government,DCLG,01/10/2012,Work In Progress Pre-Cert 40373 Spend,Neighbourhoods,UNIVERSITY OF SUNDERLAND,,,,7600002812,ERDF Claim - 9 - P2,SR1 3SD,"3,643.42",
Communities & Local Government,DCLG,01/10/2012,Work In Progress Pre-Cert 40373 Spend,Neighbourhoods,YORKS & HUMBER PEOPLE UTD AGAINST C,,,,7600002824,ERDF Claim - 11 - P2-SY,S1 2AH,"20,205.80",
Communities & Local Government,DCLG,01/10/2012,Work In Progress Pre-Cert 40373 Spend,Neighbourhoods,YORKS & HUMBER PEOPLE UTD AGAINST C,,,,7600002826,ERDF Claim - 11 - P2-YH,S1 2AH,"34,169.36",
Communities & Local Government,DCLG,01/10/2012,Work In Progress Pre-Cert 40467 Spend,Neighbourhoods,ASHFIELD DISTRICT COUNCIL,,Large,,7600002832,ERDF Claim - 15 - P2,NG17 8DA,"9,638.00",
Communities & Local Government,DCLG,01/10/2012,Work In Progress Pre-Cert 40467 Spend,Neighbourhoods,BARNSLEY METROPOLITAN BC,,Public Bodies,,7600002822,ERDF Claim - 16 - P4-SY,S70 9OO,"1,829.13",
Communities & Local Government,DCLG,01/10/2012,Work In Progress Pre-Cert 40467 Spend,Neighbourhoods,BARNSLEY METROPOLITAN BC,,Public Bodies,,7600002827,ERDF Claim - 15 - P4-SY,S70 9OO,"24,488.50",
Communities & Local Government,DCLG,01/10/2012,Work In Progress Pre-Cert 40467 Spend,Neighbourhoods,BARNSLEY METROPOLITAN BC,,Public Bodies,,7600002831,ERDF Claim - 17 - P4-SY,S70 9OO,"14,573.77",
Communities & Local Government,DCLG,01/10/2012,Work In Progress Pre-Cert 40467 Spend,Neighbourhoods,BLACK COUNTRY REINVESTMENT SOCIETY,,Small,,7600002820,ERDF Claim - 12 - P2,WV10 9RU,"237,750.00",
Communities & Local Government,DCLG,01/10/2012,Work In Progress Pre-Cert 40467 Spend,Neighbourhoods,DURHAM UNIVERSITY,,,,7600002811,ERDF Claim - 8 - P1,DH1 3UP,"1,250.00",
Communities & Local Government,DCLG,01/10/2012,Work In Progress Pre-Cert 40467 Spend,Neighbourhoods,LIGHTHOUSE GROUP UK LTD,Yes,Small,,7600002836,ERDF Claim - 23 - P2-YH,BD5 8HH,"116,096.75",
Communities & Local Government,DCLG,01/10/2012,Work In Progress Pre-Cert 40467 Spend,Neighbourhoods,NEWCASTLE CITY COUNCIL,,,,7600002813,ERDF Claim - 12 - P2,NE1 8QN,"476,932.22",
Communities & Local Government,DCLG,01/10/2012,Work In Progress Pre-Cert 40467 Spend,Neighbourhoods,NEWCASTLE CITY COUNCIL,,,,7600002825,ERDF Claim - 13 - P2,NE1 8QN,"58,021.65",
Communities & Local Government,DCLG,02/10/2012,Agency Staff,Finance & Corporate Services,MANPOWER UK LTD,,Large,,5106184001,Temp information specialist,UB8 1AB,872.56,
Communities & Local Government,DCLG,02/10/2012,Agency Staff,Finance & Corporate Services,MANPOWER UK LTD,,Large,,5106184006,Temp information specialist,UB8 1AB,779.48,
Communities & Local Government,DCLG,02/10/2012,Agency Staff,Finance & Corporate Services,OFFICE ANGELS LTD,,Large,,5106184009,2 temps: booking of perf man training,B37 7YE,348.54,
Communities & Local Government,DCLG,02/10/2012,Agency Staff,Finance & Corporate Services,OFFICE ANGELS LTD,,Large,,5106184010,2 temps: booking of perf man training,B37 7YE,381.61,
Communities & Local Government,DCLG,02/10/2012,Agency Staff,Finance & Corporate Services,SQUARE ONE RESOURCES LTD,,Medium,,5106183994,SAPDev 1.4.12-31.3.13,EC2A 2AD,"2,858.82",
Communities & Local Government,DCLG,02/10/2012,Agency Staff,Neighbourhoods,REED EMPLOYMENT SERVICES,,Large,,5106184032,Interim staff -,SW20 0BA,710.40,
Communities & Local Government,DCLG,02/10/2012,Agency Staff,Neighbourhoods,REED EMPLOYMENT SERVICES,,Large,,5106184051,Interim staff -,SW20 0BA,397.82,
Communities & Local Government,DCLG,02/10/2012,Agency Staff,Neighbourhoods,REED EMPLOYMENT SERVICES,,Large,,5106184055,Agency Staff pay (6 month contract),SW20 0BA,254.92,
Communities & Local Government,DCLG,02/10/2012,Agency Staff,Neighbourhoods,REED EMPLOYMENT SERVICES,,Large,,5106184064,Agency Staff pay (6 month contract),SW20 0BA,251.42,
Communities & Local Government,DCLG,02/10/2012,Cap Grants to Local Authorities (DEL),Neighbourhoods,NEWCASTLE CITY COUNCIL,,Public Bodies,,2100220310,Bring clusters of empty homes back into use,NE99 1FR,"245,888.00",Yes
Communities & Local Government,DCLG,02/10/2012,Conferences and Meeting Facilities,Troubled Families,COIN STREET COMMUNITY BUILDERS LTD,,Medium,,5106183977,2 x TF Co-ord events,SE1 9NH,"3,045.00",
Communities & Local Government,DCLG,02/10/2012,Courier Services,Localism,FIRE SERVICE COLLEGE,,Public Bodies,,5106184026,Postal Charges,GL56 0RH,794.19,
Communities & Local Government,DCLG,02/10/2012,Electricity,Localism,FIRE SERVICE COLLEGE,,Public Bodies,,5106184026,Electricity Standing Charge,GL56 0RH,45.17,
Communities & Local Government,DCLG,02/10/2012,Electricity,Localism,FIRE SERVICE COLLEGE,,Public Bodies,,5106184026,Electricity Usage,GL56 0RH,128.86,
Communities & Local Government,DCLG,02/10/2012,ERDF Match Capital Grants to NPISHs,Neighbourhoods,UNIVERSITY OF EXETER,,,,2100222093,SWPDT Int Earned Element Match Fnd-202495,EX4 4QJ,"475,000.00",
Communities & Local Government,DCLG,02/10/2012,Fixed Maintenance,Finance & Corporate Services,E C HARRIS LLP,,Large,,5106183955,PAMU Estates Proj Management to Feb 14,N1 9AB,"1,750.14",
Communities & Local Government,DCLG,02/10/2012,Fixed Maintenance,Localism,FIRE SERVICE COLLEGE,,Public Bodies,,5106184026,Window Cleaning,GL56 0RH,23.10,
Communities & Local Government,DCLG,02/10/2012,Fixed Maintenance,Localism,FIRE SERVICE COLLEGE,,Public Bodies,,5106184026,Ground Maintenance,GL56 0RH,129.35,
Communities & Local Government,DCLG,02/10/2012,Fixed Maintenance,Localism,FIRE SERVICE COLLEGE,,Public Bodies,,5106184026,Gas Servicing,GL56 0RH,135.19,
Communities & Local Government,DCLG,02/10/2012,Fixed Maintenance,Localism,FIRE SERVICE COLLEGE,,Public Bodies,,5106184026,Gneral Maintenance,GL56 0RH,"1,191.84",
Communities & Local Government,DCLG,02/10/2012,Fixed Maintenance,Localism,FIRE SERVICE COLLEGE,,Public Bodies,,5106184026,Industrial Door Maintenance,GL56 0RH,9.85,
Communities & Local Government,DCLG,02/10/2012,Gas,Localism,FIRE SERVICE COLLEGE,,Public Bodies,,5106184026,Gas Standing Charge,GL56 0RH,40.00,
Communities & Local Government,DCLG,02/10/2012,Gas,Localism,FIRE SERVICE COLLEGE,,Public Bodies,,5106184026,Gas Usage,GL56 0RH,602.37,
Communities & Local Government,DCLG,02/10/2012,IT - Service Contracts,Localism,INFORMED SOLUTIONS LTD,,Small,,5106184022,GPSManaged Service to 28 April 2013,WA14 4PA,"61,188.66",
Communities & Local Government,DCLG,02/10/2012,IT - Service Contracts,Localism,INFORMED SOLUTIONS LTD,,Small,,5106184041,Outsourced IT Support 2011/12,WA14 4PA,"27,344.50",
Communities & Local Government,DCLG,02/10/2012,Legal Fees,Finance & Corporate Services,LANDMARK CHAMBERS,,Medium,,5106184067,Legal Advice,EC4A 2HG,432.00,
Communities & Local Government,DCLG,02/10/2012,National Non Domestic Rates (NNDR) Payments,Localism,AVON & SOMERSET POLICE AUTHORITY,,,,5000211325,Grant Payable by Exchequer,TA1 4DY,"2,913,957.00",Yes
Communities & Local Government,DCLG,02/10/2012,National Non Domestic Rates (NNDR) Payments,Localism,AVON FIRE AUTHORITY,,,,5000211330,Grant Payable by Exchequer,BS1 6EU,"1,069,474.00",Yes
Communities & Local Government,DCLG,02/10/2012,National Non Domestic Rates (NNDR) Payments,Localism,BARKING & DAGENHAM LB,,,,5000211349,Grant Payable by Exchequer,RM10 7BY,"4,676,807.00",Yes
Communities & Local Government,DCLG,02/10/2012,National Non Domestic Rates (NNDR) Payments,Localism,BARNSLEY MBC,,Public Bodies,,5000211362,Grant Payable by Exchequer,S70 2AQ,"4,810,612.00",Yes
Communities & Local Government,DCLG,02/10/2012,National Non Domestic Rates (NNDR) Payments,Localism,BEDFORDSHIRE POLICE AUTH,,,,5000211402,Grant Payable by Exchequer,MK43 9AX,"1,313,595.00",Yes
Communities & Local Government,DCLG,02/10/2012,National Non Domestic Rates (NNDR) Payments,Localism,BEDS & LUTON FIRE & RESCUE SERVICE,,,,5000211397,Grant Payable by Exchequer,MK42 7NR,"532,077.00",Yes
Communities & Local Government,DCLG,02/10/2012,National Non Domestic Rates (NNDR) Payments,Localism,BIRMINGHAM CITY CNCL,,,,5000211420,Grant Payable by Exchequer,B3 3AB,"30,125,707.00",Yes
Communities & Local Government,DCLG,02/10/2012,National Non Domestic Rates (NNDR) Payments,Localism,BLACKBURN WITH DARWEN BC,,,,5000211433,Grant Payable by Exchequer,BB1 7DY,"3,602,773.00",Yes
Communities & Local Government,DCLG,02/10/2012,National Non Domestic Rates (NNDR) Payments,Localism,BLACKPOOL BC,,,,5000211440,Grant Payable by Exchequer,FY1 1NA,"3,843,922.00",Yes
Communities & Local Government,DCLG,02/10/2012,National Non Domestic Rates (NNDR) Payments,Localism,BOLTON MBC,,,,5000211453,Grant Payable by Exchequer,BL1 1RU,"5,580,216.00",Yes
Communities & Local Government,DCLG,02/10/2012,National Non Domestic Rates (NNDR) Payments,Localism,BRADFORD MBC,,,,5000211479,Grant Payable by Exchequer,BD1 1HX,"11,945,917.00",Yes
Communities & Local Government,DCLG,02/10/2012,National Non Domestic Rates (NNDR) Payments,Localism,BRENT LB,,,,5000211498,Grant Payable by Exchequer,HA9 9EZ,"7,242,066.00",Yes
Communities & Local Government,DCLG,02/10/2012,National Non Domestic Rates (NNDR) Payments,Localism,BRIGHTON & HOVE CITY COUNCIL,,,,5000211511,Grant Payable by Exchequer,BN3 2SR,"4,863,382.00",Yes
Communities & Local Government,DCLG,02/10/2012,National Non Domestic Rates (NNDR) Payments,Localism,BUCKINGHAMSHIRE CC,,,,5000211561,Grant Payable by Exchequer,HP20 1UD,"2,993,863.00",Yes
Communities & Local Government,DCLG,02/10/2012,National Non Domestic Rates (NNDR) Payments,Localism,BUCKS & MILTON KEYNES FIRE AUTH,,,,5000211556,Grant Payable by Exchequer,HP20 1BD,"507,761.00",Yes
Communities & Local Government,DCLG,02/10/2012,National Non Domestic Rates (NNDR) Payments,Localism,BURY MBC,,,,5000211749,Grant Payable by Exchequer,BL9 0SP,"2,945,693.00",Yes
Communities & Local Government,DCLG,02/10/2012,National Non Domestic Rates (NNDR) Payments,Localism,CALDERDALE MBC,,,,5000211750,Grant Payable by Exchequer,HX1 1YP,"3,590,417.00",Yes
Communities & Local Government,DCLG,02/10/2012,National Non Domestic Rates (NNDR) Payments,Localism,CAMBRIDGESHIRE COUNTY CNCL,,,,5000211754,Grant Payable by Exchequer,CB3 0AP,"5,275,466.00",Yes
Communities & Local Government,DCLG,02/10/2012,National Non Domestic Rates (NNDR) Payments,Localism,CAMBRIDGESHIRE POLICE AUT,,,,5000211753,Grant Payable by Exchequer,P18 8NP,"1,351,530.00",Yes
Communities & Local Government,DCLG,02/10/2012,National Non Domestic Rates (NNDR) Payments,Localism,CAMBS & PETERBOROUGH FIRE AUTHORITY,,,,5000211752,Grant Payable by Exchequer,PE29 2NA,"607,019.00",Yes
Communities & Local Government,DCLG,02/10/2012,National Non Domestic Rates (NNDR) Payments,Localism,CHESHIRE FIRE AUTHORITY,,,,5000211764,Grant Payable by Exchequer,CW7 2FQ,"916,270.00",Yes
Communities & Local Government,DCLG,02/10/2012,National Non Domestic Rates (NNDR) Payments,Localism,CHESHIRE POLICE AUTHORITY,,,,5000211765,Grant Payable by Exchequer,CW7 9FX,"2,403,852.00",Yes
Communities & Local Government,DCLG,02/10/2012,National Non Domestic Rates (NNDR) Payments,Localism,CITY OF WAKEFIELD MDC,,,,5000211474,Grant Payable by Exchequer,WF1 2QW,"6,103,459.00",Yes
Communities & Local Government,DCLG,02/10/2012,National Non Domestic Rates (NNDR) Payments,Localism,CLEVELAND FIRE AUTHORITY,,,,5000211773,Grant Payable by Exchequer,TS25 5TB,"924,442.00",Yes
Communities & Local Government,DCLG,02/10/2012,National Non Domestic Rates (NNDR) Payments,Localism,CLEVELAND POLICE AUTHORITY,,,,5000211774,Grant Payable by Exchequer,TS1 2JX,"2,069,159.00",Yes
Communities & Local Government,DCLG,02/10/2012,National Non Domestic Rates (NNDR) Payments,Localism,CO DURHAM & DARLINGTON FIRE AND RES,,,,5000211400,Grant Payable by Exchequer,DH1 5UE,"618,272.00",Yes
Communities & Local Government,DCLG,02/10/2012,National Non Domestic Rates (NNDR) Payments,Localism,CORNWALL COUNCIL,,,,5000211694,Grant Payable by Exchequer,TR1 3AY,"9,621,134.00",Yes
Communities & Local Government,DCLG,02/10/2012,National Non Domestic Rates (NNDR) Payments,Localism,COVENTRY CITY CNCL,,,,5000211779,Grant Payable by Exchequer,CV1 2QL,"6,946,353.00",Yes
Communities & Local Government,DCLG,02/10/2012,National Non Domestic Rates (NNDR) Payments,Localism,CROYDON LB,,,,5000211782,Grant Payable by Exchequer,CR9 3JS,"5,405,522.00",Yes
Communities & Local Government,DCLG,02/10/2012,National Non Domestic Rates (NNDR) Payments,Localism,CUMBRIA COUNTY CNCL,,,,5000211783,Grant Payable by Exchequer,CA3 8NA,"7,134,370.00",Yes
Communities & Local Government,DCLG,02/10/2012,National Non Domestic Rates (NNDR) Payments,Localism,CUMBRIA POLICE AUTHORITY,,,,5000211784,Grant Payable by Exchequer,CA10 2AU,"1,624,252.00",Yes
Communities & Local Government,DCLG,02/10/2012,National Non Domestic Rates (NNDR) Payments,Localism,DARLINGTON BC,,,,5000211300,Grant Payable by Exchequer,TS19 1JA,"1,820,518.00",Yes
Communities & Local Government,DCLG,02/10/2012,National Non Domestic Rates (NNDR) Payments,Localism,DERBY CITY CNCL,,,,5000211318,Grant Payable by Exchequer,DE1 2FS,"4,921,271.00",Yes
Communities & Local Government,DCLG,02/10/2012,National Non Domestic Rates (NNDR) Payments,Localism,DERBYSHIRE COUNTYCOUNCIL,,,,5000211333,Grant Payable by Exchequer,DE4 3AH,"9,161,877.00",Yes
Communities & Local Government,DCLG,02/10/2012,National Non Domestic Rates (NNDR) Payments,Localism,DERBYSHIRE FIRE AUTHORITY,,,,5000211323,Grant Payable by Exchequer,DE55 1RH,"860,486.00",Yes
Communities & Local Government,DCLG,02/10/2012,National Non Domestic Rates (NNDR) Payments,Localism,DERBYSHIRE POLICE AUTHORITY,,,,5000211328,Grant Payable by Exchequer,DE5 3RS,"2,075,225.00",Yes
Communities & Local Government,DCLG,02/10/2012,National Non Domestic Rates (NNDR) Payments,Localism,DEVON & CORNWALL POLICE A,,,,5000211346,Grant Payable by Exchequer,EX2 5YT,"3,277,670.00",Yes
Communities & Local Government,DCLG,02/10/2012,National Non Domestic Rates (NNDR) Payments,Localism,DEVON & SOMERSET FIRE & RESCUE SERV,,,,5000211357,Grant Payable by Exchequer,EX3 0NW,"1,518,302.00",Yes
Communities & Local Government,DCLG,02/10/2012,National Non Domestic Rates (NNDR) Payments,Localism,DEVON COUNTY CNCL,,,,5000211351,Grant Payable by Exchequer,EX2 4QJ,"8,358,697.00",Yes
Communities & Local Government,DCLG,02/10/2012,National Non Domestic Rates (NNDR) Payments,Localism,DONCASTER MBC,,,,5000211363,Grant Payable by Exchequer,DN1 3QA,"6,327,297.00",Yes
Communities & Local Government,DCLG,02/10/2012,National Non Domestic Rates (NNDR) Payments,Localism,DORSET COUNTY CNCL,,,,5000211369,Grant Payable by Exchequer,DT1 1XJ,"3,063,676.00",Yes
Communities & Local Government,DCLG,02/10/2012,National Non Domestic Rates (NNDR) Payments,Localism,DORSET FIRE AUTHORITY,,,,5000211375,Grant Payable by Exchequer,DT1 1FB,"537,657.00",Yes
Communities & Local Government,DCLG,02/10/2012,National Non Domestic Rates (NNDR) Payments,Localism,DORSET POLICE AUTHORITY,,,,5000211381,Grant Payable by Exchequer,DT2 8DZ,"994,026.00",Yes
Communities & Local Government,DCLG,02/10/2012,National Non Domestic Rates (NNDR) Payments,Localism,DUDLEY MBC,,,,5000211392,Grant Payable by Exchequer,DY1 1HF,"5,672,332.00",Yes
Communities & Local Government,DCLG,02/10/2012,National Non Domestic Rates (NNDR) Payments,Localism,DURHAM COUNTY COUNCIL,,,,5000211697,Grant Payable by Exchequer,DH1 5UE,"10,402,823.00",Yes
Communities & Local Government,DCLG,02/10/2012,National Non Domestic Rates (NNDR) Payments,Localism,DURHAM POLICE AUTHORITY,,,,5000211403,Grant Payable by Exchequer,DH1 5TT,"1,977,776.00",Yes
Communities & Local Government,DCLG,02/10/2012,National Non Domestic Rates (NNDR) Payments,Localism,EAST RIDING OF YORKS,,,,5000211463,Grant Payable by Exchequer,HU17 9AB,"4,535,587.00",Yes
Communities & Local Government,DCLG,02/10/2012,National Non Domestic Rates (NNDR) Payments,Localism,EAST SUSSEX COUNTY CNCL,,,,5000211475,Grant Payable by Exchequer,BN7 1SF,"5,332,634.00",Yes
Communities & Local Government,DCLG,02/10/2012,National Non Domestic Rates (NNDR) Payments,Localism,EAST SUSSEX FIRE & RESCUE SERVICE,,,,5000211481,Grant Payable by Exchequer,BN21 1EU,"675,741.00",Yes
Communities & Local Government,DCLG,02/10/2012,National Non Domestic Rates (NNDR) Payments,Localism,ENFIELD LB,,,,5000211513,Grant Payable by Exchequer,EN1 3XF,"5,839,705.00",Yes
Communities & Local Government,DCLG,02/10/2012,National Non Domestic Rates (NNDR) Payments,Localism,ESSEX COUNTY CNCL,,,,5000211538,Grant Payable by Exchequer,CM1 1JZ,"12,804,762.00",Yes
Communities & Local Government,DCLG,02/10/2012,National Non Domestic Rates (NNDR) Payments,Localism,ESSEX FIRE AUTHORITY,,,,5000211543,Grant Payable by Exchequer,CM8 3HB,"1,592,478.00",Yes
Communities & Local Government,DCLG,02/10/2012,National Non Domestic Rates (NNDR) Payments,Localism,ESSEX POLICE AUTHORITY,,,,5000211549,Grant Payable by Exchequer,CM2 6DA,"2,964,211.00",Yes
Communities & Local Government,DCLG,02/10/2012,National Non Domestic Rates (NNDR) Payments,Localism,GATESHEAD MBC,,,,5000211583,Grant Payable by Exchequer,NE8 1HH,"4,638,777.00",Yes
Communities & Local Government,DCLG,02/10/2012,National Non Domestic Rates (NNDR) Payments,Localism,GLOUCESTERSHIRE COUNTY CNCL,,,,5000211596,Grant Payable by Exchequer,GL1 2TG,"6,113,239.00",Yes
Communities & Local Government,DCLG,02/10/2012,National Non Domestic Rates (NNDR) Payments,Localism,GLOUCESTERSHIRE POLICE AUTHORITY,,,,5000211795,Grant Payable by Exchequer,GL2 2AN,"1,034,198.00",Yes
Communities & Local Government,DCLG,02/10/2012,National Non Domestic Rates (NNDR) Payments,Localism,GREATER LONDON AUTHORITY,,,,5000211590,Grant Payable by Exchequer,SE10 1AJ,"39,818,980.00",Yes
Communities & Local Government,DCLG,02/10/2012,National Non Domestic Rates (NNDR) Payments,Localism,GREATER LONDON AUTHORITY-FIRE,,,,5000211682,Grant Payable by Exchequer,SE1 2AA,"12,072,519.00",Yes
Communities & Local Government,DCLG,02/10/2012,National Non Domestic Rates (NNDR) Payments,Localism,GREATER MANCHESTER FIRE,,,,5000211539,Grant Payable by Exchequer,M27 2US,"3,126,072.00",Yes
Communities & Local Government,DCLG,02/10/2012,National Non Domestic Rates (NNDR) Payments,Localism,GREATER MANCHESTER POL AUTH,,,,5000211544,Grant Payable by Exchequer,M16 0RE,"9,774,319.00",Yes
Communities & Local Government,DCLG,02/10/2012,National Non Domestic Rates (NNDR) Payments,Localism,GREENWICH LB,,,,5000211807,Grant Payable by Exchequer,SE18 6RA,"7,220,142.00",Yes
Communities & Local Government,DCLG,02/10/2012,National Non Domestic Rates (NNDR) Payments,Localism,HALTON BC,,,,5000211816,Grant Payable by Exchequer,WA8 7QF,"2,928,007.00",Yes
Communities & Local Government,DCLG,02/10/2012,National Non Domestic Rates (NNDR) Payments,Localism,HAMPSHIRE COUNTY COUNCIL,,,,5000211638,Grant Payable by Exchequer,SO23 8UB,"8,259,415.00",Yes
Communities & Local Government,DCLG,02/10/2012,National Non Domestic Rates (NNDR) Payments,Localism,HAMPSHIRE FIRE & RESCUE AUTHORITY,,,,5000211641,Grant Payable by Exchequer,SO23 8UB,"1,447,395.00",Yes
Communities & Local Government,DCLG,02/10/2012,National Non Domestic Rates (NNDR) Payments,Localism,HAMPSHIRE POLICE AUTHORITY,,,,5000211644,Grant Payable by Exchequer,SO23 8UB,"3,374,229.00",Yes
Communities & Local Government,DCLG,02/10/2012,National Non Domestic Rates (NNDR) Payments,Localism,HARINGEY LB,,,,5000211648,Grant Payable by Exchequer,N22 7TR,"6,699,836.00",Yes
Communities & Local Government,DCLG,02/10/2012,National Non Domestic Rates (NNDR) Payments,Localism,HARROW LB,,,,5000211658,Grant Payable by Exchequer,HA1 2UZ,"3,131,092.00",Yes
Communities & Local Government,DCLG,02/10/2012,National Non Domestic Rates (NNDR) Payments,Localism,HARTLEPOOL BOROUGH COUNCIL,,,,5000211666,Grant Payable by Exchequer,TS24 7BT,"2,258,925.00",Yes
Communities & Local Government,DCLG,02/10/2012,National Non Domestic Rates (NNDR) Payments,Localism,HEREFORD WORCESTER FIRE BRIGADE,,,,5000211678,Grant Payable by Exchequer,WR1 2HQ,"517,396.00",Yes
Communities & Local Government,DCLG,02/10/2012,National Non Domestic Rates (NNDR) Payments,Localism,HEREFORDSHIRE DISTRICT COUNCIL,,,,5000211681,Grant Payable by Exchequer,HR1 1SH,"2,638,080.00",Yes
Communities & Local Government,DCLG,02/10/2012,National Non Domestic Rates (NNDR) Payments,Localism,HERTFORDSHIRE COUNTY CNCL,,,,5000211683,Grant Payable by Exchequer,SG13 9BD,"8,865,865.00",Yes
Communities & Local Government,DCLG,02/10/2012,National Non Domestic Rates (NNDR) Payments,Localism,HERTFORDSHIRE POLICE AUTHORITY,,,,5000211710,Grant Payable by Exchequer,AL8 6XF,"2,026,752.00",Yes
Communities & Local Government,DCLG,02/10/2012,National Non Domestic Rates (NNDR) Payments,Localism,HULL CITY COUNCIL,,,,5000211377,Grant Payable by Exchequer,HU1 2AA,"6,847,188.00",Yes
Communities & Local Government,DCLG,02/10/2012,National Non Domestic Rates (NNDR) Payments,Localism,HUMBERSIDE FIRE & RESCUE SERVICE,,,,5000211704,Grant Payable by Exchequer,HU4 7BB,"1,216,743.00",Yes
Communities & Local Government,DCLG,02/10/2012,National Non Domestic Rates (NNDR) Payments,Localism,HUMBERSIDE POLICE,,,,5000211707,Grant Payable by Exchequer,HU5 5SF,"2,485,367.00",Yes
Communities & Local Government,DCLG,02/10/2012,National Non Domestic Rates (NNDR) Payments,Localism,ISLE OF WIGHT CNCL,,,,5000211315,Grant Payable by Exchequer,PO30 1UD,"2,804,977.00",Yes
Communities & Local Government,DCLG,02/10/2012,National Non Domestic Rates (NNDR) Payments,Localism,ISLES OF SCILLY COUNCIL,,,,5000211327,Grant Payable by Exchequer,TR21 0LW,"122,530.00",Yes
Communities & Local Government,DCLG,02/10/2012,National Non Domestic Rates (NNDR) Payments,Localism,KENT & MEDWAY TOWNS FIRE AUTHORITY,,,,5000211353,Grant Payable by Exchequer,ME15 6XB,"1,388,774.00",Yes
Communities & Local Government,DCLG,02/10/2012,National Non Domestic Rates (NNDR) Payments,Localism,KENT COUNTY CNCL,,,,5000211347,Grant Payable by Exchequer,ME14 1XQ,"14,139,617.00",Yes
Communities & Local Government,DCLG,02/10/2012,National Non Domestic Rates (NNDR) Payments,Localism,KENT POLICE AUTHORITY,,,,5000211358,Grant Payable by Exchequer,ME15 9BZ,"3,673,734.00",Yes
Communities & Local Government,DCLG,02/10/2012,National Non Domestic Rates (NNDR) Payments,Localism,KIRKLEES MBC,,,,5000211391,Grant Payable by Exchequer,HD1 2YU,"6,993,857.00",Yes
Communities & Local Government,DCLG,02/10/2012,National Non Domestic Rates (NNDR) Payments,Localism,KNOWSLEY MBC,,,,5000211399,Grant Payable by Exchequer,L36 9YZ,"5,147,058.00",Yes
Communities & Local Government,DCLG,02/10/2012,National Non Domestic Rates (NNDR) Payments,Localism,LANCASHIRE COMBINED FIRE AUTHORITY,,,,5000211416,Grant Payable by Exchequer,PR2 3LH,"1,494,962.00",Yes
Communities & Local Government,DCLG,02/10/2012,National Non Domestic Rates (NNDR) Payments,Localism,LANCASHIRE COUNTY CNCL,,,,5000211411,Grant Payable by Exchequer,PR1 8RD,"14,767,915.00",Yes
Communities & Local Government,DCLG,02/10/2012,National Non Domestic Rates (NNDR) Payments,Localism,LANCASHIRE POLICE AUTHORITY,,,,5000211422,Grant Payable by Exchequer,PR1 OLD,"4,158,211.00",Yes
Communities & Local Government,DCLG,02/10/2012,National Non Domestic Rates (NNDR) Payments,Localism,LEICESTER CITY CNCL,,,,5000211441,Grant Payable by Exchequer,LE1 6ZG,"8,374,021.00",Yes
Communities & Local Government,DCLG,02/10/2012,National Non Domestic Rates (NNDR) Payments,Localism,LEICESTERSHIRE COUNTY CNCL,,,,5000211458,Grant Payable by Exchequer,LE3 8RB,"4,865,546.00",Yes
Communities & Local Government,DCLG,02/10/2012,National Non Domestic Rates (NNDR) Payments,Localism,LEICESTERSHIRE POLICE AUTHORITY,,,,5000211452,Grant Payable by Exchequer,LE99 1A2,"2,160,785.00",Yes
Communities & Local Government,DCLG,02/10/2012,National Non Domestic Rates (NNDR) Payments,Localism,LEICS LEICESTERSHIRE RUTLAND CFA,,,,5000211446,Grant Payable by Exchequer,LE3 8HD,"879,095.00",Yes
Communities & Local Government,DCLG,02/10/2012,National Non Domestic Rates (NNDR) Payments,Localism,LEWISHAM LB,,,,5000211471,Grant Payable by Exchequer,SE6 4RU,"8,122,216.00",Yes
Communities & Local Government,DCLG,02/10/2012,National Non Domestic Rates (NNDR) Payments,Localism,LINCOLNSHIRE COUNTY CNCL,,,,5000211495,Grant Payable by Exchequer,LN1 1YT,"9,389,788.00",Yes
Communities & Local Government,DCLG,02/10/2012,National Non Domestic Rates (NNDR) Payments,Localism,LINCOLNSHIRE POLICE AUTH,,,,5000211490,Grant Payable by Exchequer,LN5 7PH,"1,127,365.00",Yes
Communities & Local Government,DCLG,02/10/2012,National Non Domestic Rates (NNDR) Payments,Localism,LIVERPOOL CITY COUNCIL,,,,5000211501,Grant Payable by Exchequer,L2 2DH,"14,809,594.00",Yes
Communities & Local Government,DCLG,02/10/2012,National Non Domestic Rates (NNDR) Payments,Localism,LONDON BOROUGH OF HACKNEY,,,,5000211813,Grant Payable by Exchequer,E8 4RU,"9,764,557.00",Yes
Communities & Local Government,DCLG,02/10/2012,National Non Domestic Rates (NNDR) Payments,Localism,LONDON BOROUGH OF LAMBETH,,,,5000211406,Grant Payable by Exchequer,SW2 1RL,"9,608,517.00",Yes
Communities & Local Government,DCLG,02/10/2012,National Non Domestic Rates (NNDR) Payments,Localism,LONDON BOROUGH OF NEWHAM,,Large,,5000211718,Grant Payable by Exchequer,E16 2QU,"9,530,789.00",Yes
Communities & Local Government,DCLG,02/10/2012,National Non Domestic Rates (NNDR) Payments,Localism,LONDON BOROUGH OF REDBRIDGE,,,,5000211354,Grant Payable by Exchequer,IG1 1NN,"4,480,195.00",Yes
Communities & Local Government,DCLG,02/10/2012,National Non Domestic Rates (NNDR) Payments,Localism,LUTON BC,,,,5000211507,Grant Payable by Exchequer,LU1 1DX,"4,015,535.00",Yes
Communities & Local Government,DCLG,02/10/2012,National Non Domestic Rates (NNDR) Payments,Localism,MANCHESTER CITY CNCL,,,,5000211534,Grant Payable by Exchequer,M60 2JR,"15,396,135.00",Yes
Communities & Local Government,DCLG,02/10/2012,National Non Domestic Rates (NNDR) Payments,Localism,MEDWAY COUNCIL,,,,5000211557,Grant Payable by Exchequer,ME4 4TR,"3,762,369.00",Yes
Communities & Local Government,DCLG,02/10/2012,National Non Domestic Rates (NNDR) Payments,Localism,MERSEYSIDE FIRE & RESCUE SERVICE,,,,5000211571,Grant Payable by Exchequer,L30 4YD,"1,918,018.00",Yes
Communities & Local Government,DCLG,02/10/2012,National Non Domestic Rates (NNDR) Payments,Localism,MERSEYSIDE POLICE AUTH,,,,5000211576,Grant Payable by Exchequer,L69 1JD,"5,947,101.00",Yes
Communities & Local Government,DCLG,02/10/2012,National Non Domestic Rates (NNDR) Payments,Localism,MIDDLESBROUGH BC,,,,5000211592,Grant Payable by Exchequer,TS1 9GA,"3,805,216.00",Yes
Communities & Local Government,DCLG,02/10/2012,National Non Domestic Rates (NNDR) Payments,Localism,NEWCASTLE UPON TYNE DC,,,,5000211716,Grant Payable by Exchequer,NE99 1RD,"7,489,985.00",Yes
Communities & Local Government,DCLG,02/10/2012,National Non Domestic Rates (NNDR) Payments,Localism,NORFOLK COUNTY COUNCIL,,,,5000211719,Grant Payable by Exchequer,NR1 2DW,"11,572,243.00",Yes
Communities & Local Government,DCLG,02/10/2012,National Non Domestic Rates (NNDR) Payments,Localism,NORFOLK POLICE AUTHORITY,,,,5000211720,Grant Payable by Exchequer,NR18 0WW,"1,511,937.00",Yes
Communities & Local Government,DCLG,02/10/2012,National Non Domestic Rates (NNDR) Payments,Localism,NORTH EAST LINCOLN COUNCIL,,Public Bodies,,5000211723,Grant Payable by Exchequer,DN35 8LN,"3,225,291.00",Yes
Communities & Local Government,DCLG,02/10/2012,National Non Domestic Rates (NNDR) Payments,Localism,NORTH TYNESIDE MBC,,,,5000211729,Grant Payable by Exchequer,NE30 1AE,"3,944,605.00",Yes
Communities & Local Government,DCLG,02/10/2012,National Non Domestic Rates (NNDR) Payments,Localism,NORTH YORKSHIRE CC,,,,5000211731,Grant Payable by Exchequer,DL7 8AL,"5,441,920.00",Yes
Communities & Local Government,DCLG,02/10/2012,National Non Domestic Rates (NNDR) Payments,Localism,NORTH YORKSHIRE FIRE & RESCUE AUTH,,,,5000211732,Grant Payable by Exchequer,DL6 1AB,"594,641.00",Yes
Communities & Local Government,DCLG,02/10/2012,National Non Domestic Rates (NNDR) Payments,Localism,NORTH YORKSHIRE POLICE AUTHORITY,,,,5000211733,Grant Payable by Exchequer,DL7 9HA,"1,459,721.00",Yes
Communities & Local Government,DCLG,02/10/2012,National Non Domestic Rates (NNDR) Payments,Localism,NORTHAMPTONSHIRE COUNTY COUNCIL,,,,5000211735,Grant Payable by Exchequer,NN4 7DB,"7,480,769.00",Yes
Communities & Local Government,DCLG,02/10/2012,National Non Domestic Rates (NNDR) Payments,Localism,NORTHAMPTONSHIRE POLICE AUTH,,,,5000211736,Grant Payable by Exchequer,NN1 5DQ,"1,308,685.00",Yes
Communities & Local Government,DCLG,02/10/2012,National Non Domestic Rates (NNDR) Payments,Localism,NORTHUMBERLAND,,,,5000211700,Grant Payable by Exchequer,NE61 2EF,"5,679,694.00",Yes
Communities & Local Government,DCLG,02/10/2012,National Non Domestic Rates (NNDR) Payments,Localism,NORTHUMBRIA POLICE AUTH,,,,5000211737,Grant Payable by Exchequer,NE1 8DL,"5,595,311.00",Yes
Communities & Local Government,DCLG,02/10/2012,National Non Domestic Rates (NNDR) Payments,Localism,NOTTINGHAM CITY COUNCIL,,,,5000211739,Grant Payable by Exchequer,M33 0DJ,"8,064,139.00",Yes
Communities & Local Government,DCLG,02/10/2012,National Non Domestic Rates (NNDR) Payments,Localism,NOTTINGHAMSHIRE COUNTY CNCL,,,,5000211740,Grant Payable by Exchequer,NG1 4BU,"8,823,154.00",Yes
Communities & Local Government,DCLG,02/10/2012,National Non Domestic Rates (NNDR) Payments,Localism,NOTTINGHAMSHIRE POLICE AU,,,,5000211742,Grant Payable by Exchequer,NG5 8PP,"2,557,189.00",Yes
Communities & Local Government,DCLG,02/10/2012,National Non Domestic Rates (NNDR) Payments,Localism,NOTTS & CITY NOTTINGHAM FIRE AUTH,,,,5000211741,Grant Payable by Exchequer,NG5 8PD,"1,045,819.00",Yes
Communities & Local Government,DCLG,02/10/2012,National Non Domestic Rates (NNDR) Payments,Localism,OLDHAM MBC,,,,5000211746,Grant Payable by Exchequer,OL1 1UH,"5,365,404.00",Yes
Communities & Local Government,DCLG,02/10/2012,National Non Domestic Rates (NNDR) Payments,Localism,OXFORDSHIRE CC,,,,5000211297,Grant Payable by Exchequer,OX4 2GQ,"5,373,147.00",Yes
Communities & Local Government,DCLG,02/10/2012,National Non Domestic Rates (NNDR) Payments,Localism,PLYMOUTH CITY CNCL,,,,5000211316,Grant Payable by Exchequer,PL1 2AA,"5,013,293.00",Yes
Communities & Local Government,DCLG,02/10/2012,National Non Domestic Rates (NNDR) Payments,Localism,PORTSMOUTH CITY COUNCIL,,,,5000211329,Grant Payable by Exchequer,PO1 2AR,"4,014,226.00",Yes
Communities & Local Government,DCLG,02/10/2012,National Non Domestic Rates (NNDR) Payments,Localism,REDCAR & CLEVELAND BOROUGH COUNCIL,,,,5000211360,Grant Payable by Exchequer,TS6 9AR,"2,976,989.00",Yes
Communities & Local Government,DCLG,02/10/2012,National Non Domestic Rates (NNDR) Payments,Localism,ROCHDALE MBC,,,,5000211398,Grant Payable by Exchequer,OL16 1LQ,"5,000,068.00",Yes
Communities & Local Government,DCLG,02/10/2012,National Non Domestic Rates (NNDR) Payments,Localism,ROTHERHAM MBC,,,,5000211425,Grant Payable by Exchequer,S65 1UF,"5,373,037.00",Yes
Communities & Local Government,DCLG,02/10/2012,National Non Domestic Rates (NNDR) Payments,Localism,ROYAL BERKSHIRE FIRE AUTHORITY,,,,5000211408,Grant Payable by Exchequer,RG30 4FS,"718,818.00",Yes
Communities & Local Government,DCLG,02/10/2012,National Non Domestic Rates (NNDR) Payments,Localism,SALFORD CITY CNCL,,,,5000211468,Grant Payable by Exchequer,M27 5AW,"5,937,363.00",Yes
Communities & Local Government,DCLG,02/10/2012,National Non Domestic Rates (NNDR) Payments,Localism,SANDWELL MBC,,,,5000211476,Grant Payable by Exchequer,B69 3BS,"8,205,906.00",Yes
Communities & Local Government,DCLG,02/10/2012,National Non Domestic Rates (NNDR) Payments,Localism,SEFTON MBC,,,,5000211496,Grant Payable by Exchequer,L20 3NQ,"5,500,221.00",Yes
Communities & Local Government,DCLG,02/10/2012,National Non Domestic Rates (NNDR) Payments,Localism,SHEFFIELD CITY CNCL,,,,5000211515,Grant Payable by Exchequer,S1 1UR,"12,382,234.00",Yes
Communities & Local Government,DCLG,02/10/2012,National Non Domestic Rates (NNDR) Payments,Localism,SHROPSHIRE & WREKIN FIRE AUTHORITY,,,,5000211526,Grant Payable by Exchequer,SY1 2HJ,"352,446.00",Yes
Communities & Local Government,DCLG,02/10/2012,National Non Domestic Rates (NNDR) Payments,Localism,SHROPSHIRE COUNCIL,,Large,,5000211703,Grant Payable by Exchequer,SY2 6ND,"4,210,368.00",Yes
Communities & Local Government,DCLG,02/10/2012,National Non Domestic Rates (NNDR) Payments,Localism,SOMERSET COUNTY CNCL,,,,5000211546,Grant Payable by Exchequer,TA1 4DY,"5,848,209.00",Yes
Communities & Local Government,DCLG,02/10/2012,National Non Domestic Rates (NNDR) Payments,Localism,SOUTH TYNESIDE COUNCIL,,,,5000211817,Grant Payable by Exchequer,NE33 2RL,"3,943,924.00",Yes
Communities & Local Government,DCLG,02/10/2012,National Non Domestic Rates (NNDR) Payments,Localism,SOUTH YORKSHIRE FIRE & CD,,,,5000211634,Grant Payable by Exchequer,S1 3FG,"1,524,778.00",Yes
Communities & Local Government,DCLG,02/10/2012,National Non Domestic Rates (NNDR) Payments,Localism,SOUTH YORKSHIRE P A,,,,5000211637,Grant Payable by Exchequer,S3 8LY,"4,196,038.00",Yes
Communities & Local Government,DCLG,02/10/2012,National Non Domestic Rates (NNDR) Payments,Localism,SOUTHEND ON SEA BC,,,,5000211643,Grant Payable by Exchequer,SS2 6EP,"2,816,969.00",Yes
Communities & Local Government,DCLG,02/10/2012,National Non Domestic Rates (NNDR) Payments,Localism,SOUTHWARK LB,,,,5000211645,Grant Payable by Exchequer,SE1P 5LX,"10,115,143.00",Yes
Communities & Local Government,DCLG,02/10/2012,National Non Domestic Rates (NNDR) Payments,Localism,ST HELENS MBC,,,,5000211656,Grant Payable by Exchequer,WA10 1HP,"3,942,457.00",Yes
Communities & Local Government,DCLG,02/10/2012,National Non Domestic Rates (NNDR) Payments,Localism,STAFFORDSHIRE  FIRE & RESCUE SERV,,,,5000211662,Grant Payable by Exchequer,ST15 0BS,"908,968.00",Yes
Communities & Local Government,DCLG,02/10/2012,National Non Domestic Rates (NNDR) Payments,Localism,STAFFORDSHIRE COUNTY CNCL,,,,5000211661,Grant Payable by Exchequer,ST16 2LH,"7,809,213.00",Yes
Communities & Local Government,DCLG,02/10/2012,National Non Domestic Rates (NNDR) Payments,Localism,STAFFORDSHIRE POLICE AUTHORITY,,,,5000211668,Grant Payable by Exchequer,ST16 2NF,"2,228,356.00",Yes
Communities & Local Government,DCLG,02/10/2012,National Non Domestic Rates (NNDR) Payments,Localism,STOKE ON TRENT CITY COUNCIL,,,,5000211680,Grant Payable by Exchequer,ST4 1RJ,"5,764,578.00",Yes
Communities & Local Government,DCLG,02/10/2012,National Non Domestic Rates (NNDR) Payments,Localism,SUFFOLK COUNTY CNCL,,,,5000211689,Grant Payable by Exchequer,IP4 2JP,"8,244,910.00",Yes
Communities & Local Government,DCLG,02/10/2012,National Non Domestic Rates (NNDR) Payments,Localism,SUFFOLK POLICE AUTHORITY,,,,5000211695,Grant Payable by Exchequer,IP5 3QS,"1,236,404.00",Yes
Communities & Local Government,DCLG,02/10/2012,National Non Domestic Rates (NNDR) Payments,Localism,SUNDERLAND DC,,,,5000211698,Grant Payable by Exchequer,SR2 7DN,"6,904,959.00",Yes
Communities & Local Government,DCLG,02/10/2012,National Non Domestic Rates (NNDR) Payments,Localism,SURREY COUNTY CNCL,,,,5000211702,Grant Payable by Exchequer,KT1 2EA,"6,924,961.00",Yes
Communities & Local Government,DCLG,02/10/2012,National Non Domestic Rates (NNDR) Payments,Localism,SURREY POLICE AUTHORITY,,,,5000211299,Grant Payable by Exchequer,KT1 2EA,"1,662,226.00",Yes
Communities & Local Government,DCLG,02/10/2012,National Non Domestic Rates (NNDR) Payments,Localism,SUSSEX POLICE AUTHORITY,,,,5000211304,Grant Payable by Exchequer,PO19 1RG,"2,989,222.00",Yes
Communities & Local Government,DCLG,02/10/2012,National Non Domestic Rates (NNDR) Payments,Localism,SUTTON LB,,,,5000211310,Grant Payable by Exchequer,SM1 1EA,"2,409,620.00",Yes
Communities & Local Government,DCLG,02/10/2012,National Non Domestic Rates (NNDR) Payments,Localism,TAMESIDE MBC,,,,5000211332,Grant Payable by Exchequer,OL6 6DL,"4,687,612.00",Yes
Communities & Local Government,DCLG,02/10/2012,National Non Domestic Rates (NNDR) Payments,Localism,TELFORD & WREKIN DC,,,,5000211365,Grant Payable by Exchequer,TF3 4LF,"3,105,446.00",Yes
Communities & Local Government,DCLG,02/10/2012,National Non Domestic Rates (NNDR) Payments,Localism,THAMES VALLEY POLICE AUTHORITY,,,,5000211390,Grant Payable by Exchequer,OX5 2NX,"4,070,298.00",Yes
Communities & Local Government,DCLG,02/10/2012,National Non Domestic Rates (NNDR) Payments,Localism,TORBAY BC,,,,5000211423,Grant Payable by Exchequer,TQ1 3DR,"2,770,598.00",Yes
Communities & Local Government,DCLG,02/10/2012,National Non Domestic Rates (NNDR) Payments,Localism,TYNE & WEAR FIRE AUTHORITY,,,,5000211454,Grant Payable by Exchequer,SR2 7DN,"1,476,819.00",Yes
Communities & Local Government,DCLG,02/10/2012,National Non Domestic Rates (NNDR) Payments,Localism,W YORKSHIRE FIRE & RESCUE AUTH,,,,5000211806,Grant Payable by Exchequer,BD11 2DY,"2,441,624.00",Yes
Communities & Local Government,DCLG,02/10/2012,National Non Domestic Rates (NNDR) Payments,Localism,WALSALL MBC,,,,5000211480,Grant Payable by Exchequer,WS1 1TW,"6,018,667.00",Yes
Communities & Local Government,DCLG,02/10/2012,National Non Domestic Rates (NNDR) Payments,Localism,WALTHAM FOREST LB,,Large,,5000211486,Grant Payable by Exchequer,E17 4JF,"5,509,401.00",Yes
Communities & Local Government,DCLG,02/10/2012,National Non Domestic Rates (NNDR) Payments,Localism,WANDSWORTH LB,,,,5000211492,Grant Payable by Exchequer,SW18 2PU,"6,616,204.00",Yes
Communities & Local Government,DCLG,02/10/2012,National Non Domestic Rates (NNDR) Payments,Localism,WARWICKSHIRE COUNTY CNCL,,,,5000211510,Grant Payable by Exchequer,CV34 4RH,"4,869,208.00",Yes
Communities & Local Government,DCLG,02/10/2012,National Non Domestic Rates (NNDR) Payments,Localism,WARWICKSHIRE POLICE AUTHORITY,,,,5000211516,Grant Payable by Exchequer,CV35 7QB,"921,623.00",Yes
Communities & Local Government,DCLG,02/10/2012,National Non Domestic Rates (NNDR) Payments,Localism,WEST MERCIA POLICE AUTH,,,,5000211790,Grant Payable by Exchequer,WR5 2NP,"2,382,199.00",Yes
Communities & Local Government,DCLG,02/10/2012,National Non Domestic Rates (NNDR) Payments,Localism,WEST MIDLANDS FIRE & CIVIL DEFENCE,,,,5000211792,Grant Payable by Exchequer,B4 7DE,"3,336,639.00",Yes
Communities & Local Government,DCLG,02/10/2012,National Non Domestic Rates (NNDR) Payments,Localism,WEST MIDLANDS POLICE AUTH,,,,5000211793,Grant Payable by Exchequer,B4 6NQ,"9,949,230.00",Yes
Communities & Local Government,DCLG,02/10/2012,National Non Domestic Rates (NNDR) Payments,Localism,WEST SUSSEX CC,,,,5000211802,Grant Payable by Exchequer,PO19 1RG,"5,509,493.00",Yes
Communities & Local Government,DCLG,02/10/2012,National Non Domestic Rates (NNDR) Payments,Localism,WEST YORKSHIRE POLICE AUTHORITY,,,,5000211809,Grant Payable by Exchequer,WF1 3QP,"6,682,916.00",Yes
Communities & Local Government,DCLG,02/10/2012,National Non Domestic Rates (NNDR) Payments,Localism,WIGAN MBC,,,,5000211631,Grant Payable by Exchequer,WN1 1YD,"5,938,837.00",Yes
Communities & Local Government,DCLG,02/10/2012,National Non Domestic Rates (NNDR) Payments,Localism,WILTSHIRE & SWINDON FIRE AUTHORITY,,,,5000211633,Grant Payable by Exchequer,SN10 5PP,"448,387.00",Yes
Communities & Local Government,DCLG,02/10/2012,National Non Domestic Rates (NNDR) Payments,Localism,WILTSHIRE POLICE,,,,5000211636,Grant Payable by Exchequer,BA14 8JJ,"1,155,128.00",Yes
Communities & Local Government,DCLG,02/10/2012,National Non Domestic Rates (NNDR) Payments,Localism,WIRRAL MBC,,,,5000211646,Grant Payable by Exchequer,L41 6BU,"6,897,391.00",Yes
Communities & Local Government,DCLG,02/10/2012,National Non Domestic Rates (NNDR) Payments,Localism,WOLVERHAMPTON MBC,,,,5000211657,Grant Payable by Exchequer,WV1 1RL,"6,374,778.00",Yes
Communities & Local Government,DCLG,02/10/2012,National Non Domestic Rates (NNDR) Payments,Localism,WORCESTERSHIRE COUNTY COUNCIL,,,,5000211664,Grant Payable by Exchequer,WR5 2NP,"4,897,652.00",Yes
Communities & Local Government,DCLG,02/10/2012,NNDR Billing Authorities Receipts,Localism,BARKING & DAGENHAM LB,,,,5000211349,Grant Payable by Exchequer,RM10 7BY,"-2,600,369.00",Yes
Communities & Local Government,DCLG,02/10/2012,NNDR Billing Authorities Receipts,Localism,BARNSLEY MBC,,Public Bodies,,5000211362,Grant Payable by Exchequer,S70 2AQ,"-2,368,065.00",Yes
Communities & Local Government,DCLG,02/10/2012,NNDR Billing Authorities Receipts,Localism,BIRMINGHAM CITY CNCL,,,,5000211420,Grant Payable by Exchequer,B3 3AB,"-18,221,684.00",Yes
Communities & Local Government,DCLG,02/10/2012,NNDR Billing Authorities Receipts,Localism,BLACKBURN WITH DARWEN BC,,,,5000211433,Grant Payable by Exchequer,BB1 7DY,"-2,105,421.00",Yes
Communities & Local Government,DCLG,02/10/2012,NNDR Billing Authorities Receipts,Localism,BLACKPOOL BC,,,,5000211440,Grant Payable by Exchequer,FY1 1NA,"-2,241,866.00",Yes
Communities & Local Government,DCLG,02/10/2012,NNDR Billing Authorities Receipts,Localism,BOLTON MBC,,,,5000211453,Grant Payable by Exchequer,BL1 1RU,"-4,172,825.00",Yes
Communities & Local Government,DCLG,02/10/2012,NNDR Billing Authorities Receipts,Localism,BRADFORD MBC,,,,5000211479,Grant Payable by Exchequer,BD1 1HX,"-6,351,576.00",Yes
Communities & Local Government,DCLG,02/10/2012,NNDR Billing Authorities Receipts,Localism,BRENT LB,,,,5000211498,Grant Payable by Exchequer,HA9 9EZ,"-4,743,148.00",Yes
Communities & Local Government,DCLG,02/10/2012,NNDR Billing Authorities Receipts,Localism,BRIGHTON & HOVE CITY COUNCIL,,,,5000211511,Grant Payable by Exchequer,BN3 2SR,"-4,667,308.00",Yes
Communities & Local Government,DCLG,02/10/2012,NNDR Billing Authorities Receipts,Localism,BURY MBC,,,,5000211749,Grant Payable by Exchequer,BL9 0SP,"-2,437,420.00",Yes
Communities & Local Government,DCLG,02/10/2012,NNDR Billing Authorities Receipts,Localism,CALDERDALE MBC,,,,5000211750,Grant Payable by Exchequer,HX1 1YP,"-2,631,239.00",Yes
Communities & Local Government,DCLG,02/10/2012,NNDR Billing Authorities Receipts,Localism,CITY OF WAKEFIELD MDC,,,,5000211474,Grant Payable by Exchequer,WF1 2QW,"-5,596,156.00",Yes
Communities & Local Government,DCLG,02/10/2012,NNDR Billing Authorities Receipts,Localism,CORNWALL COUNCIL,,,,5000211694,Grant Payable by Exchequer,TR1 3AY,"-6,831,616.00",Yes
Communities & Local Government,DCLG,02/10/2012,NNDR Billing Authorities Receipts,Localism,COVENTRY CITY CNCL,,,,5000211779,Grant Payable by Exchequer,CV1 2QL,"-5,248,716.00",Yes
Communities & Local Government,DCLG,02/10/2012,NNDR Billing Authorities Receipts,Localism,CROYDON LB,,,,5000211782,Grant Payable by Exchequer,CR9 3JS,"-5,141,972.00",Yes
Communities & Local Government,DCLG,02/10/2012,NNDR Billing Authorities Receipts,Localism,DARLINGTON BC,,,,5000211300,Grant Payable by Exchequer,TS19 1JA,"-1,540,574.00",Yes
Communities & Local Government,DCLG,02/10/2012,NNDR Billing Authorities Receipts,Localism,DERBY CITY CNCL,,,,5000211318,Grant Payable by Exchequer,DE1 2FS,"-3,851,946.00",Yes
Communities & Local Government,DCLG,02/10/2012,NNDR Billing Authorities Receipts,Localism,DONCASTER MBC,,,,5000211363,Grant Payable by Exchequer,DN1 3QA,"-3,979,092.00",Yes
Communities & Local Government,DCLG,02/10/2012,NNDR Billing Authorities Receipts,Localism,DUDLEY MBC,,,,5000211392,Grant Payable by Exchequer,DY1 1HF,"-4,318,931.00",Yes
Communities & Local Government,DCLG,02/10/2012,NNDR Billing Authorities Receipts,Localism,DURHAM COUNTY COUNCIL,,,,5000211697,Grant Payable by Exchequer,DH1 5UE,"-5,144,179.00",Yes
Communities & Local Government,DCLG,02/10/2012,NNDR Billing Authorities Receipts,Localism,EAST RIDING OF YORKS,,,,5000211463,Grant Payable by Exchequer,HU17 9AB,"-3,910,739.00",Yes
Communities & Local Government,DCLG,02/10/2012,NNDR Billing Authorities Receipts,Localism,ENFIELD LB,,,,5000211513,Grant Payable by Exchequer,EN1 3XF,"-4,719,317.00",Yes
Communities & Local Government,DCLG,02/10/2012,NNDR Billing Authorities Receipts,Localism,GATESHEAD MBC,,,,5000211583,Grant Payable by Exchequer,NE8 1HH,"-3,825,331.00",Yes
Communities & Local Government,DCLG,02/10/2012,NNDR Billing Authorities Receipts,Localism,GREENWICH LB,,,,5000211807,Grant Payable by Exchequer,SE18 6RA,"-2,764,640.00",Yes
Communities & Local Government,DCLG,02/10/2012,NNDR Billing Authorities Receipts,Localism,HALTON BC,,,,5000211816,Grant Payable by Exchequer,WA8 7QF,"-2,326,123.00",Yes
Communities & Local Government,DCLG,02/10/2012,NNDR Billing Authorities Receipts,Localism,HARINGEY LB,,,,5000211648,Grant Payable by Exchequer,N22 7TR,"-2,909,113.00",Yes
Communities & Local Government,DCLG,02/10/2012,NNDR Billing Authorities Receipts,Localism,HARROW LB,,,,5000211658,Grant Payable by Exchequer,HA1 2UZ,"-2,170,182.00",Yes
Communities & Local Government,DCLG,02/10/2012,NNDR Billing Authorities Receipts,Localism,HARTLEPOOL BOROUGH COUNCIL,,,,5000211666,Grant Payable by Exchequer,TS24 7BT,"-1,300,539.00",Yes
Communities & Local Government,DCLG,02/10/2012,NNDR Billing Authorities Receipts,Localism,HEREFORDSHIRE DISTRICT COUNCIL,,,,5000211681,Grant Payable by Exchequer,HR1 1SH,"-2,073,689.00",Yes
Communities & Local Government,DCLG,02/10/2012,NNDR Billing Authorities Receipts,Localism,HULL CITY COUNCIL,,,,5000211377,Grant Payable by Exchequer,HU1 2AA,"-4,297,718.00",Yes
Communities & Local Government,DCLG,02/10/2012,NNDR Billing Authorities Receipts,Localism,ISLE OF WIGHT CNCL,,,,5000211315,Grant Payable by Exchequer,PO30 1UD,"-1,523,912.00",Yes
Communities & Local Government,DCLG,02/10/2012,NNDR Billing Authorities Receipts,Localism,ISLES OF SCILLY COUNCIL,,,,5000211327,Grant Payable by Exchequer,TR21 0LW,"-69,401.00",Yes
Communities & Local Government,DCLG,02/10/2012,NNDR Billing Authorities Receipts,Localism,KIRKLEES MBC,,,,5000211391,Grant Payable by Exchequer,HD1 2YU,"-4,855,366.00",Yes
Communities & Local Government,DCLG,02/10/2012,NNDR Billing Authorities Receipts,Localism,KNOWSLEY MBC,,,,5000211399,Grant Payable by Exchequer,L36 9YZ,"-1,853,840.00",Yes
Communities & Local Government,DCLG,02/10/2012,NNDR Billing Authorities Receipts,Localism,LEICESTER CITY CNCL,,,,5000211441,Grant Payable by Exchequer,LE1 6ZG,"-4,636,915.00",Yes
Communities & Local Government,DCLG,02/10/2012,NNDR Billing Authorities Receipts,Localism,LEWISHAM LB,,,,5000211471,Grant Payable by Exchequer,SE6 4RU,"-2,200,150.00",Yes
Communities & Local Government,DCLG,02/10/2012,NNDR Billing Authorities Receipts,Localism,LIVERPOOL CITY COUNCIL,,,,5000211501,Grant Payable by Exchequer,L2 2DH,"-8,796,965.00",Yes
Communities & Local Government,DCLG,02/10/2012,NNDR Billing Authorities Receipts,Localism,LONDON BOROUGH OF HACKNEY,,,,5000211813,Grant Payable by Exchequer,E8 4RU,"-3,883,504.00",Yes
Communities & Local Government,DCLG,02/10/2012,NNDR Billing Authorities Receipts,Localism,LONDON BOROUGH OF LAMBETH,,,,5000211406,Grant Payable by Exchequer,SW2 1RL,"-5,253,317.00",Yes
Communities & Local Government,DCLG,02/10/2012,NNDR Billing Authorities Receipts,Localism,LONDON BOROUGH OF NEWHAM,,Large,,5000211718,Grant Payable by Exchequer,E16 2QU,"-5,317,851.00",Yes
Communities & Local Government,DCLG,02/10/2012,NNDR Billing Authorities Receipts,Localism,LONDON BOROUGH OF REDBRIDGE,,,,5000211354,Grant Payable by Exchequer,IG1 1NN,"-2,413,968.00",Yes
Communities & Local Government,DCLG,02/10/2012,NNDR Billing Authorities Receipts,Localism,LUTON BC,,,,5000211507,Grant Payable by Exchequer,LU1 1DX,"-3,121,335.00",Yes
Communities & Local Government,DCLG,02/10/2012,NNDR Billing Authorities Receipts,Localism,MANCHESTER CITY CNCL,,,,5000211534,Grant Payable by Exchequer,M60 2JR,"-14,492,040.00",Yes
Communities & Local Government,DCLG,02/10/2012,NNDR Billing Authorities Receipts,Localism,MEDWAY COUNCIL,,,,5000211557,Grant Payable by Exchequer,ME4 4TR,"-3,706,540.00",Yes
Communities & Local Government,DCLG,02/10/2012,NNDR Billing Authorities Receipts,Localism,MIDDLESBROUGH BC,,,,5000211592,Grant Payable by Exchequer,TS1 9GA,"-1,899,818.00",Yes
Communities & Local Government,DCLG,02/10/2012,NNDR Billing Authorities Receipts,Localism,NEWCASTLE UPON TYNE DC,,,,5000211716,Grant Payable by Exchequer,NE99 1RD,"-6,827,411.00",Yes
Communities & Local Government,DCLG,02/10/2012,NNDR Billing Authorities Receipts,Localism,NORTH EAST LINCOLN COUNCIL,,Public Bodies,,5000211723,Grant Payable by Exchequer,DN35 8LN,"-2,956,189.00",Yes
Communities & Local Government,DCLG,02/10/2012,NNDR Billing Authorities Receipts,Localism,NORTH TYNESIDE MBC,,,,5000211729,Grant Payable by Exchequer,NE30 1AE,"-2,673,638.00",Yes
Communities & Local Government,DCLG,02/10/2012,NNDR Billing Authorities Receipts,Localism,NORTHUMBERLAND,,,,5000211700,Grant Payable by Exchequer,NE61 2EF,"-3,410,614.00",Yes
Communities & Local Government,DCLG,02/10/2012,NNDR Billing Authorities Receipts,Localism,NOTTINGHAM CITY COUNCIL,,,,5000211739,Grant Payable by Exchequer,M33 0DJ,"-5,790,412.00",Yes
Communities & Local Government,DCLG,02/10/2012,NNDR Billing Authorities Receipts,Localism,OLDHAM MBC,,,,5000211746,Grant Payable by Exchequer,OL1 1UH,"-2,646,241.00",Yes
Communities & Local Government,DCLG,02/10/2012,NNDR Billing Authorities Receipts,Localism,PLYMOUTH CITY CNCL,,,,5000211316,Grant Payable by Exchequer,PL1 2AA,"-3,964,888.00",Yes
Communities & Local Government,DCLG,02/10/2012,NNDR Billing Authorities Receipts,Localism,PORTSMOUTH CITY COUNCIL,,,,5000211329,Grant Payable by Exchequer,PO1 2AR,"-3,708,066.00",Yes
Communities & Local Government,DCLG,02/10/2012,NNDR Billing Authorities Receipts,Localism,REDCAR & CLEVELAND BOROUGH COUNCIL,,,,5000211360,Grant Payable by Exchequer,TS6 9AR,"-2,331,036.00",Yes
Communities & Local Government,DCLG,02/10/2012,NNDR Billing Authorities Receipts,Localism,ROCHDALE MBC,,,,5000211398,Grant Payable by Exchequer,OL16 1LQ,"-2,913,839.00",Yes
Communities & Local Government,DCLG,02/10/2012,NNDR Billing Authorities Receipts,Localism,ROTHERHAM MBC,,,,5000211425,Grant Payable by Exchequer,S65 1UF,"-3,322,189.00",Yes
Communities & Local Government,DCLG,02/10/2012,NNDR Billing Authorities Receipts,Localism,SALFORD CITY CNCL,,,,5000211468,Grant Payable by Exchequer,M27 5AW,"-3,882,547.00",Yes
Communities & Local Government,DCLG,02/10/2012,NNDR Billing Authorities Receipts,Localism,SANDWELL MBC,,,,5000211476,Grant Payable by Exchequer,B69 3BS,"-4,364,634.00",Yes
Communities & Local Government,DCLG,02/10/2012,NNDR Billing Authorities Receipts,Localism,SEFTON MBC,,,,5000211496,Grant Payable by Exchequer,L20 3NQ,"-3,184,507.00",Yes
Communities & Local Government,DCLG,02/10/2012,NNDR Billing Authorities Receipts,Localism,SHEFFIELD CITY CNCL,,,,5000211515,Grant Payable by Exchequer,S1 1UR,"-9,339,894.00",Yes
Communities & Local Government,DCLG,02/10/2012,NNDR Billing Authorities Receipts,Localism,SHROPSHIRE COUNCIL,,Large,,5000211703,Grant Payable by Exchequer,SY2 6ND,"-3,332,783.00",Yes
Communities & Local Government,DCLG,02/10/2012,NNDR Billing Authorities Receipts,Localism,SOUTH TYNESIDE COUNCIL,,,,5000211817,Grant Payable by Exchequer,NE33 2RL,"-1,372,463.00",Yes
Communities & Local Government,DCLG,02/10/2012,NNDR Billing Authorities Receipts,Localism,SOUTHEND ON SEA BC,,,,5000211643,Grant Payable by Exchequer,SS2 6EP,"-2,055,475.00",Yes
Communities & Local Government,DCLG,02/10/2012,NNDR Billing Authorities Receipts,Localism,SOUTHWARK LB,,,,5000211645,Grant Payable by Exchequer,SE1P 5LX,"-9,017,136.00",Yes
Communities & Local Government,DCLG,02/10/2012,NNDR Billing Authorities Receipts,Localism,ST HELENS MBC,,,,5000211656,Grant Payable by Exchequer,WA10 1HP,"-2,229,274.00",Yes
Communities & Local Government,DCLG,02/10/2012,NNDR Billing Authorities Receipts,Localism,STOKE ON TRENT CITY COUNCIL,,,,5000211680,Grant Payable by Exchequer,ST4 1RJ,"-3,735,031.00",Yes
Communities & Local Government,DCLG,02/10/2012,NNDR Billing Authorities Receipts,Localism,SUNDERLAND DC,,,,5000211698,Grant Payable by Exchequer,SR2 7DN,"-3,912,543.00",Yes
Communities & Local Government,DCLG,02/10/2012,NNDR Billing Authorities Receipts,Localism,SUTTON LB,,,,5000211310,Grant Payable by Exchequer,SM1 1EA,"-2,346,052.00",Yes
Communities & Local Government,DCLG,02/10/2012,NNDR Billing Authorities Receipts,Localism,TAMESIDE MBC,,,,5000211332,Grant Payable by Exchequer,OL6 6DL,"-2,537,913.00",Yes
Communities & Local Government,DCLG,02/10/2012,NNDR Billing Authorities Receipts,Localism,TELFORD & WREKIN DC,,,,5000211365,Grant Payable by Exchequer,TF3 4LF,"-3,044,819.00",Yes
Communities & Local Government,DCLG,02/10/2012,NNDR Billing Authorities Receipts,Localism,TORBAY BC,,,,5000211423,Grant Payable by Exchequer,TQ1 3DR,"-1,689,709.00",Yes
Communities & Local Government,DCLG,02/10/2012,NNDR Billing Authorities Receipts,Localism,WALSALL MBC,,,,5000211480,Grant Payable by Exchequer,WS1 1TW,"-3,135,748.00",Yes
Communities & Local Government,DCLG,02/10/2012,NNDR Billing Authorities Receipts,Localism,WALTHAM FOREST LB,,Large,,5000211486,Grant Payable by Exchequer,E17 4JF,"-2,517,002.00",Yes
Communities & Local Government,DCLG,02/10/2012,NNDR Billing Authorities Receipts,Localism,WANDSWORTH LB,,,,5000211492,Grant Payable by Exchequer,SW18 2PU,"-4,628,798.00",Yes
Communities & Local Government,DCLG,02/10/2012,NNDR Billing Authorities Receipts,Localism,WIGAN MBC,,,,5000211631,Grant Payable by Exchequer,WN1 1YD,"-3,476,628.00",Yes
Communities & Local Government,DCLG,02/10/2012,NNDR Billing Authorities Receipts,Localism,WIRRAL MBC,,,,5000211646,Grant Payable by Exchequer,L41 6BU,"-3,072,412.00",Yes
Communities & Local Government,DCLG,02/10/2012,NNDR Billing Authorities Receipts,Localism,WOLVERHAMPTON MBC,,,,5000211657,Grant Payable by Exchequer,WV1 1RL,"-3,315,817.00",Yes
Communities & Local Government,DCLG,02/10/2012,Printing,Finance & Corporate Services,STATIONERY OFFICE LTD,,Large,,5106183861,Non-Vatable,NR3 1PD,208.00,
Communities & Local Government,DCLG,02/10/2012,Printing,Finance & Corporate Services,STATIONERY OFFICE LTD,,Large,,5106183861,VAT chargeable,NR3 1PD,130.00,
Communities & Local Government,DCLG,02/10/2012,Printing,Finance & Corporate Services,STATIONERY OFFICE LTD,,Large,,5106183953,Non-Vatable,NR3 1PD,"1,742.79",
Communities & Local Government,DCLG,02/10/2012,Printing,Finance & Corporate Services,STATIONERY OFFICE LTD,,Large,,5106183966,Non-Vatable,NR3 1PD,160.00,
Communities & Local Government,DCLG,02/10/2012,Printing,Finance & Corporate Services,STATIONERY OFFICE LTD,,Large,,5106183966,vat charges,NR3 1PD,130.00,
Communities & Local Government,DCLG,02/10/2012,Printing,Finance & Corporate Services,STATIONERY OFFICE LTD,,Large,,5106183967,Non-Vatable,NR3 1PD,185.88,
Communities & Local Government,DCLG,02/10/2012,Printing,Finance & Corporate Services,STATIONERY OFFICE LTD,,Large,,5106183967,vat charges,NR3 1PD,130.00,
Communities & Local Government,DCLG,02/10/2012,Research,Neighbourhoods,BSRIA LTD,,Medium,,5106183963,Audit of Building Accreditation Schemes,RG12 7AH,"35,688.00",
Communities & Local Government,DCLG,02/10/2012,Security,Localism,FIRE SERVICE COLLEGE,,Public Bodies,,5106184026,Fire Alarms,GL56 0RH,135.19,
Communities & Local Government,DCLG,02/10/2012,Security,Localism,FIRE SERVICE COLLEGE,,Public Bodies,,5106184026,Security,GL56 0RH,457.73,
Communities & Local Government,DCLG,02/10/2012,Services provided by other Govt Orgs,Neighbourhoods,VALUATION OFFICE AGENCY,,Public Bodies,,5106184013,RTB VOA Valuation 12/13,W1B 5BU,"41,019.00",Yes
Communities & Local Government,DCLG,02/10/2012,Telephone call costs,Finance & Corporate Services,DAMOVO UK LTD,,Large,,5106184068,Telephony Charges,RH12 4QP,294.00,
Communities & Local Government,DCLG,02/10/2012,Telephone call costs,Finance & Corporate Services,DAMOVO UK LTD,,Large,,5106184070,Telephony Charges,RH12 4QP,600.00,
Communities & Local Government,DCLG,02/10/2012,Training,Finance & Corporate Services,PRIVACY & DATA PROTECTION LTD,,Micro,,5106183956,11th Annual Data Protection Compliance,SW4 0JY,995.00,
Communities & Local Government,DCLG,02/10/2012,Waste Disposal and pest control,Localism,FIRE SERVICE COLLEGE,,Public Bodies,,5106184026,Pest Control,GL56 0RH,47.25,
Communities & Local Government,DCLG,02/10/2012,Waste Disposal and pest control,Localism,FIRE SERVICE COLLEGE,,Public Bodies,,5106184026,Waste,GL56 0RH,31.50,
Communities & Local Government,DCLG,02/10/2012,Water,Localism,FIRE SERVICE COLLEGE,,Public Bodies,,5106184026,Water Quality,GL56 0RH,82.74,
Communities & Local Government,DCLG,02/10/2012,Work In Progress Pre-Cert 40373 Spend,Neighbourhoods,COVENTRY UNIVERSITY ENTERPRISES LTD,,Medium,,7600002840,ERDF Claim - 25 - P1,CV1 2TT,"14,942.51",
Communities & Local Government,DCLG,02/10/2012,Work In Progress Pre-Cert 40373 Spend,Neighbourhoods,COVENTRY UNIVERSITY ENTERPRISES LTD,,Medium,,7600002851,ERDF Claim - 2 - P2,CV1 2TT,"5,192.82",
Communities & Local Government,DCLG,02/10/2012,Work In Progress Pre-Cert 40373 Spend,Neighbourhoods,COVENTRY UNIVERSITY ENTERPRISES LTD,,Medium,,7600002853,ERDF Claim - 3 - P2,CV1 2TT,"9,682.67",
Communities & Local Government,DCLG,02/10/2012,Work In Progress Pre-Cert 40373 Spend,Neighbourhoods,COVENTRY UNIVERSITY ENTERPRISES LTD,,Medium,,7600002854,ERDF Claim - 4 - P2,CV1 2TT,"11,544.38",
Communities & Local Government,DCLG,02/10/2012,Work In Progress Pre-Cert 40373 Spend,Neighbourhoods,COVENTRY UNIVERSITY ENTERPRISES LTD,,Medium,,7600002855,ERDF Claim - 5 - P2,CV1 2TT,"13,945.43",
Communities & Local Government,DCLG,02/10/2012,Work In Progress Pre-Cert 40373 Spend,Neighbourhoods,COVENTRY UNIVERSITY ENTERPRISES LTD,,Medium,,7600002856,ERDF Claim - 6 - P2,CV1 2TT,"10,695.87",
Communities & Local Government,DCLG,02/10/2012,Work In Progress Pre-Cert 40373 Spend,Neighbourhoods,DURHAM COUNTY COUNCIL,,,,7600002841,ERDF Claim - 8 - P3,DL16 6JQ,"4,914.50",
Communities & Local Government,DCLG,02/10/2012,Work In Progress Pre-Cert 40373 Spend,Neighbourhoods,MARKETING BIRMINGHAM LIMITED,,Medium,,7600002843,ERDF Claim - 10 - P3,B1 2ND,"93,182.98",
Communities & Local Government,DCLG,02/10/2012,Work In Progress Pre-Cert 40373 Spend,Neighbourhoods,NORFOLK & WAVENEY ENTERPRISE SERV'S,,Medium,,7600002846,ERDF Claim - 15 - P2,NR2 1JH,"33,741.35",
Communities & Local Government,DCLG,02/10/2012,Work In Progress Pre-Cert 40373 Spend,Neighbourhoods,NORTHUMBERLAND COUNTY COUNCIL,,,,7600002852,ERDF Claim - 9 - P2,NE61 2EF,"9,662.40",
Communities & Local Government,DCLG,02/10/2012,Work In Progress Pre-Cert 40373 Spend,Neighbourhoods,SANDWELL MBC,,Large,,7600002842,ERDF Claim - 3 - P3,B69 3BS,"60,094.32",
Communities & Local Government,DCLG,02/10/2012,Work In Progress Pre-Cert 40373 Spend,Neighbourhoods,SANDWELL MBC,,Large,,7600002845,ERDF Claim - 37 - P3,B69 3BS,"2,010.37",
Communities & Local Government,DCLG,02/10/2012,Work In Progress Pre-Cert 40373 Spend,Neighbourhoods,SOLIHULL METROPOLITAN BC,,Large,,7600002844,ERDF Claim - 40 - P3,B91 3QS,"5,186.35",
Communities & Local Government,DCLG,02/10/2012,Work In Progress Pre-Cert 40373 Spend,Neighbourhoods,UNIVERSITY OF SUNDERLAND,,,,7600002837,ERDF Claim - 10 - P2,SR1 3SD,"21,601.25",
Communities & Local Government,DCLG,02/10/2012,Work In Progress Pre-Cert 40373 Spend,Neighbourhoods,UNIVERSITY OF WOLVERHAMPTON,,Large,,7600002838,ERDF Claim - 34 - P2,WV1 1SB,"20,848.52",
Communities & Local Government,DCLG,02/10/2012,Work In Progress Pre-Cert 40373 Spend,Neighbourhoods,UNIVERSITY OF WOLVERHAMPTON,,Large,,7600002847,ERDF Claim - 29 - P1,WV1 1SB,"61,273.37",
Communities & Local Government,DCLG,02/10/2012,Work In Progress Pre-Cert 40373 Spend,Neighbourhoods,UNIVERSITY OF WOLVERHAMPTON,,Large,,7600002848,ERDF Claim - 30 - P1,WV1 1SB,"80,517.07",
Communities & Local Government,DCLG,02/10/2012,Work In Progress Pre-Cert 40373 Spend,Neighbourhoods,UNIVERSITY OF WOLVERHAMPTON,,Large,,7600002849,ERDF Claim - 31 - P1,WV1 1SB,"123,357.86",
Communities & Local Government,DCLG,02/10/2012,Work In Progress Pre-Cert 40467 Spend,Neighbourhoods,DERBY CITY COUNCIL,,Large,,7600002839,ERDF Claim - 7 - P2,DE1 2FE,"8,695.04",
Communities & Local Government,DCLG,02/10/2012,Work In Progress Pre-Cert 40467 Spend,Neighbourhoods,MANSFIELD DISTRICT COUNCIL,,Large,,7600002857,ERDF Claim - 7 - P2,NG19 7BH,"160,314.22",
Communities & Local Government,DCLG,03/10/2012,Agency Staff,Finance & Corporate Services,CAPITA RESOURCING LTD,,Large,,5106184098,CPD 0492030 Capita MSP,SL6 1DP,"2,412.61",
Communities & Local Government,DCLG,03/10/2012,Agency Staff,Finance & Corporate Services,CAPITA RESOURCING LTD,,Large,,5106184110,CPD 0492030 Capita MSP,SL6 1DP,"6,312.53",
Communities & Local Government,DCLG,03/10/2012,Agency Staff,Localism,CAPITA RESOURCING LTD,,Large,,5106184096,Extension (1),SL6 1DP,"1,737.48",
Communities & Local Government,DCLG,03/10/2012,Agency Staff,Localism,CAPITA RESOURCING LTD,,Large,,5106184119,Interim manager,SL6 1DP,"2,379.96",
Communities & Local Government,DCLG,03/10/2012,Agency Staff,Neighbourhoods,CAPITA RESOURCING LTD,,Large,,5106184084,Extension (1),SL6 1DP,"2,895.78",
Communities & Local Government,DCLG,03/10/2012,Agency Staff,Neighbourhoods,CAPITA RESOURCING LTD,,Large,,5106184097,Extension (1),SL6 1DP,"2,574.00",
Communities & Local Government,DCLG,03/10/2012,Agency Staff,Neighbourhoods,CAPITA RESOURCING LTD,,Large,,5106184100,Interim manager,SL6 1DP,"2,882.22",
Communities & Local Government,DCLG,03/10/2012,Agency Staff,Neighbourhoods,CAPITA RESOURCING LTD,,Large,,5106184101,Extension (1),SL6 1DP,"1,737.47",
Communities & Local Government,DCLG,03/10/2012,Agency Staff,Neighbourhoods,CAPITA RESOURCING LTD,,Large,,5106184102,Extension (1),SL6 1DP,"11,003.96",
Communities & Local Government,DCLG,03/10/2012,Agency Staff,Neighbourhoods,CAPITA RESOURCING LTD,,Large,,5106184103,Extension (1),SL6 1DP,"1,930.50",
Communities & Local Government,DCLG,03/10/2012,Agency Staff,Neighbourhoods,CAPITA RESOURCING LTD,,Large,,5106184105,Interim Manager,SL6 1DP,"2,767.08",
Communities & Local Government,DCLG,03/10/2012,Agency Staff,Neighbourhoods,CAPITA RESOURCING LTD,,Large,,5106184107,Contractor ERDF,SL6 1DP,522.00,
Communities & Local Government,DCLG,03/10/2012,Agency Staff,Neighbourhoods,CAPITA RESOURCING LTD,,Large,,5106184108,Expenses,SL6 1DP,290.71,
Communities & Local Government,DCLG,03/10/2012,Agency Staff,Neighbourhoods,CAPITA RESOURCING LTD,,Large,,5106184108,Interim Manager,SL6 1DP,"2,955.96",
Communities & Local Government,DCLG,03/10/2012,Agency Staff,Neighbourhoods,CAPITA RESOURCING LTD,,Large,,5106184111,DayRate INTERREG 2Seas-Territorial Facil,SL6 1DP,"1,940.22",
Communities & Local Government,DCLG,03/10/2012,Agency Staff,Neighbourhoods,CAPITA RESOURCING LTD,,Large,,5106184112,Extension (3),SL6 1DP,"3,056.64",
Communities & Local Government,DCLG,03/10/2012,Agency Staff,Neighbourhoods,CAPITA RESOURCING LTD,,Large,,5106184114,Extension,SL6 1DP,"4,557.00",
Communities & Local Government,DCLG,03/10/2012,Agency Staff,Neighbourhoods,CAPITA RESOURCING LTD,,Large,,5106184115,Extension (3),SL6 1DP,"5,501.95",
Communities & Local Government,DCLG,03/10/2012,Agency Staff,Neighbourhoods,CAPITA RESOURCING LTD,,Large,,5106184117,CPD 0492030 Capita MSP,SL6 1DP,112.56,
Communities & Local Government,DCLG,03/10/2012,Agency Staff,Neighbourhoods,CAPITA RESOURCING LTD,,Large,,5106184117,DayRate ERREG2 Seas-Territorial,SL6 1DP,835.20,
Communities & Local Government,DCLG,03/10/2012,Agency Staff,Neighbourhoods,CAPITA RESOURCING LTD,,Large,,5106184124,Expenses,SL6 1DP,"1,267.09",
Communities & Local Government,DCLG,03/10/2012,Agency Staff,Neighbourhoods,CAPITA RESOURCING LTD,,Large,,5106184124,Interim Manager,SL6 1DP,"3,574.98",
Communities & Local Government,DCLG,03/10/2012,Agency Staff,Neighbourhoods,CAPITA RESOURCING LTD,,Large,,5106184125,Extension (1),SL6 1DP,"2,895.78",
Communities & Local Government,DCLG,03/10/2012,Agency Staff,Neighbourhoods,REED EMPLOYMENT SERVICES,,Large,,5106184127,Agency Staff pay (6 month contract),SW20 0BA,"1,008.77",
Communities & Local Government,DCLG,03/10/2012,Agency Staff,Neighbourhoods,REED EMPLOYMENT SERVICES,,Large,,5106184128,Agency staff pay cost (6 month contract),SW20 0BA,944.83,
Communities & Local Government,DCLG,03/10/2012,Agency Staff,Neighbourhoods,REED EMPLOYMENT SERVICES,,Large,,5106184130,Interim staff -,SW20 0BA,539.90,
Communities & Local Government,DCLG,03/10/2012,Agency Staff,Troubled Families,CAPITA RESOURCING LTD,,Large,,5106184116,Interim Areas Manager,SL6 1DP,"4,800.00",
Communities & Local Government,DCLG,03/10/2012,Current Grants to Non Profit Bodies,Localism,INFORM,Yes,Micro,,2100222141,Transition Funding Agreement,WC2A 2AE,"100,000.00",Yes
Communities & Local Government,DCLG,03/10/2012,Grant in Aid to NDPBs (non budget),Localism,VALUATION TRIBUNAL SERVICE,,,,2100222146,,E1 1DU,"437,986.00",Yes
Communities & Local Government,DCLG,03/10/2012,Office Supplies,Finance & Corporate Services,CONSERVATION BY DESIGN LTD,,Large,,5106184150,Polyester Pockets PYSPOS0008 229x311mm,MK42 7AW,420.00,
Communities & Local Government,DCLG,03/10/2012,Office Supplies,Finance & Corporate Services,CONSERVATION BY DESIGN LTD,,Large,,5106184150,Postage,MK42 7AW,12.00,
Communities & Local Government,DCLG,03/10/2012,Printing,Finance & Corporate Services,STATIONERY OFFICE LTD,,Large,,5106184148,Non-Vatable,NR3 1PD,208.00,
Communities & Local Government,DCLG,03/10/2012,Printing,Finance & Corporate Services,STATIONERY OFFICE LTD,,Large,,5106184148,VAT chargeable,NR3 1PD,130.00,
Communities & Local Government,DCLG,03/10/2012,Professional services,Localism,VALUATION OFFICE AGENCY,,Public Bodies,,2100222147,,W1B 5BU,"12,416,666.66",
Communities & Local Government,DCLG,03/10/2012,Professional services,Neighbourhoods,OVE ARUP & PARTNERS,,Large,,5106184083,MSD5,NE1 3PL,"6,943.20",
Communities & Local Government,DCLG,03/10/2012,Publications,Finance & Corporate Services,JONES YARRELL LEADENHALL LTD,,Large,,5106184138,Journal and newspaper supply 2012-13,E3 3JH,335.77,
Communities & Local Government,DCLG,03/10/2012,Training,Finance & Corporate Services,BUSINESS IN THE COMMUNITY,Yes,Large,,5106184123,Race for Opportunity - 2 Places,N1 7RQ,500.00,
Communities & Local Government,DCLG,03/10/2012,Training,Finance & Corporate Services,KAPLAN FINANCIAL LIMITED,,,,5106184137,ACCA course,NE1 3PA,"1,009.37",
Communities & Local Government,DCLG,03/10/2012,Training,Localism,DESIGN COUNCIL,,Medium,,5106184142,Training,WC2E 7DL,"1,850.00",
Communities & Local Government,DCLG,03/10/2012,Web Services,Neighbourhoods,BRAMBLE. CC,,Public Bodies,,5106184134,Update to IT software following recent policy change,SE1 7SP,330.00,
Communities & Local Government,DCLG,03/10/2012,Work In Progress Pre-Cert 40373 Spend,Neighbourhoods,ASSOCIATION OF TOWN CENTRE MGT,,,,7600002862,ERDF Claim - 12 - P3,SW1H 9BT,"28,777.53",
Communities & Local Government,DCLG,03/10/2012,Work In Progress Pre-Cert 40373 Spend,Neighbourhoods,CALDERDALE METROPOLITAN BOROUGH COU,,Large,,2100222144,Yorks & Humber ERDF Programme,HX1 1UN,"134,432.30",
Communities & Local Government,DCLG,03/10/2012,Work In Progress Pre-Cert 40373 Spend,Neighbourhoods,CAMBRIDGESHIRE COUNTY COUNCIL,,,,7600002860,ERDF Claim - 10 - P3,CB3 0AP,"6,087.36",
Communities & Local Government,DCLG,03/10/2012,Work In Progress Pre-Cert 40373 Spend,Neighbourhoods,EAST MIDLANDS CHAMBER OF COMMERCE,,Small,,7600002861,ERDF Claim - 6 - P2,S41 7NA,"10,704.15",
Communities & Local Government,DCLG,03/10/2012,Work In Progress Pre-Cert 40373 Spend,Neighbourhoods,LEICESTER UNIVERSITY,,Large,,7600002859,ERDF Claim - 7 - P1,LE1 7RH,"35,664.37",
Communities & Local Government,DCLG,03/10/2012,Work In Progress Pre-Cert 40373 Spend,Neighbourhoods,NAT INS OF AGRICULTURAL BOTANY TRUS,,Medium,,7600002858,ERDF Claim - 9 - P1,CB3 0LE,"51,254.74",
Communities & Local Government,DCLG,03/10/2012,Work In Progress Pre-Cert 40467 Spend,Neighbourhoods,CAMBRIDGESHIRE COUNTY COUNCIL,,,,7600002860,ERDF Claim - 10 - P3,CB3 0AP,"1,457.80",
Communities & Local Government,DCLG,03/10/2012,Work In Progress Pre-Cert 40467 Spend,Neighbourhoods,NAT INS OF AGRICULTURAL BOTANY TRUS,,Medium,,7600002858,ERDF Claim - 9 - P1,CB3 0LE,"2,232.26",
Communities & Local Government,DCLG,04/10/2012,Accommodation,Finance & Corporate Services,GREATER LONDON AUTHORITY,,Large,,2100222034,LTGDC Support Payment to the GLA,SE10 1AP,"330,000.00",
Communities & Local Government,DCLG,04/10/2012,Agency Staff,Finance & Corporate Services,MANPOWER UK LTD,,Large,,5106184159,Temp information specialist,UB8 1AB,791.11,
Communities & Local Government,DCLG,04/10/2012,Agency Staff,Finance & Corporate Services,MANPOWER UK LTD,,Large,,5106184161,Temp information specialist,UB8 1AB,523.54,
Communities & Local Government,DCLG,04/10/2012,Current Grants to Non Profit Bodies,Neighbourhoods,BRITISH CHAMBERS OF COMMERCE,,,,2100222177,4th claim BCC Local Enterprise Partnership Network,CV1 3PJ,"55,859.00",Yes
Communities & Local Government,DCLG,04/10/2012,Electricity,Finance & Corporate Services,BRITISH GAS TRADING LIMITED,,Large,,5106183438,Paradise Circus Electricity 2012.-13,OX4 2JY,814.54,
Communities & Local Government,DCLG,04/10/2012,Electricity,Finance & Corporate Services,BRITISH GAS TRADING LIMITED,,Large,,5106183440,Mast House Electricity 2012-13,OX4 2JY,"1,521.29",
Communities & Local Government,DCLG,04/10/2012,Electricity,Finance & Corporate Services,EDF ENERGY 1 LIMITED,,Large,,5106184081,WM Wolverhampton Electricity - 2012-13,PL3 5XQ,378.00,
Communities & Local Government,DCLG,04/10/2012,Gas,Finance & Corporate Services,CORONA ENERGY LTD,,Medium,,5106183561,St Philips Place Gas - 5%,WD17 1JW,336.84,
Communities & Local Government,DCLG,04/10/2012,Gas,Finance & Corporate Services,CORONA ENERGY LTD,,Medium,,5106183620,St Philips Place Gas - 5%,WD17 1JW,352.13,
Communities & Local Government,DCLG,04/10/2012,Gas,Finance & Corporate Services,CORONA ENERGY LTD,,Medium,,5106183952,Eland House Gas 2012-13,WD17 1JW,460.32,
Communities & Local Government,DCLG,04/10/2012,Housing Revenue Account Surplus,Neighbourhoods,LEWISHAM LB (HSG),,,,5000210387,Overpayment of Grant recovered by Exchequer,SE6 4RU,"-789,925.00",Yes
Communities & Local Government,DCLG,04/10/2012,IT - Software Maintenance,Neighbourhoods,DELL CORPORATION LTD,,Large,,5106184151,IT Equipment,RG12 1LF,356.40,
Communities & Local Government,DCLG,04/10/2012,Management Consultancy,Neighbourhoods,AMEC ENVIRONMENT & INFRASTRUCTURE,,Large,,5106184171,Strategic Environmental Assessment,NE3 3PX,"61,641.70",
Communities & Local Government,DCLG,04/10/2012,Management Consultancy,Neighbourhoods,AMEC ENVIRONMENT & INFRASTRUCTURE,,Large,,5106184173,Strategic Environmental Assessment,NE3 3PX,"5,811.65",
Communities & Local Government,DCLG,04/10/2012,Management Consultancy,Neighbourhoods,AMEC ENVIRONMENT & INFRASTRUCTURE,,Large,,5106184173,Strategic Environmental Assessment,NE3 3PX,"45,626.31",
Communities & Local Government,DCLG,04/10/2012,Office Machinery (<5000),Finance & Corporate Services,DANWOOD GROUP LTD,,Large,,5106184152,Quarterly rental M700U copier 7500843X,LN6 3DG,700.57,
Communities & Local Government,DCLG,04/10/2012,Rates,Finance & Corporate Services,BIRMINGHAM CITY COUNCIL,,Public Bodies,,5106184176,5 SPP Annual Bid Levy Rates 2012/13,B4 7AB,"15,064.00",
Communities & Local Government,DCLG,04/10/2012,Recruitment,Finance & Corporate Services,TMP (UK) LTD,,Large,,5106184154,RECRUITMENT OF LEGAL TRAINEES,WC2A 1QS,"9,974.40",
Communities & Local Government,DCLG,04/10/2012,Steady State Service Provision,Finance & Corporate Services,LOGICA (CMG UK LTD),,Large,,5106184086,Payroll Services 2012/13,TW18 4LG,"1,137.18",
Communities & Local Government,DCLG,04/10/2012,Steady State Service Provision,Finance & Corporate Services,LOGICA (CMG UK LTD),,Large,,5106184167,Payroll Services 2012/13,TW18 4LG,"11,950.03",
Communities & Local Government,DCLG,04/10/2012,Steady State Service Provision,Neighbourhoods,LOCALITY,,Medium,,5106184156,Community Right to Buy,N1 6DR,"61,774.00",
Communities & Local Government,DCLG,04/10/2012,Work In Progress Pre-Cert 40373 Spend,Neighbourhoods,DE MONTFORT UNIVERSITY,,Large,,7600002863,ERDF Claim - 17 - P1,LE1 9BH,"20,380.64",
Communities & Local Government,DCLG,04/10/2012,Work In Progress Pre-Cert 40373 Spend,Neighbourhoods,NBV (NOTTINGHAM BUSINESS VENTURE),,Small,,7600002864,ERDF Claim - 7 - P2,NG7 7FN,"4,313.84",
Communities & Local Government,DCLG,04/10/2012,Work In Progress Pre-Cert 40373 Spend,Neighbourhoods,SERCO REGIONAL SERVICES LTD,,,,7600002865,ERDF Claim - 14 - P2,PL6 8BT,"154,541.05",
Communities & Local Government,DCLG,05/10/2012,Accommodation Service Charges,Finance & Corporate Services,DTZ DEBENHAM TIE LEUNG,,Large,,5106184185,Serv Chg 01/07/12 to 30/06/13,B4 6AJ,"1,234.41",
Communities & Local Government,DCLG,05/10/2012,Cap Grants to Local Authorities (DEL),Neighbourhoods,TELFORD & WREKIN DC,,,,2100221943,Ironbridge Gorge 2012/13 - Capital Grant,TF3 4LB,"700,000.00",Yes
Communities & Local Government,DCLG,05/10/2012,Current (non AEF) Grants to Local Authorities,Finance & Corporate Services,DURHAM & DARLINGTON FIRE RESCUE,,Public Bodies,,2100218678,Grant of the Regional Fire Control Centre Oct 2012,DH1 5UE,"123,141.00",Yes
Communities & Local Government,DCLG,05/10/2012,Current (non AEF) Grants to Local Authorities,Finance & Corporate Services,GREATER LONDON AUTHORITY,,Large,,2100218677,Grant of the Regional Fire Control Centre Oct 2012,SE10 1AP,"224,731.00",Yes
Communities & Local Government,DCLG,05/10/2012,Current (non AEF) Grants to Local Authorities,Finance & Corporate Services,GREATER MANCHESTER FIRE & RESCUE,,Public Bodies,,2100218676,Grant of the Regional Fire Control Centre Oct 2012,M27 8US,"146,172.60",Yes
Communities & Local Government,DCLG,05/10/2012,Legal Fees,Neighbourhoods,MISS NICHOLA ELLARD,,,,2100222229,PAYMENT OF INVOICE 6/12,,"7,980.00",
Communities & Local Government,DCLG,05/10/2012,Rent,Finance & Corporate Services,SAVILLS COMMERCIAL LTD,,Large,,5106184170,Lateral Rent 2012/13,M2 4AW,"1,131.16",
Communities & Local Government,DCLG,05/10/2012,Services provided by other Govt Orgs,Finance & Corporate Services,HM REVENUE & CUSTOMS,,Public Bodies,,5106184179,Civil Service E-recruitment Service Fees,BN12 4XH,"1,317.00",Yes
Communities & Local Government,DCLG,05/10/2012,Training,Finance & Corporate Services,QA  LTD,,Large,,5106184178,APMP PRINCE2 Practitioners (inc exam),LS12 6BD,648.00,
Communities & Local Government,DCLG,05/10/2012,Training,Finance & Corporate Services,WHITE PAPER CONFERENCE CO LTD,,Small,,5106184177,Procurement law training,SW6 3BU,269.00,
Communities & Local Government,DCLG,05/10/2012,Vehicle Maintenance,Localism,BABCOCK CRITICAL SERVICES LTD,,Large,,5106184087,Planned Vehicle Maintenance 12/13,NG15 0DR,"629,535.82",
Communities & Local Government,DCLG,05/10/2012,Work In Progress Pre-Cert 40373 Spend,Neighbourhoods,ASTON UNIVERSITY,,Large,,7600002871,ERDF Claim - 31 - P1,B4 7ET,"6,327.23",
Communities & Local Government,DCLG,05/10/2012,Work In Progress Pre-Cert 40373 Spend,Neighbourhoods,ASTON UNIVERSITY,,Large,,7600002872,ERDF Claim - 1 - P1,B4 7ET,"3,732.99",
Communities & Local Government,DCLG,05/10/2012,Work In Progress Pre-Cert 40373 Spend,Neighbourhoods,ASTON UNIVERSITY,,Large,,7600002882,ERDF Claim - 7 - P1,B4 7ET,"27,064.29",
Communities & Local Government,DCLG,05/10/2012,Work In Progress Pre-Cert 40373 Spend,Neighbourhoods,ASTON UNIVERSITY,,Large,,7600002901,ERDF Claim - 8 - P1,B4 7ET,"27,835.31",
Communities & Local Government,DCLG,05/10/2012,Work In Progress Pre-Cert 40373 Spend,Neighbourhoods,ASTON UNIVERSITY,,Large,,7600002912,ERDF Claim - 32 - P1,B4 7ET,"4,282.54",
Communities & Local Government,DCLG,05/10/2012,Work In Progress Pre-Cert 40373 Spend,Neighbourhoods,BIRMINGHAM CITY COUNCIL (NOT RATES),,Large,,7600002869,ERDF Claim - 15 - P3,B1 1BB,"2,071.69",
Communities & Local Government,DCLG,05/10/2012,Work In Progress Pre-Cert 40373 Spend,Neighbourhoods,BIRMINGHAM CITY COUNCIL (NOT RATES),,Large,,7600002884,ERDF Claim - 1 - P3,B1 1BB,"3,920.38",
Communities & Local Government,DCLG,05/10/2012,Work In Progress Pre-Cert 40373 Spend,Neighbourhoods,BIRMINGHAM CITY COUNCIL (NOT RATES),,Large,,7600002885,ERDF Claim - 1 - P3,B1 1BB,"1,814.50",
Communities & Local Government,DCLG,05/10/2012,Work In Progress Pre-Cert 40373 Spend,Neighbourhoods,BIRMINGHAM SCIENCE PARK ASTON,,Small,,7600002877,ERDF Claim - 21 - P1,B7 4BB,"9,150.49",
Communities & Local Government,DCLG,05/10/2012,Work In Progress Pre-Cert 40373 Spend,Neighbourhoods,BIRMINGHAM SCIENCE PARK ASTON,,Small,,7600002878,ERDF Claim - 22 - P1,B7 4BB,"15,522.61",
Communities & Local Government,DCLG,05/10/2012,Work In Progress Pre-Cert 40373 Spend,Neighbourhoods,BIRMINGHAM SCIENCE PARK ASTON,,Small,,7600002893,ERDF Claim - 14 - P2,B7 4BB,"5,059.09",
Communities & Local Government,DCLG,05/10/2012,Work In Progress Pre-Cert 40373 Spend,Neighbourhoods,COVENTRY CITY COUNCIL,,Large,,7600002904,ERDF Claim - 33 - P3,CV1 5RR,"11,360.00",
Communities & Local Government,DCLG,05/10/2012,Work In Progress Pre-Cert 40373 Spend,Neighbourhoods,COVENTRY UNIVERSITY ENTERPRISES LTD,,Medium,,7600002880,ERDF Claim - 32 - P4,CV1 2TT,"6,128.70",
Communities & Local Government,DCLG,05/10/2012,Work In Progress Pre-Cert 40373 Spend,Neighbourhoods,COVENTRY UNIVERSITY ENTERPRISES LTD,,Medium,,7600002892,ERDF Claim - 13 - P2,CV1 2TT,"209,693.36",
Communities & Local Government,DCLG,05/10/2012,Work In Progress Pre-Cert 40373 Spend,Neighbourhoods,COVENTRY UNIVERSITY ENTERPRISES LTD,,Medium,,7600002897,ERDF Claim - 8 - P1,CV1 2TT,"3,928.69",
Communities & Local Government,DCLG,05/10/2012,Work In Progress Pre-Cert 40373 Spend,Neighbourhoods,COVENTRY UNIVERSITY ENTERPRISES LTD,,Medium,,7600002905,ERDF Claim - 7 - P2,CV1 2TT,"28,597.46",
Communities & Local Government,DCLG,05/10/2012,Work In Progress Pre-Cert 40373 Spend,Neighbourhoods,HEART OF ENGLAND FINE FOODS,,Small,,7600002879,ERDF Claim - 2 - P2,SY1 3TG,"21,264.53",
Communities & Local Government,DCLG,05/10/2012,Work In Progress Pre-Cert 40373 Spend,Neighbourhoods,HEART OF ENGLAND FINE FOODS,,Small,,7600002906,ERDF Claim - 3 - P2,SY1 3TG,"23,363.25",
Communities & Local Government,DCLG,05/10/2012,Work In Progress Pre-Cert 40373 Spend,Neighbourhoods,HEART OF ENGLAND FINE FOODS,,Small,,7600002907,ERDF Claim - 4 - P2,SY1 3TG,"28,342.89",
Communities & Local Government,DCLG,05/10/2012,Work In Progress Pre-Cert 40373 Spend,Neighbourhoods,HEART OF ENGLAND FINE FOODS,,Small,,7600002911,ERDF Claim - 5 - P2,SY1 3TG,"21,853.34",
Communities & Local Government,DCLG,05/10/2012,Work In Progress Pre-Cert 40373 Spend,Neighbourhoods,HEBDEN BRIDGE COMMUNITY ASSOC LTD,,Micro,,7600002870,ERDF Claim - 30 - P2-YH,HX7 7BY,"1,615.00",
Communities & Local Government,DCLG,05/10/2012,Work In Progress Pre-Cert 40373 Spend,Neighbourhoods,HEBDEN BRIDGE COMMUNITY ASSOC LTD,,Micro,,7600002873,ERDF Claim - 31 - P2-YH,HX7 7BY,899.28,
Communities & Local Government,DCLG,05/10/2012,Work In Progress Pre-Cert 40373 Spend,Neighbourhoods,KEY FUND (STH YORKSHIRE) LTD,,,,7600002908,ERDF Claim - 26 - P3-YH,S9 3TY,"2,527.04",
Communities & Local Government,DCLG,05/10/2012,Work In Progress Pre-Cert 40373 Spend,Neighbourhoods,KEY FUND (STH YORKSHIRE) LTD,,,,7600002909,ERDF Claim - 26 - P3-SY,S9 3TY,"1,906.02",
Communities & Local Government,DCLG,05/10/2012,Work In Progress Pre-Cert 40373 Spend,Neighbourhoods,KIRKLEES COUNCIL,,,,7600002890,ERDF Claim - 28 - P3-SY,HD1 2TG,"20,286.59",
Communities & Local Government,DCLG,05/10/2012,Work In Progress Pre-Cert 40373 Spend,Neighbourhoods,KIRKLEES COUNCIL,,,,7600002891,ERDF Claim - 28 - P3-YH,HD1 2TG,"9,624.27",
Communities & Local Government,DCLG,05/10/2012,Work In Progress Pre-Cert 40373 Spend,Neighbourhoods,NORTH EAST LINCOLNSHIRE COUNCIL,,,,7600002876,ERDF Claim - 17 - P3-YH,DN31 1HN,"28,538.71",
Communities & Local Government,DCLG,05/10/2012,Work In Progress Pre-Cert 40373 Spend,Neighbourhoods,ROTHERHAM METROPOLITAN BC,,,,7600002874,ERDF Claim - 16 - P2-SY,S65 1DJ,"15,963.59",
Communities & Local Government,DCLG,05/10/2012,Work In Progress Pre-Cert 40373 Spend,Neighbourhoods,SANDWELL MBC,,Large,,7600002894,ERDF Claim - 4 - P3,B69 3BS,"19,130.35",
Communities & Local Government,DCLG,05/10/2012,Work In Progress Pre-Cert 40373 Spend,Neighbourhoods,SHEFFIELD CITY COUNCIL,,,,7600002886,ERDF Claim - 17 - P2-SY,S1 2SH,"26,024.96",
Communities & Local Government,DCLG,05/10/2012,Work In Progress Pre-Cert 40373 Spend,Neighbourhoods,SOLIHULL METROPOLITAN BC,,Large,,7600002875,ERDF Claim - 19 - P3,B91 3QS,"4,273.18",
Communities & Local Government,DCLG,05/10/2012,Work In Progress Pre-Cert 40373 Spend,Neighbourhoods,SOLIHULL METROPOLITAN BC,,Large,,7600002889,ERDF Claim - 17 - P2,B91 3QS,"10,139.46",
Communities & Local Government,DCLG,05/10/2012,Work In Progress Pre-Cert 40373 Spend,Neighbourhoods,SOLIHULL METROPOLITAN BC,,Large,,7600002914,ERDF Claim - 1 - P5,B91 3QS,"12,723.08",
Communities & Local Government,DCLG,05/10/2012,Work In Progress Pre-Cert 40373 Spend,Neighbourhoods,SOUTH WEST SCREEN,,,,7600002896,ERDF Claim - 10 - P1,BS1 5BT,"58,294.80",
Communities & Local Government,DCLG,05/10/2012,Work In Progress Pre-Cert 40373 Spend,Neighbourhoods,STOKE-ON-TRENT CITY COUNCIL,,Large,,7600002888,ERDF Claim - 3 - P2,ST4 1HP,"32,942.26",
Communities & Local Government,DCLG,05/10/2012,Work In Progress Pre-Cert 40373 Spend,Neighbourhoods,STOKE-ON-TRENT CITY COUNCIL,,Large,,7600002913,ERDF Claim - 2 - P2,ST4 1HP,"17,215.61",
Communities & Local Government,DCLG,05/10/2012,Work In Progress Pre-Cert 40373 Spend,Neighbourhoods,UNIVERSITY OF THE WEST OF ENGLAND,,,,7600002868,ERDF Claim - 10 - P1,BS16 1QY,"201,140.37",
Communities & Local Government,DCLG,05/10/2012,Work In Progress Pre-Cert 40373 Spend,Neighbourhoods,UNIVERSITY OF WOLVERHAMPTON,,Large,,7600002887,ERDF Claim - 17 - P1,WV1 1SB,"20,697.88",
Communities & Local Government,DCLG,05/10/2012,Work In Progress Pre-Cert 40373 Spend,Neighbourhoods,UNIVERSITY OF WOLVERHAMPTON,,Large,,7600002898,ERDF Claim - 33 - P1,WV1 1SB,"35,233.23",
Communities & Local Government,DCLG,05/10/2012,Work In Progress Pre-Cert 40373 Spend,Neighbourhoods,UNIVERSITY OF WOLVERHAMPTON,,Large,,7600002899,ERDF Claim - 34 - P1,WV1 1SB,"19,369.72",
Communities & Local Government,DCLG,05/10/2012,Work In Progress Pre-Cert 40373 Spend,Neighbourhoods,UNIVERSITY OF WOLVERHAMPTON,,Large,,7600002903,ERDF Claim - 35 - P1,WV1 1SB,"10,566.48",
Communities & Local Government,DCLG,05/10/2012,Work In Progress Pre-Cert 40373 Spend,Neighbourhoods,WEST MIDS MANUFACTURING CONSORTIUM,,Small,,7600002881,ERDF Claim - 45 - P2,WV10 9TG,"95,772.32",
Communities & Local Government,DCLG,05/10/2012,Work In Progress Pre-Cert 40373 Spend,Neighbourhoods,WOLVERHAMPTON CITY COUNCIL,,Large,,7600002867,ERDF Claim - 9 - P3,WV1 1RL,"11,022.36",
Communities & Local Government,DCLG,05/10/2012,Work In Progress Pre-Cert 40373 Spend,Neighbourhoods,WOLVERHAMPTON CITY COUNCIL,,Large,,7600002900,ERDF Claim - 14 - P2,WV1 1RL,"51,041.93",
Communities & Local Government,DCLG,05/10/2012,Work In Progress Pre-Cert 40467 Spend,Neighbourhoods,ASTON UNIVERSITY,,Large,,7600002871,ERDF Claim - 31 - P1,B4 7ET,"5,398.83",
Communities & Local Government,DCLG,05/10/2012,Work In Progress Pre-Cert 40467 Spend,Neighbourhoods,COVENTRY CITY COUNCIL,,Large,,7600002895,ERDF Claim - 34 - P3,CV1 5RR,"35,084.59",
Communities & Local Government,DCLG,05/10/2012,Work In Progress Pre-Cert 40467 Spend,Neighbourhoods,COVENTRY CITY COUNCIL,,Large,,7600002904,ERDF Claim - 33 - P3,CV1 5RR,"68,655.77",
Communities & Local Government,DCLG,05/10/2012,Work In Progress Pre-Cert 40467 Spend,Neighbourhoods,DONCASTER METROPOLITAN BC,,,,7600002883,ERDF Claim - 9 - P4-SY,DN1 1DE,"18,107.91",
Communities & Local Government,DCLG,05/10/2012,Work In Progress Pre-Cert 40467 Spend,Neighbourhoods,HEBDEN BRIDGE COMMUNITY ASSOC LTD,,Micro,,7600002870,ERDF Claim - 30 - P2-YH,HX7 7BY,"52,225.11",
Communities & Local Government,DCLG,05/10/2012,Work In Progress Pre-Cert 40467 Spend,Neighbourhoods,HEBDEN BRIDGE COMMUNITY ASSOC LTD,,Micro,,7600002873,ERDF Claim - 31 - P2-YH,HX7 7BY,"76,876.61",
Communities & Local Government,DCLG,05/10/2012,Work In Progress Pre-Cert 40467 Spend,Neighbourhoods,KEY FUND (STH YORKSHIRE) LTD,,,,7600002908,ERDF Claim - 26 - P3-YH,S9 3TY,"34,055.00",
Communities & Local Government,DCLG,05/10/2012,Work In Progress Pre-Cert 40467 Spend,Neighbourhoods,KEY FUND (STH YORKSHIRE) LTD,,,,7600002909,ERDF Claim - 26 - P3-SY,S9 3TY,"66,250.00",
Communities & Local Government,DCLG,05/10/2012,Work In Progress Pre-Cert 40467 Spend,Neighbourhoods,KIRKLEES COUNCIL,,,,7600002890,ERDF Claim - 28 - P3-SY,HD1 2TG,"135,584.79",
Communities & Local Government,DCLG,05/10/2012,Work In Progress Pre-Cert 40467 Spend,Neighbourhoods,KIRKLEES COUNCIL,,,,7600002891,ERDF Claim - 28 - P3-YH,HD1 2TG,"594,133.53",
Communities & Local Government,DCLG,05/10/2012,Work In Progress Pre-Cert 40467 Spend,Neighbourhoods,PROSPECT ESTATES LIMITED,,,,7600002902,ERDF Claim - 26 - P3-SY,LS21 1AQ,"114,833.44",
Communities & Local Government,DCLG,05/10/2012,Work In Progress Pre-Cert 40467 Spend,Neighbourhoods,SOLIHULL METROPOLITAN BC,,Large,,7600002875,ERDF Claim - 19 - P3,B91 3QS,"47,556.69",
Communities & Local Government,DCLG,05/10/2012,Work In Progress Pre-Cert 40467 Spend,Neighbourhoods,SOUTH YORKS PASSENGER TRANS EXEC,,,,7600002910,ERDF Claim - 55 - P4-SY,S1 2BQ,"54,177.68",
Communities & Local Government,DCLG,05/10/2012,Work In Progress Pre-Cert 40467 Spend,Neighbourhoods,TRURO & PENWITH COLLEGE,,,,7600002866,ERDF Claim - 20 - P3,TR1 3XX,"171,812.78",
Communities & Local Government,DCLG,05/10/2012,Work In Progress Pre-Cert 40467 Spend,Neighbourhoods,WOLVERHAMPTON CITY COUNCIL,,Large,,7600002867,ERDF Claim - 9 - P3,WV1 1RL,"2,057.88",
Communities & Local Government,DCLG,08/10/2012,Current Grants to Non Profit Bodies,Neighbourhoods,VALUATION OFFICE AGENCY,,Public Bodies,,2100222285,1800003902012- Qtr payment to VOA,W1B 5BU,"610,000.00",Yes
Communities & Local Government,DCLG,08/10/2012,Fees,Localism,MR MICHAEL HEAD,,,,2100222284,FEES + EXPS + ERS - MR M HEAD,,"3,053.73",
Communities & Local Government,DCLG,08/10/2012,Gas,Finance & Corporate Services,CORONA ENERGY LTD,,Medium,,2100222368,Bridge House Gas 2012-13,WD17 1JW,"-15,939.31",
Communities & Local Government,DCLG,08/10/2012,Gas,Finance & Corporate Services,CORONA ENERGY LTD,,Medium,,5106184174,Bridge House Gas 2012-13,WD17 1JW,"15,939.31",
Communities & Local Government,DCLG,08/10/2012,Grant in Aid to NDPBs (non budget),Localism,COMMISSION LOCAL ADMINISTRATION,,,,2100222142,GIA- Ombudsman Servi-handling of parental complain,SW1P 4QP,"916,000.00",Yes
Communities & Local Government,DCLG,08/10/2012,Housing Revenue Account Surplus,Neighbourhoods,LONDON BOROUGH OF HACKNEY,,,,5000210447,Overpayment of Grant recovered by Exchequer,E8 4RU,"-3,530,267.00",Yes
Communities & Local Government,DCLG,08/10/2012,IT - Service Contracts,Finance & Corporate Services,STERIA LIMITED,,Large,,5106184214,DCLG Link Service Feb 2011 to Feb 2013,M14 0WN,"13,347.36",
Communities & Local Government,DCLG,08/10/2012,IT - Service Contracts,Finance & Corporate Services,STERIA LIMITED,,Large,,5106184215,LOGASNet Service March 11 - Feb 13,M14 0WN,"48,586.71",
Communities & Local Government,DCLG,08/10/2012,IT - Service Contracts,Finance & Corporate Services,STERIA LIMITED,,Large,,5106184215,DCLG Link Service Feb 2011 to Feb 2013,M14 0WN,"325,947.38",
Communities & Local Government,DCLG,08/10/2012,IT - Service Contracts,Finance & Corporate Services,STERIA LIMITED,,Large,,5106184216,CAN 61 MFD (Regional Offices),M14 0WN,"17,675.99",
Communities & Local Government,DCLG,08/10/2012,IT - Service Contracts,Finance & Corporate Services,SWIRRL IT LIMITED,,Micro,,5106183665,remote Application Development,FK7 7WT,"11,268.79",
Communities & Local Government,DCLG,08/10/2012,Legal Fees,Finance & Corporate Services,SNR DENTON UK  LLP,,Large,,5106183664,(STA) FireContol Litigation & Property,EC4M 7WS,"4,776.00",
Communities & Local Government,DCLG,08/10/2012,NNDR Outturn Adjustments,Localism,NORTH DORSET DC,,,,5000212030,Grant Payable by Exchequer,DT11 7LL,"72,286.00",Yes
Communities & Local Government,DCLG,08/10/2012,Professional services,Neighbourhoods,MR R S MILNE,,,,2100222283,Jounalist/research costs for production of weekly e-news,,"1,133.00",
Communities & Local Government,DCLG,08/10/2012,Professional services,Neighbourhoods,MS E M COCHRANE,,,,2100222282,Jounalist/research costs for production of weekly e-news,,"1,359.60",
Communities & Local Government,DCLG,08/10/2012,Publicity,Finance & Corporate Services,DURRANTS LTD,,Large,,5106184218,Press Cuttings,EC1Y 8QE,"2,756.87",
Communities & Local Government,DCLG,08/10/2012,Travel and Subsistence Account,Finance & Corporate Services,GOVERNMENT CAR & DESPATCH AGENCY,,Public Bodies,,5106184210,Ministerial Cars,SW8 5AX,300.00,
Communities & Local Government,DCLG,08/10/2012,Travel and Subsistence Account,Finance & Corporate Services,GOVERNMENT CAR & DESPATCH AGENCY,,Public Bodies,,5106184212,Ministerial Cars,SW8 5AX,281.94,
Communities & Local Government,DCLG,08/10/2012,Vehicle hire,Finance & Corporate Services,GOVERNMENT CAR & DESPATCH AGENCY,,Public Bodies,,5106184143,Ministerial Cars,SW8 5AX,289.80,
Communities & Local Government,DCLG,08/10/2012,Work In Progress Pre-Cert 40373 Spend,Neighbourhoods,LEEDS CITY COLLEGE,,,,7600002920,ERDF Claim - 24 - P2-SY,LS3 1AA,"33,469.51",
Communities & Local Government,DCLG,08/10/2012,Work In Progress Pre-Cert 40373 Spend,Neighbourhoods,LEEDS CITY COLLEGE,,,,7600002921,ERDF Claim - 24 - P2-YH,LS3 1AA,"45,683.74",
Communities & Local Government,DCLG,08/10/2012,Work In Progress Pre-Cert 40373 Spend,Neighbourhoods,SCARBOROUGH BOROUGH COUNCIL,,,,7600002919,ERDF Claim - 16 - P3-YH,YO11 2HG,"17,490.87",
Communities & Local Government,DCLG,08/10/2012,Work In Progress Pre-Cert 40373 Spend,Neighbourhoods,UNIVERSITY OF SHEFFIELD,,,,7600002924,ERDF Claim - 24 - P1-SY,S60 5TZ,"100,644.74",
Communities & Local Government,DCLG,08/10/2012,Work In Progress Pre-Cert 40373 Spend,Neighbourhoods,UNIVERSITY OF SHEFFIELD,,,,7600002925,ERDF Claim - 24 - P1-YH,S60 5TZ,"54,392.79",
Communities & Local Government,DCLG,08/10/2012,Work In Progress Pre-Cert 40373 Spend,Neighbourhoods,UNIVERSITY OF SHEFFIELD,,,,7600002926,ERDF Claim - 25 - P1-SY,S60 5TZ,"33,823.50",
Communities & Local Government,DCLG,08/10/2012,Work In Progress Pre-Cert 40373 Spend,Neighbourhoods,UNIVERSITY OF SHEFFIELD,,,,7600002927,ERDF Claim - 25 - P1-YH,S60 5TZ,"22,548.93",
Communities & Local Government,DCLG,08/10/2012,Work In Progress Pre-Cert 40467 Spend,Neighbourhoods,DONCASTER METROPOLITAN BC,,,,7600002915,ERDF Claim - 10 - P4-SY,DN1 1DE,"740,886.57",
Communities & Local Government,DCLG,08/10/2012,Work In Progress Pre-Cert 40467 Spend,Neighbourhoods,DONCASTER METROPOLITAN BC,,,,7600002916,ERDF Claim - 11 - P4-SY,DN1 1DE,"55,021.03",
Communities & Local Government,DCLG,08/10/2012,Work In Progress Pre-Cert 40467 Spend,Neighbourhoods,DONCASTER METROPOLITAN BC,,,,7600002918,ERDF Claim - 12 - P4-SY,DN1 1DE,"761,491.04",
Communities & Local Government,DCLG,08/10/2012,Work In Progress Pre-Cert 40467 Spend,Neighbourhoods,DONCASTER METROPOLITAN BC,,,,7600002922,ERDF Claim - 13 - P4-SY,DN1 1DE,"185,398.90",
Communities & Local Government,DCLG,08/10/2012,Work In Progress Pre-Cert 40467 Spend,Neighbourhoods,DONCASTER METROPOLITAN BC,,,,7600002923,ERDF Claim - 14 - P4-SY,DN1 1DE,"8,555.82",
Communities & Local Government,DCLG,08/10/2012,Work In Progress Pre-Cert 40467 Spend,Neighbourhoods,TRURO & PENWITH COLLEGE,,,,7600002928,ERDF Claim - 21 - P3,TR1 3XX,"399,601.98",
Communities & Local Government,DCLG,08/10/2012,Work In Progress Pre-Cert 40467 Spend,Neighbourhoods,UK HISTORIC BUILDG PRESERVATION TRU,Yes,Small,,7600002917,ERDF Claim - 13 - P2,SW1W 0QP,"61,298.56",
Communities & Local Government,DCLG,08/10/2012,Work In Progress Pre-Cert 40467 Spend,Neighbourhoods,UNIVERSITY OF SHEFFIELD,,,,7600002926,ERDF Claim - 25 - P1-SY,S60 5TZ,"137,797.42",
Communities & Local Government,DCLG,09/10/2012,Agency Staff,Finance & Corporate Services,OFFICE ANGELS LTD,,Large,,5106184240,2 temps: booking of perf man training,B37 7YE,305.28,
Communities & Local Government,DCLG,09/10/2012,Agency Staff,Finance & Corporate Services,OFFICE ANGELS LTD,,Large,,5106184255,2 temps: booking of perf man training,B37 7YE,376.51,
Communities & Local Government,DCLG,09/10/2012,IT - Service Contracts,Finance & Corporate Services,STERIA LTD,,Large,,5106184221,CCN232 - LOGASnet Enhancement,M14 0WN,"8,638.62",
Communities & Local Government,DCLG,09/10/2012,IT - Service Contracts,Neighbourhoods,DEPARTMENT FOR WORK & PENSIONS,,Public Bodies,,5106184239,MCIS Govt Gateway ICT services renewal,FY5 3TA,"5,000.00",
Communities & Local Government,DCLG,09/10/2012,Mileage UK,Neighbourhoods,MR GORDON SCOTT,,,,2100222367,EXPENSES : 17 AND 26 SEPT 2012,,20.00,
Communities & Local Government,DCLG,09/10/2012,Publications,Finance & Corporate Services,DCLG GOVERNMENT PROCUREMENT CARD,,,,1000003679,Payment for books urgently required by Busin,TN37 7GA,693.24,
Communities & Local Government,DCLG,09/10/2012,Publications,Finance & Corporate Services,STATIONERY OFFICE LTD,,Large,,5106184257,Books - Legal,NR3 1PD,440.30,
Communities & Local Government,DCLG,09/10/2012,Travel and Subsistence Account,Neighbourhoods,MR GORDON SCOTT,,,,2100222367,EXPENSES : 17 AND 26 SEPT 2012,,428.50,
Communities & Local Government,DCLG,09/10/2012,Work In Progress Pre-Cert 40373 Spend,Neighbourhoods,BIRMINGHAM CHAMBER OF COMMERCE,,Small,,7600002932,ERDF Claim - 29 - P2,B15 3BU,"2,443.73",
Communities & Local Government,DCLG,09/10/2012,Work In Progress Pre-Cert 40373 Spend,Neighbourhoods,CHESTERFIELD BOROUGH COUNCIL,,Large,,7600002930,ERDF Claim - 8 - P2,S40 1LP,"17,062.88",
Communities & Local Government,DCLG,09/10/2012,Work In Progress Pre-Cert 40373 Spend,Neighbourhoods,CHESTERFIELD BOROUGH COUNCIL,,Large,,7600002931,ERDF Claim - 13 - P2,S40 1LP,"13,602.21",
Communities & Local Government,DCLG,09/10/2012,Work In Progress Pre-Cert 40373 Spend,Neighbourhoods,NOTTINGHAM TRENT UNIVERSITY,,Large,,7600002929,ERDF Claim - 15 - P1,NG1 4FZ,"110,657.98",
Communities & Local Government,DCLG,09/10/2012,Work In Progress Pre-Cert 40373 Spend,Neighbourhoods,YTKO LIMITED,,,,7600002933,ERDF Claim - 36 - P2,CB4 0WS,"204,208.01",
Communities & Local Government,DCLG,09/10/2012,Work In Progress Pre-Cert 40467 Spend,Neighbourhoods,CHESTERFIELD BOROUGH COUNCIL,,Large,,7600002930,ERDF Claim - 8 - P2,S40 1LP,"27,865.00",
Communities & Local Government,DCLG,10/10/2012,Agency Staff,Finance & Corporate Services,CAPITA RESOURCING LTD,,Large,,5106184264,Interim - Capita,SL6 1DP,"9,201.98",
Communities & Local Government,DCLG,10/10/2012,Agency Staff,Finance & Corporate Services,CAPITA RESOURCING LTD,,Large,,5106184267,CPD 0492030 Capita MSP,SL6 1DP,"2,305.80",
Communities & Local Government,DCLG,10/10/2012,Agency Staff,Finance & Corporate Services,CAPITA RESOURCING LTD,,Large,,5106184269,Interim Manager,SL6 1DP,"2,520.00",
Communities & Local Government,DCLG,10/10/2012,Agency Staff,Finance & Corporate Services,CAPITA RESOURCING LTD,,Large,,5106184282,CPD 0492030 Capita MSP,SL6 1DP,"3,322.38",
Communities & Local Government,DCLG,10/10/2012,Agency Staff,Finance & Corporate Services,CAPITA RESOURCING LTD,,Large,,5106184298,CPD 0492030 Capita MSP,SL6 1DP,"3,446.58",
Communities & Local Government,DCLG,10/10/2012,Agency Staff,Finance & Corporate Services,SQUARE ONE RESOURCES LTD,,Medium,,5106184195,SAPDev 1.4.12-31.3.13,EC2A 2AD,"2,858.82",
Communities & Local Government,DCLG,10/10/2012,Agency Staff,Localism,CAPITA RESOURCING LTD,,Large,,5106184270,Interim manager,SL6 1DP,"2,379.96",
Communities & Local Government,DCLG,10/10/2012,Agency Staff,Localism,CAPITA RESOURCING LTD,,Large,,5106184285,Extension (1),SL6 1DP,"3,127.46",
Communities & Local Government,DCLG,10/10/2012,Agency Staff,Neighbourhoods,CAPITA RESOURCING LTD,,Large,,5106184271,Extension (1),SL6 1DP,"2,895.78",
Communities & Local Government,DCLG,10/10/2012,Agency Staff,Neighbourhoods,CAPITA RESOURCING LTD,,Large,,5106184272,Extension (1),SL6 1DP,"2,895.78",
Communities & Local Government,DCLG,10/10/2012,Agency Staff,Neighbourhoods,CAPITA RESOURCING LTD,,Large,,5106184273,Extension (1),SL6 1DP,"2,895.78",
Communities & Local Government,DCLG,10/10/2012,Agency Staff,Neighbourhoods,CAPITA RESOURCING LTD,,Large,,5106184274,Extension (1),SL6 1DP,"2,316.62",
Communities & Local Government,DCLG,10/10/2012,Agency Staff,Neighbourhoods,CAPITA RESOURCING LTD,,Large,,5106184275,Expenses,SL6 1DP,42.98,
Communities & Local Government,DCLG,10/10/2012,Agency Staff,Neighbourhoods,CAPITA RESOURCING LTD,,Large,,5106184275,Interim Manager,SL6 1DP,"1,018.94",
Communities & Local Government,DCLG,10/10/2012,Agency Staff,Neighbourhoods,CAPITA RESOURCING LTD,,Large,,5106184278,Extension (3),SL6 1DP,"2,445.31",
Communities & Local Government,DCLG,10/10/2012,Agency Staff,Neighbourhoods,CAPITA RESOURCING LTD,,Large,,5106184279,Interim manager,SL6 1DP,"2,882.22",
Communities & Local Government,DCLG,10/10/2012,Agency Staff,Neighbourhoods,CAPITA RESOURCING LTD,,Large,,5106184283,CPD 0492030 Capita MSP,SL6 1DP,66.65,
Communities & Local Government,DCLG,10/10/2012,Agency Staff,Neighbourhoods,CAPITA RESOURCING LTD,,Large,,5106184283,DayRate ERREG2 Seas-Territorial,SL6 1DP,522.00,
Communities & Local Government,DCLG,10/10/2012,Agency Staff,Neighbourhoods,CAPITA RESOURCING LTD,,Large,,5106184284,Extension (3),SL6 1DP,"6,112.80",
Communities & Local Government,DCLG,10/10/2012,Agency Staff,Neighbourhoods,CAPITA RESOURCING LTD,,Large,,5106184286,DayRate INTERREG 2Seas-Territorial Facil,SL6 1DP,"2,069.57",
Communities & Local Government,DCLG,10/10/2012,Agency Staff,Neighbourhoods,CAPITA RESOURCING LTD,,Large,,5106184286,Expenses INTERREG 2Seas-Territorial Faci,SL6 1DP,615.89,
Communities & Local Government,DCLG,10/10/2012,Agency Staff,Neighbourhoods,CAPITA RESOURCING LTD,,Large,,5106184289,Contractor ERDF,SL6 1DP,522.00,
Communities & Local Government,DCLG,10/10/2012,Agency Staff,Neighbourhoods,CAPITA RESOURCING LTD,,Large,,5106184291,Extension (1),SL6 1DP,"2,574.00",
Communities & Local Government,DCLG,10/10/2012,Agency Staff,Neighbourhoods,CAPITA RESOURCING LTD,,Large,,5106184294,Interim Manager,SL6 1DP,"2,767.08",
Communities & Local Government,DCLG,10/10/2012,Agency Staff,Neighbourhoods,CAPITA RESOURCING LTD,,Large,,5106184296,Extension (1),SL6 1DP,"1,930.50",
Communities & Local Government,DCLG,10/10/2012,Agency Staff,Troubled Families,CAPITA RESOURCING LTD,,Large,,5106184281,Interim Areas Manager,SL6 1DP,"2,400.00",
Communities & Local Government,DCLG,10/10/2012,Capital Grants to Private Sect Non Profit,Localism,CFOA (NATIONAL RESILIANCE) LTD,,Small,,2100222092,CNR Grant 2012-13 - 2nd Half,GL56 0RH,"930,000.00",Yes
Communities & Local Government,DCLG,10/10/2012,Current (non AEF) Grants to Local Authorities,Neighbourhoods,ASHFORD BC,,Public Bodies,,2100222441,Mary Portas Pilot Round 2 Grants,TN23 0XA,"100,000.00",Yes
Communities & Local Government,DCLG,10/10/2012,Current (non AEF) Grants to Local Authorities,Neighbourhoods,BOURNEMOUTH BC,,Large,,2100222439,Coastal Communities Grant,BH1 2BU,"2,000,000.00",Yes
Communities & Local Government,DCLG,10/10/2012,Current (non AEF) Grants to Local Authorities,Neighbourhoods,BRAINTREE DC,,,,2100222442,Mary Portas Pilot Round 2 Grants,CM7 6HB,"86,500.00",Yes
Communities & Local Government,DCLG,10/10/2012,Current (non AEF) Grants to Local Authorities,Neighbourhoods,BRIGHTON & HOVE COUNCIL,,,,2100222443,Mary Portas Pilot Round 2 Grants,BN1 1JP,"83,485.00",Yes
Communities & Local Government,DCLG,10/10/2012,Current (non AEF) Grants to Local Authorities,Neighbourhoods,CHARNWOOD BOROUGH COUNCIL,,Public Bodies,,2100222444,Mary Portas Pilot Round 2 Grants,LE11 2TN,"100,000.00",Yes
Communities & Local Government,DCLG,10/10/2012,Current (non AEF) Grants to Local Authorities,Neighbourhoods,LANCASTER CITY  COUNCIL,,,,2100222447,Mary Portas Pilot Round 2 Grants,LA1 1PJ,"100,000.00",Yes
Communities & Local Government,DCLG,10/10/2012,Current (non AEF) Grants to Local Authorities,Neighbourhoods,LIVERPOOL CITY COUNCIL,,,,2100222445,Mary Portas Pilot Round 2 Grants,L1 6JB,"100,000.00",Yes
Communities & Local Government,DCLG,10/10/2012,Current (non AEF) Grants to Local Authorities,Neighbourhoods,MID DEVON DISTRICT COUNCIL,,,,2100222446,Mary Portas Pilot Round 2 Grants,EX16 6PP,"100,000.00",Yes
Communities & Local Government,DCLG,10/10/2012,Current (non AEF) Grants to Local Authorities,Neighbourhoods,NORTHUMBERLAND CC,,Large,,2100222448,Mary Portas Pilot Round 2 Grants,NE61 2EF,"100,000.00",Yes
Communities & Local Government,DCLG,10/10/2012,Current (non AEF) Grants to Local Authorities,Neighbourhoods,ROTHERHAM MBC,,,,2100222449,Mary Portas Pilot Round 2 Grants,S60 1AE,"100,000.00",Yes
Communities & Local Government,DCLG,10/10/2012,Current (non AEF) Grants to Local Authorities,Neighbourhoods,SUFFOLK COUNTY COUNCIL,,Large,,2100222440,Coastal Communities Grant 2012-13,IP1 2BX,"762,000.00",Yes
Communities & Local Government,DCLG,10/10/2012,Current (non AEF) Grants to Local Authorities,Neighbourhoods,WARWICK DISTRICT COUNCIL,,Public Bodies,,2100222450,Mary Portas Pilot Round 2 Grants,CV32 5QS,"100,000.00",Yes
Communities & Local Government,DCLG,10/10/2012,Current (non AEF) Grants to Local Authorities,Neighbourhoods,WAVENEY DISTRICT COUNCIL,,,,2100222451,Mary Portas Pilot Round 2 Grants,NR32 1HS,"100,000.00",Yes
Communities & Local Government,DCLG,10/10/2012,Current (non AEF) Grants to Local Authorities,Neighbourhoods,WELWYN HATFIELD COUNCIL,,Large,,2100222452,Mary Portas Pilot Round 2 Grants,AL8 6AE,"100,000.00",Yes
Communities & Local Government,DCLG,10/10/2012,Current Grants to Non Profit Bodies,Localism,CFOA (NATIONAL RESILIANCE) LTD,,Small,,2100222092,CNR Grant 2012-13 - 2nd Half,GL56 0RH,"1,947,500.00",Yes
Communities & Local Government,DCLG,10/10/2012,Electricity,Finance & Corporate Services,EDF ENERGY 1 LIMITED,,Large,,2300001917,SE Fareham Electricity 2012-13,PL3 5XQ,"-8,002.93",
Communities & Local Government,DCLG,10/10/2012,Electricity,Finance & Corporate Services,EDF ENERGY 1 LIMITED,,Large,,5106184310,Y&H Wakefield Electricity - 2012-13,PL3 5XQ,"5,123.38",
Communities & Local Government,DCLG,10/10/2012,Electricity,Finance & Corporate Services,EDF ENERGY 1 LIMITED,,Large,,5106184311,WM Wolverhampton Electricity - 2012-13,PL3 5XQ,"4,996.40",
Communities & Local Government,DCLG,10/10/2012,Electricity,Finance & Corporate Services,EDF ENERGY 1 LIMITED,,Large,,5106184313,SW Taunton Electricity - 2012-13,PL3 5XQ,"5,464.27",
Communities & Local Government,DCLG,10/10/2012,Grant in Aid to NDPBs (non budget),Neighbourhoods,HOMES & COMMUNITIES AGENCY,,Public Bodies,,2100222430,HCA claim 21   GIA for Oct 2012,NE11 0NA,"16,463,157.00",Yes
Communities & Local Government,DCLG,10/10/2012,Legal Fees,Finance & Corporate Services,TREASURY SOLICITOR,,Public Bodies,,2100222374,LEGAL FEES (ADVERSE COSTS)-REF Q10128/9A/ROP/A4,WC2B 4TS,"10,705.00",
Communities & Local Government,DCLG,10/10/2012,Management Consultancy,Neighbourhoods,CEL GROUP,,Medium,,5106184302,Payments for 1/10/12 - 30/09/13,SK13 8HT,"85,415.60",
Communities & Local Government,DCLG,10/10/2012,NNDR Billing Authorities Receipts,Localism,OFFICE OF THE PAYMASTER GENERAL (NN,,,,2100222435,NNDR Billing Authority Receipts,RH10 1UH,"2,026,027,703.00",Yes
Communities & Local Government,DCLG,10/10/2012,NNDR Central List Receipts,Localism,OFFICE OF THE PAYMASTER GENERAL (NN,,,,2100222435,NNDR Central List Receipts,RH10 1UH,"127,196,307.00",Yes
Communities & Local Government,DCLG,10/10/2012,NNDR Outturn Receipts,Localism,OFFICE OF THE PAYMASTER GENERAL (NN,,,,2100222435,NNDR Outturn Receipts,RH10 1UH,"406,720,424.00",Yes
Communities & Local Government,DCLG,10/10/2012,Office Supplies,Finance & Corporate Services,ROYAL MAIL,,Large,,5106184334,Timed delivery postal service,S49 1HQ,-340.00,
Communities & Local Government,DCLG,10/10/2012,Professional services,Localism,GOVT ACTUARYS DEPARTMENT,,Public Bodies,,5106184266,Provision of Pension Advice LGPS,EC4A 1AB,"14,168.02",
Communities & Local Government,DCLG,10/10/2012,Professional services,Localism,GOVT ACTUARYS DEPARTMENT,,Public Bodies,,5106184280,Provision of Pension Advice LGPS,EC4A 1AB,"36,184.92",
Communities & Local Government,DCLG,10/10/2012,Professional services,Neighbourhoods,CIRIA,,Small,,5106184307,2 Additional tests,EC1V 9BP,"3,462.00",
Communities & Local Government,DCLG,10/10/2012,Research,Neighbourhoods,CAG CONSULTANTS,,Micro,,5106184227,Completion of  fieldwork,NW5 1LX,"16,632.00",
Communities & Local Government,DCLG,10/10/2012,Research,Neighbourhoods,E C HARRIS LLP,,Large,,5106184263,Contract Management,N1 9AB,"4,350.00",
Communities & Local Government,DCLG,10/10/2012,Steady State Service Provision,Neighbourhoods,TRIBAL EDUCATION,,Large,,5106184261,Year 1 Grant Administration,BS2 8RR,"17,971.00",
Communities & Local Government,DCLG,10/10/2012,Telecoms equipment (non-capitalised),Finance & Corporate Services,DAMOVO UK LTD,,Large,,5106184316,Telephony - 8 new sites,RH12 4QP,"10,056.11",
Communities & Local Government,DCLG,10/10/2012,Telecoms equipment (non-capitalised),Finance & Corporate Services,DAMOVO UK LTD,,Large,,5106184318,Telephony - 8 new sites,RH12 4QP,"6,988.44",
Communities & Local Government,DCLG,10/10/2012,Training,Finance & Corporate Services,SOCIAL FIRMS UK,Yes,Micro,,2100222494,Insight Development Programme,RH1 6QZ,"-1,758.00",
Communities & Local Government,DCLG,10/10/2012,Training,Finance & Corporate Services,SOCIAL FIRMS UK,Yes,Micro,,5106184360,Insight Development Programme,RH1 6QZ,"1,758.00",
Communities & Local Government,DCLG,10/10/2012,Training,Finance & Corporate Services,WHITEHALL & INDUSTRY GROUP,,Small,,5106184223,Insight development - business visits,SW1H 9EX,500.00,
Communities & Local Government,DCLG,10/10/2012,Water,Finance & Corporate Services,SIEMENS FINANCIAL SERVICES LTD,,Large,,5106184308,rental for water logic machine,SL2 4JS,754.20,
Communities & Local Government,DCLG,10/10/2012,Work In Progress Pre-Cert 40373 Spend,Neighbourhoods,ACCESS TO BUSINESS,,Small,,7600002947,ERDF Claim - 3 - P2,WV2 1AA,"26,370.61",
Communities & Local Government,DCLG,10/10/2012,Work In Progress Pre-Cert 40373 Spend,Neighbourhoods,BIRMINGHAM CITY COUNCIL (NOT RATES),,Large,,7600002935,ERDF Claim - 16 - P3,B1 1BB,711.38,
Communities & Local Government,DCLG,10/10/2012,Work In Progress Pre-Cert 40373 Spend,Neighbourhoods,BIRMINGHAM CITY COUNCIL (NOT RATES),,Large,,7600002939,ERDF Claim - 2 - P3,B1 1BB,"6,215.36",
Communities & Local Government,DCLG,10/10/2012,Work In Progress Pre-Cert 40373 Spend,Neighbourhoods,CALDERDALE METROPOLITAN BOROUGH COU,,Large,,7600002937,ERDF Claim - 15 - P2-YH,HX1 1UN,"20,747.41",
Communities & Local Government,DCLG,10/10/2012,Work In Progress Pre-Cert 40373 Spend,Neighbourhoods,CALDERDALE METROPOLITAN BOROUGH COU,,Large,,7600002940,ERDF Claim - 14 - P2-YH,HX1 1UN,"26,845.90",
Communities & Local Government,DCLG,10/10/2012,Work In Progress Pre-Cert 40373 Spend,Neighbourhoods,CENTRE FOR PROCESS INNOVATION,,,,2300001920,Project NE004715 Irregularity,TS10 4RF,"-29,623.07",
Communities & Local Government,DCLG,10/10/2012,Work In Progress Pre-Cert 40373 Spend,Neighbourhoods,COVENTRY UNIVERSITY,,Large,,7600002948,ERDF Claim - 13 - P1,CV1 5FB,"12,799.35",
Communities & Local Government,DCLG,10/10/2012,Work In Progress Pre-Cert 40373 Spend,Neighbourhoods,COVENTRY UNIVERSITY ENTERPRISES LTD,,Medium,,7600002949,ERDF Claim - 3 - P1,CV1 2TT,"9,382.25",
Communities & Local Government,DCLG,10/10/2012,Work In Progress Pre-Cert 40373 Spend,Neighbourhoods,NOTTINGHAM UNIVERSITY,,Large,,7600002936,ERDF Claim - 8 - P1,NG7 2RD,"29,519.34",
Communities & Local Government,DCLG,10/10/2012,Work In Progress Pre-Cert 40373 Spend,Neighbourhoods,STAFFORDSHIRE & BLACK COUNTRY BIC L,,Small,,7600002938,ERDF Claim - 26 - P2,ST18 0AR,"19,984.75",
Communities & Local Government,DCLG,10/10/2012,Work In Progress Pre-Cert 40373 Spend,Neighbourhoods,STOKE-ON-TRENT CITY COUNCIL,,Large,,7600002934,ERDF Claim - 18 - P3,ST4 1HP,"5,040.65",
Communities & Local Government,DCLG,10/10/2012,Work In Progress Pre-Cert 40373 Spend,Neighbourhoods,STOKE-ON-TRENT CITY COUNCIL,,Large,,7600002946,ERDF Claim - 25 - P3,ST4 1HP,"8,695.39",
Communities & Local Government,DCLG,10/10/2012,Work In Progress Pre-Cert 40373 Spend,Neighbourhoods,STOKE-ON-TRENT CITY COUNCIL,,Large,,7600002950,ERDF Claim - 26 - P3,ST4 1HP,"6,545.56",
Communities & Local Government,DCLG,10/10/2012,Work In Progress Pre-Cert 40373 Spend,Neighbourhoods,STOKE-ON-TRENT CITY COUNCIL,,Large,,7600002952,ERDF Claim - 22 - P1,ST4 1HP,"17,569.93",
Communities & Local Government,DCLG,10/10/2012,Work In Progress Pre-Cert 40373 Spend,Neighbourhoods,UNIVERSITY HOSPITALS BIRMINGHAM,,Large,,7600002951,ERDF Claim - 23 - P4,B15 2WB,"8,943.65",
Communities & Local Government,DCLG,10/10/2012,Work In Progress Pre-Cert 40373 Spend,Neighbourhoods,UNIVERSITY OF WOLVERHAMPTON,,Large,,7600002942,ERDF Claim - 19 - P1,WV1 1SB,"30,271.75",
Communities & Local Government,DCLG,10/10/2012,Work In Progress Pre-Cert 40373 Spend,Neighbourhoods,WOLVERHAMPTON CITY COUNCIL,,Large,,7600002943,ERDF Claim - 15 - P2,WV1 1RL,"26,119.30",
Communities & Local Government,DCLG,10/10/2012,Work In Progress Pre-Cert 40373 Spend,Neighbourhoods,WOLVERHAMPTON CITY COUNCIL,,Large,,7600002944,ERDF Claim - 16 - P2,WV1 1RL,"7,014.25",
Communities & Local Government,DCLG,10/10/2012,Work In Progress Pre-Cert 40373 Spend,Neighbourhoods,WOLVERHAMPTON CITY COUNCIL,,Large,,7600002945,ERDF Claim - 17 - P2,WV1 1RL,"6,238.12",
Communities & Local Government,DCLG,10/10/2012,Work In Progress Pre-Cert 40467 Spend,Neighbourhoods,BIRMINGHAM CITY COUNCIL (NOT RATES),,Large,,7600002935,ERDF Claim - 16 - P3,B1 1BB,"1,695.60",
Communities & Local Government,DCLG,10/10/2012,Work In Progress Pre-Cert 40467 Spend,Neighbourhoods,COVENTRY UNIVERSITY,,Large,,7600002948,ERDF Claim - 13 - P1,CV1 5FB,"123,098.70",
Communities & Local Government,DCLG,10/10/2012,Work In Progress Pre-Cert 40467 Spend,Neighbourhoods,DONCASTER METROPOLITAN BC,,,,7600002941,ERDF Claim - 15 - P4-SY,DN1 1DE,"35,478.92",
Communities & Local Government,DCLG,10/10/2012,Work In Progress Pre-Cert 40467 Spend,Neighbourhoods,STOKE-ON-TRENT CITY COUNCIL,,Large,,7600002952,ERDF Claim - 22 - P1,ST4 1HP,"109,935.63",
Communities & Local Government,DCLG,11/10/2012,Current Grants to Non Profit Bodies,Neighbourhoods,GWE BUSINESS WEST LTD,,Medium,,2100222497,RGF- Qtr3 Grant 2012-13,SN1 5BP,"482,500.00",Yes
Communities & Local Government,DCLG,11/10/2012,IT Consultancy,Finance & Corporate Services,PHOENIX SOFTWARE,,Large,,5106184018,Prophix Professional Consultancy,YO42 1NS,"14,040.00",
Communities & Local Government,DCLG,11/10/2012,IT Maintenance,Finance & Corporate Services,NETFUNDI LTD,,Micro,,5106184373,DCLG Accident Reporting,LA1 1SQ,660.00,
Communities & Local Government,DCLG,11/10/2012,Legal Fees,Finance & Corporate Services,LANDMARK CHAMBERS,,Medium,,5106184361,Legal Advice,EC4A 2HG,"2,400.00",
Communities & Local Government,DCLG,11/10/2012,Medals,Localism,ROYAL MINT,,Public Bodies,,2100222519,20% Long service medal,CF72 8YT,-534.60,
Communities & Local Government,DCLG,11/10/2012,Medals,Localism,ROYAL MINT,,Public Bodies,,5106184422,20% Long service medal,CF72 8YT,534.60,
Communities & Local Government,DCLG,11/10/2012,Research,Neighbourhoods,IMPERIAL COLLEGE,,Large,,5106184342,DCLG Subs to the Energy Research Council,SW7 2AZ,"5,700.00",
Communities & Local Government,DCLG,11/10/2012,Steady State Service Provision,Finance & Corporate Services,ALLPAY LIMITED,,Medium,,5106184230,DC/DC Transaction Charges,HR1 3SE,423.35,
Communities & Local Government,DCLG,11/10/2012,Steady State Service Provision,Finance & Corporate Services,ALLPAY LIMITED,,Medium,,5106184230,Monthly Management Fee Payments,HR1 3SE,500.00,
Communities & Local Government,DCLG,11/10/2012,Steady State Service Provision,Localism,SOCIAL INVESTMENT BUSINESS,,Large,,5106184369,Community Right to Challenge,WC1H 8AG,"88,005.00",
Communities & Local Government,DCLG,11/10/2012,Telecoms equipment (non-capitalised),Localism,B T PAYMENT SERVICES LTD,,Large,,5106184359,BT OneBill Charges,DH98 1BT,399.94,
Communities & Local Government,DCLG,11/10/2012,Telephone call costs,Finance & Corporate Services,DAMOVO UK LTD,,Large,,5106184365,Telephony Charges,RH12 4QP,"1,229.63",
Communities & Local Government,DCLG,11/10/2012,Telephone call costs,Finance & Corporate Services,DAMOVO UK LTD,,Large,,5106184367,Telephony Charges,RH12 4QP,"4,493.30",
Communities & Local Government,DCLG,11/10/2012,Telephone call costs,Finance & Corporate Services,DAMOVO UK LTD,,Large,,5106184371,Telephony Charges,RH12 4QP,"82,816.64",
Communities & Local Government,DCLG,11/10/2012,Training,Finance & Corporate Services,SOCIAL FIRMS UK,Yes,Micro,,5106184350,Insight Development Programme,RH1 6QZ,"1,465.00",
Communities & Local Government,DCLG,11/10/2012,Training,Finance & Corporate Services,SOCIAL FIRMS UK,Yes,Micro,,5106184363,Insight Development Programme,RH1 6QZ,"1,465.00",
Communities & Local Government,DCLG,11/10/2012,Work In Progress Pre-Cert 40373 Spend,Neighbourhoods,BARNSLEY METROPOLITAN BC,,Public Bodies,,7600002953,ERDF Claim - 5 - P2-SY,S70 9OO,"64,254.15",
Communities & Local Government,DCLG,11/10/2012,Work In Progress Pre-Cert 40373 Spend,Neighbourhoods,CASE-DA,,Micro,,7600002967,ERDF Claim - 4 - P2,LE1 7EA,"38,159.26",
Communities & Local Government,DCLG,11/10/2012,Work In Progress Pre-Cert 40373 Spend,Neighbourhoods,E-FACTOR ENTERPRISE (NEL) LIMITED,,Small,,7600002956,ERDF Claim - 20 - P3-YH,DN34 5BQ,"94,026.16",
Communities & Local Government,DCLG,11/10/2012,Work In Progress Pre-Cert 40373 Spend,Neighbourhoods,E-FACTOR ENTERPRISE (NEL) LIMITED,,Small,,7600002957,ERDF Claim - 21 - P3-YH,DN34 5BQ,"82,110.47",
Communities & Local Government,DCLG,11/10/2012,Work In Progress Pre-Cert 40373 Spend,Neighbourhoods,E-FACTOR ENTERPRISE (NEL) LIMITED,,Small,,7600002958,ERDF Claim - 22 - P3-YH,DN34 5BQ,"74,151.26",
Communities & Local Government,DCLG,11/10/2012,Work In Progress Pre-Cert 40373 Spend,Neighbourhoods,E-FACTOR ENTERPRISE (NEL) LIMITED,,Small,,7600002959,ERDF Claim - 23 - P3-YH,DN34 5BQ,"84,954.90",
Communities & Local Government,DCLG,11/10/2012,Work In Progress Pre-Cert 40373 Spend,Neighbourhoods,KEY FUND (STH YORKSHIRE) LTD,,,,7600002961,ERDF Claim - 20 - P3-SY,S9 3TY,"7,515.62",
Communities & Local Government,DCLG,11/10/2012,Work In Progress Pre-Cert 40373 Spend,Neighbourhoods,KEY FUND (STH YORKSHIRE) LTD,,,,7600002966,ERDF Claim - 20 - P3-YH,S9 3TY,"21,709.93",
Communities & Local Government,DCLG,11/10/2012,Work In Progress Pre-Cert 40373 Spend,Neighbourhoods,NAT INS OF AGRICULTURAL BOTANY TRUS,,Medium,,7600002954,ERDF Claim - 11 - P1,CB3 0LE,"2,855.98",
Communities & Local Government,DCLG,11/10/2012,Work In Progress Pre-Cert 40373 Spend,Neighbourhoods,PLYMOUTH CITY COUNCIL,,,,7600002955,ERDF Claim - 15 - P3,PL1 1LF,"6,177.99",
Communities & Local Government,DCLG,11/10/2012,Work In Progress Pre-Cert 40373 Spend,Neighbourhoods,SHEFFIELD HALLAM UNIVERSITY,,,,7600002960,ERDF Claim - 43 - P1-SY,S1 1WB,"10,746.05",
Communities & Local Government,DCLG,11/10/2012,Work In Progress Pre-Cert 40373 Spend,Neighbourhoods,SHEFFIELD HALLAM UNIVERSITY,,,,7600002965,ERDF Claim - 43 - P1-YH,S1 1WB,"3,296.79",
Communities & Local Government,DCLG,11/10/2012,Work In Progress Pre-Cert 40373 Spend,Neighbourhoods,UNIVERSITY OF SHEFFIELD,,,,7600002963,ERDF Claim - 26 - P1-SY,S60 5TZ,"37,668.97",
Communities & Local Government,DCLG,11/10/2012,Work In Progress Pre-Cert 40373 Spend,Neighbourhoods,UNIVERSITY OF SHEFFIELD,,,,7600002964,ERDF Claim - 26 - P1-YH,S60 5TZ,"25,112.52",
Communities & Local Government,DCLG,11/10/2012,Work In Progress Pre-Cert 40467 Spend,Neighbourhoods,BRADFORD ENTERPRISE AGENCY LIMITED,,Micro,,7600002962,ERDF Claim - 24 - P2-YH,BD1 0AH,"36,784.39",
Communities & Local Government,DCLG,11/10/2012,Work In Progress Pre-Cert 40467 Spend,Neighbourhoods,KEY FUND (STH YORKSHIRE) LTD,,,,7600002961,ERDF Claim - 20 - P3-SY,S9 3TY,"53,000.00",
Communities & Local Government,DCLG,11/10/2012,Work In Progress Pre-Cert 40467 Spend,Neighbourhoods,KEY FUND (STH YORKSHIRE) LTD,,,,7600002966,ERDF Claim - 20 - P3-YH,S9 3TY,"322,420.00",
Communities & Local Government,DCLG,11/10/2012,Work In Progress Pre-Cert 40467 Spend,Neighbourhoods,NAT INS OF AGRICULTURAL BOTANY TRUS,,Medium,,7600002954,ERDF Claim - 11 - P1,CB3 0LE,"32,654.19",
Communities & Local Government,DCLG,11/10/2012,Work In Progress Pre-Cert 40467 Spend,Neighbourhoods,UNIVERSITY OF SHEFFIELD,,,,7600002963,ERDF Claim - 26 - P1-SY,S60 5TZ,"32,291.43",
Communities & Local Government,DCLG,12/10/2012,Agency Staff,Finance & Corporate Services,SBS GROUP (UK) LTD,,Large,,5106184443,SAP Technical Suport Sept to Mar2012,EC1N 8TS,"3,723.30",
Communities & Local Government,DCLG,12/10/2012,Capital Grants to People Non Profit,Localism,GROUNDWORK UK,Yes,,,2100222286,Qtr -3 Payment to Groundwork 2012/13,B1 2RR,"750,000.00",Yes
Communities & Local Government,DCLG,12/10/2012,Current Grants to Non Profit Bodies,Localism,CFOA (NATIONAL RESILIANCE) LTD,,Small,,2100222513,Fire Control Form Services Scheme,GL56 0RH,"87,500.00",Yes
Communities & Local Government,DCLG,12/10/2012,Current Grants to Non Profit Bodies,Localism,CFOA (NATIONAL RESILIANCE) LTD,,Small,,2100222513,Fire Control Form Services Scheme,GL56 0RH,"168,500.00",Yes
Communities & Local Government,DCLG,12/10/2012,Current Grants to Non Profit Bodies,Localism,CO-OPERATIVES UK,,Small,,2100222514,Grant Claim Jul to Sep 12- Community Shares unit,M60 0AS,"55,000.00",Yes
Communities & Local Government,DCLG,12/10/2012,Current Grants to Non Profit Bodies,Localism,GROUNDWORK UK,Yes,,,2100222286,Qtr -3 Payment to Groundwork 2012/13,B1 2RR,"1,250,000.00",Yes
Communities & Local Government,DCLG,12/10/2012,Electricity,Finance & Corporate Services,EDF ENERGY 1 LIMITED,,Large,,5106184452,Rivergate Electricity 2012-13,PL3 5XQ,"8,472.28",
Communities & Local Government,DCLG,12/10/2012,Electricity,Finance & Corporate Services,EDF ENERGY 1 LIMITED,,Large,,5106184453,Eland House Electricity 2012-13,PL3 5XQ,"35,900.42",
Communities & Local Government,DCLG,12/10/2012,IT - Service Contracts,Finance & Corporate Services,BOILERHOUSE,,Micro,,5106184323,Using and sharing data locally,B2 4EU,"4,945.00",
Communities & Local Government,DCLG,12/10/2012,LA General GLA  Grant Payable,Strategic Performance Team,GREATER LONDON AUTHORITY,,Large,,2100222287,2012-13 General GLA Grant,SE10 1AP,"2,303,125.00",Yes
Communities & Local Government,DCLG,12/10/2012,Legal Fees,Finance & Corporate Services,SNR DENTON UK  LLP,,Large,,5106184441,(STA) FireContol Litigation & Property,EC4M 7WS,890.40,
Communities & Local Government,DCLG,12/10/2012,Management Consultancy,Neighbourhoods,ADROIT ECONOMICS LTD,,Micro,,5106184386,Cheshire ERDF report,WA15 9RE,"14,214.30",
Communities & Local Government,DCLG,12/10/2012,Management Consultancy,Neighbourhoods,ADROIT ECONOMICS LTD,,Micro,,5106184387,Lancashire ERDF report,WA15 9RE,"7,107.16",
Communities & Local Government,DCLG,12/10/2012,Medals,Localism,ROYAL MINT,,Public Bodies,,5106184390,20% Long service medal,CF72 8YT,415.80,
Communities & Local Government,DCLG,12/10/2012,Medals,Localism,ROYAL MINT,,Public Bodies,,5106184408,20% Long service medal,CF72 8YT,386.09,
Communities & Local Government,DCLG,12/10/2012,Medals,Localism,ROYAL MINT,,Public Bodies,,5106184410,20% Long service medal,CF72 8YT,445.50,
Communities & Local Government,DCLG,12/10/2012,Medals,Localism,ROYAL MINT,,Public Bodies,,5106184412,20% Long service medal,CF72 8YT,267.30,
Communities & Local Government,DCLG,12/10/2012,Medals,Localism,ROYAL MINT,,Public Bodies,,5106184417,20% Long service medal,CF72 8YT,326.70,
Communities & Local Government,DCLG,12/10/2012,Medals,Localism,ROYAL MINT,,Public Bodies,,5106184445,20% Long service medal,CF72 8YT,564.30,
Communities & Local Government,DCLG,12/10/2012,Office Supplies,Finance & Corporate Services,BANNER BUSINESS SUPPLIES LTD,,Large,,5106184382,DELWEEKLY Banner A4 Paper Covered Lever,NR3 1PD,19.92,
Communities & Local Government,DCLG,12/10/2012,Office Supplies,Finance & Corporate Services,BANNER BUSINESS SUPPLIES LTD,,Large,,5106184382,DELWEEKLY Banner A4 Recycled Copier Pape,NR3 1PD,272.16,
Communities & Local Government,DCLG,12/10/2012,Office Supplies,Finance & Corporate Services,BANNER BUSINESS SUPPLIES LTD,,Large,,5106184423,DELWEEKLY Banner A4 Recycled Copier Pape,NR3 1PD,204.12,
Communities & Local Government,DCLG,12/10/2012,Office Supplies,Finance & Corporate Services,BANNER BUSINESS SUPPLIES LTD,,Large,,5106184423,DELWEEKLY Banner A5 Ruled Memo Pad 60gsm,NR3 1PD,2.09,
Communities & Local Government,DCLG,12/10/2012,Office Supplies,Finance & Corporate Services,BANNER BUSINESS SUPPLIES LTD,,Large,,5106184423,DELWEEKLY Banner Bar Tag 100mm Orange,NR3 1PD,3.36,
Communities & Local Government,DCLG,12/10/2012,Office Supplies,Finance & Corporate Services,BANNER BUSINESS SUPPLIES LTD,,Large,,5106184423,DELWEEKLY Banner Bar Tag 25mm Red,NR3 1PD,2.58,
Communities & Local Government,DCLG,12/10/2012,Office Supplies,Finance & Corporate Services,BANNER BUSINESS SUPPLIES LTD,,Large,,5106184423,DELWEEKLY Banner Bar Tag 50mm Yellow,NR3 1PD,1.03,
Communities & Local Government,DCLG,12/10/2012,Office Supplies,Finance & Corporate Services,BANNER BUSINESS SUPPLIES LTD,,Large,,5106184423,DELWEEKLY Banner Bar Tag 76mm Green,NR3 1PD,3.12,
Communities & Local Government,DCLG,12/10/2012,Office Supplies,Finance & Corporate Services,BANNER BUSINESS SUPPLIES LTD,,Large,,5106184423,DELWEEKLY Banner Easy Tear Adhesive Tape,NR3 1PD,1.39,
Communities & Local Government,DCLG,12/10/2012,Office Supplies,Finance & Corporate Services,BANNER BUSINESS SUPPLIES LTD,,Large,,5106184423,DELWEEKLY Banner Envelope 406 x 305mm Pl,NR3 1PD,99.55,
Communities & Local Government,DCLG,12/10/2012,Office Supplies,Finance & Corporate Services,BANNER BUSINESS SUPPLIES LTD,,Large,,5106184423,DELWEEKLY Banner Office Pencil Eraser Sm,NR3 1PD,0.92,
Communities & Local Government,DCLG,12/10/2012,Office Supplies,Finance & Corporate Services,BANNER BUSINESS SUPPLIES LTD,,Large,,5106184423,DELWEEKLY Himark Permanent Bullet Tip Ma,NR3 1PD,3.10,
Communities & Local Government,DCLG,12/10/2012,Office Supplies,Localism,BANNER BUSINESS SUPPLIES LTD,,Large,,5106184385,DELWEEKLY Banner A4 Recycled Copier Pape,NR3 1PD,272.16,
Communities & Local Government,DCLG,12/10/2012,Professional services,Finance & Corporate Services,ENVIRONMENT AGENCY,,Public Bodies,,5106184416,CRC Subsistance fees,PE2 8YD,"1,290.00",
Communities & Local Government,DCLG,12/10/2012,Professional services,Finance & Corporate Services,ENVIRONMENT AGENCY,,Public Bodies,,5106184419,CRC Subsistance fees,PE2 8YD,"1,290.00",
Communities & Local Government,DCLG,12/10/2012,Publications,Finance & Corporate Services,STATIONERY OFFICE LTD,,Large,,5106184400,Books - Legal,NR3 1PD,495.00,
Communities & Local Government,DCLG,12/10/2012,Publications,Finance & Corporate Services,SWETS INFORMATION SERVICES LTD,,Large,,5106184447,Legal Publications @0%VAT (MoJ Framewor),OX14 1UQ,"9,902.75",
Communities & Local Government,DCLG,12/10/2012,Publications,Finance & Corporate Services,SWETS INFORMATION SERVICES LTD,,Large,,5106184451,Legal Publications @0%VAT (MoJ Framewor),OX14 1UQ,"5,673.98",
Communities & Local Government,DCLG,12/10/2012,Telephone call costs,Finance & Corporate Services,VERIZON UK LTD,,Large,,5106184448,20% Verizon charges for RAS services,RG2 6DA,270.00,
Communities & Local Government,DCLG,12/10/2012,Training,Finance & Corporate Services,INSTITUTE OF INTERNAL AUDITORS,,Small,,5106184430,Internal Audit Annual Conference,SW4 7BX,360.00,
Communities & Local Government,DCLG,12/10/2012,Training,Finance & Corporate Services,OXFORD SAID BUSINESS SCHOOL LTD,,Medium,,5106184432,Major Projects Leadership Academy Fees,OX1 5NY,"16,666.67",
Communities & Local Government,DCLG,15/10/2012,Current (non AEF) Grants to Local Authorities,Localism,ADUR DC,,,,5000213308,Grant Payable by Exchequer,BN11 1HB,"4,873.00",Yes
Communities & Local Government,DCLG,15/10/2012,Current (non AEF) Grants to Local Authorities,Localism,ALLERDALE BC,,,,5000213309,Grant Payable by Exchequer,CA14 2RS,"4,873.00",Yes
Communities & Local Government,DCLG,15/10/2012,Current (non AEF) Grants to Local Authorities,Localism,AMBER VALLEY BC,,,,5000213310,Grant Payable by Exchequer,DE5 3WZ,"4,873.00",Yes
Communities & Local Government,DCLG,15/10/2012,Current (non AEF) Grants to Local Authorities,Localism,ARUN DC,,,,5000213165,Grant Payable by Exchequer,BN17 5LF,"4,873.00",Yes
Communities & Local Government,DCLG,15/10/2012,Current (non AEF) Grants to Local Authorities,Localism,ASHFIELD DC,,,,5000213311,Grant Payable by Exchequer,NG17 8DA,"4,873.00",Yes
Communities & Local Government,DCLG,15/10/2012,Current (non AEF) Grants to Local Authorities,Localism,ASHFORD BC,,,,5000213166,Grant Payable by Exchequer,TN23 1PL,"4,873.00",Yes
Communities & Local Government,DCLG,15/10/2012,Current (non AEF) Grants to Local Authorities,Localism,AYLESBURY VALE DC(HSG),,,,5000213167,Grant Payable by Exchequer,HP20 1SD,"4,873.00",Yes
Communities & Local Government,DCLG,15/10/2012,Current (non AEF) Grants to Local Authorities,Localism,BABERGH DC,,,,5000213168,Grant Payable by Exchequer,IP7 6SJ,"4,873.00",Yes
Communities & Local Government,DCLG,15/10/2012,Current (non AEF) Grants to Local Authorities,Localism,BARKING & DAGENHAM LB (HSG),,,,5000213169,Grant Payable by Exchequer,RM10 7BY,"4,873.00",Yes
Communities & Local Government,DCLG,15/10/2012,Current (non AEF) Grants to Local Authorities,Localism,BARNET LBC,,,,5000213312,Grant Payable by Exchequer,NW4 4BG,"4,873.00",Yes
Communities & Local Government,DCLG,15/10/2012,Current (non AEF) Grants to Local Authorities,Localism,BARNSLEY MBC,,,,5000213313,Grant Payable by Exchequer,S70 2AQ,"4,873.00",Yes
Communities & Local Government,DCLG,15/10/2012,Current (non AEF) Grants to Local Authorities,Localism,BARROW BC,,,,5000213314,Grant Payable by Exchequer,LA14 2LD,"4,873.00",Yes
Communities & Local Government,DCLG,15/10/2012,Current (non AEF) Grants to Local Authorities,Localism,BASILDON BOROUGH COUNCIL,,,,5000213315,Grant Payable by Exchequer,SS14 0DF,"4,873.00",Yes
Communities & Local Government,DCLG,15/10/2012,Current (non AEF) Grants to Local Authorities,Localism,BASINGSTOKE & DEANE BC,,,,5000213316,Grant Payable by Exchequer,RG21 2AJ,"4,873.00",Yes
Communities & Local Government,DCLG,15/10/2012,Current (non AEF) Grants to Local Authorities,Localism,BASSETLAW DC (HSG),,,,5000213170,Grant Payable by Exchequer,S80 2AH,"4,873.00",Yes
Communities & Local Government,DCLG,15/10/2012,Current (non AEF) Grants to Local Authorities,Localism,BATH & NE SOMERSET DC (HSG),,,,5000213171,Grant Payable by Exchequer,BA1 5AW,"4,873.00",Yes
Communities & Local Government,DCLG,15/10/2012,Current (non AEF) Grants to Local Authorities,Localism,BEDFORD UNITARY AUTHORITY,,,,5000213487,Grant Payable by Exchequer,MK40 1SJ,"4,873.00",Yes
Communities & Local Government,DCLG,15/10/2012,Current (non AEF) Grants to Local Authorities,Localism,BEXLEY LB (HSG),,,,5000213172,Grant Payable by Exchequer,DA8 1TL,"4,873.00",Yes
Communities & Local Government,DCLG,15/10/2012,Current (non AEF) Grants to Local Authorities,Localism,BIRMINGHAM CITY CNCL,,,,5000213317,Grant Payable by Exchequer,B3 3AB,"4,873.00",Yes
Communities & Local Government,DCLG,15/10/2012,Current (non AEF) Grants to Local Authorities,Localism,BLABY DC (HSG),,,,5000213173,Grant Payable by Exchequer,LE9 5EP,"4,873.00",Yes
Communities & Local Government,DCLG,15/10/2012,Current (non AEF) Grants to Local Authorities,Localism,BLACKBURN WITH DARWEN BC,,,,5000213318,Grant Payable by Exchequer,BB1 7DY,"4,873.00",Yes
Communities & Local Government,DCLG,15/10/2012,Current (non AEF) Grants to Local Authorities,Localism,BLACKPOOL BC,,,,5000213319,Grant Payable by Exchequer,FY1 1NA,"4,873.00",Yes
Communities & Local Government,DCLG,15/10/2012,Current (non AEF) Grants to Local Authorities,Localism,BOLSOVER DC,,,,5000213320,Grant Payable by Exchequer,S44 6NF,"4,873.00",Yes
Communities & Local Government,DCLG,15/10/2012,Current (non AEF) Grants to Local Authorities,Localism,BOLTON MBC,,,,5000213321,Grant Payable by Exchequer,BL1 1RU,"4,873.00",Yes
Communities & Local Government,DCLG,15/10/2012,Current (non AEF) Grants to Local Authorities,Localism,BOSTON BC,,,,5000213174,Grant Payable by Exchequer,PE21 8QR,"4,873.00",Yes
Communities & Local Government,DCLG,15/10/2012,Current (non AEF) Grants to Local Authorities,Localism,BOURNEMOUTH DC,,,,5000213322,Grant Payable by Exchequer,BH2 6EB,"4,873.00",Yes
Communities & Local Government,DCLG,15/10/2012,Current (non AEF) Grants to Local Authorities,Localism,BRACKNELL FOREST DC,,,,5000213323,Grant Payable by Exchequer,RG12 1AQ,"4,873.00",Yes
Communities & Local Government,DCLG,15/10/2012,Current (non AEF) Grants to Local Authorities,Localism,BRADFORD MBC,,,,5000213324,Grant Payable by Exchequer,BD1 1HX,"4,873.00",Yes
Communities & Local Government,DCLG,15/10/2012,Current (non AEF) Grants to Local Authorities,Localism,BRAINTREE DC,,,,5000213175,Grant Payable by Exchequer,CM7 6HB,"4,873.00",Yes
Communities & Local Government,DCLG,15/10/2012,Current (non AEF) Grants to Local Authorities,Localism,BRECKLAND DC,,,,5000213176,Grant Payable by Exchequer,NR19 1EE,"4,873.00",Yes
Communities & Local Government,DCLG,15/10/2012,Current (non AEF) Grants to Local Authorities,Localism,BRENT LB (HSG),,,,5000213177,Grant Payable by Exchequer,HA9 9HD,"4,873.00",Yes
Communities & Local Government,DCLG,15/10/2012,Current (non AEF) Grants to Local Authorities,Localism,BRENTWOOD BC,,,,5000213325,Grant Payable by Exchequer,CM15 8AY,"4,873.00",Yes
Communities & Local Government,DCLG,15/10/2012,Current (non AEF) Grants to Local Authorities,Localism,BRIGHTON & HOVE CITY COUNCIL,,,,5000213326,Grant Payable by Exchequer,BN3 2SR,"4,873.00",Yes
Communities & Local Government,DCLG,15/10/2012,Current (non AEF) Grants to Local Authorities,Localism,BRISTOL CITY CNCL (HSG),,,,5000213178,Grant Payable by Exchequer,BS99 7BL,"4,873.00",Yes
Communities & Local Government,DCLG,15/10/2012,Current (non AEF) Grants to Local Authorities,Localism,BROADLAND DC,,Large,,5000213179,Grant Payable by Exchequer,NR7 0DU,"4,873.00",Yes
Communities & Local Government,DCLG,15/10/2012,Current (non AEF) Grants to Local Authorities,Localism,BROMLEY LB,,,,5000213327,Grant Payable by Exchequer,BR1 3UH,"4,873.00",Yes
Communities & Local Government,DCLG,15/10/2012,Current (non AEF) Grants to Local Authorities,Localism,BROMSGROVE DC,,,,5000213180,Grant Payable by Exchequer,B60 1AA,"4,873.00",Yes
Communities & Local Government,DCLG,15/10/2012,Current (non AEF) Grants to Local Authorities,Localism,BROXBOURNE BC,,Public Bodies,,5000213328,Grant Payable by Exchequer,EN8 9XG,"4,873.00",Yes
Communities & Local Government,DCLG,15/10/2012,Current (non AEF) Grants to Local Authorities,Localism,BROXTOWE BC,,,,5000213329,Grant Payable by Exchequer,NG9 1AB,"4,873.00",Yes
Communities & Local Government,DCLG,15/10/2012,Current (non AEF) Grants to Local Authorities,Localism,BURNLEY BC,,,,5000213330,Grant Payable by Exchequer,BB11 1JA,"4,873.00",Yes
Communities & Local Government,DCLG,15/10/2012,Current (non AEF) Grants to Local Authorities,Localism,CALDERDALE MBC,,,,5000213332,Grant Payable by Exchequer,HX1 1YP,"4,873.00",Yes
Communities & Local Government,DCLG,15/10/2012,Current (non AEF) Grants to Local Authorities,Localism,CAMBRIDGE CITY COUNCIL,,,,5000213333,Grant Payable by Exchequer,CB2 3NA,"4,873.00",Yes
Communities & Local Government,DCLG,15/10/2012,Current (non AEF) Grants to Local Authorities,Localism,CAMDEN LB,,,,5000213334,Grant Payable by Exchequer,WC1H 8NG,"4,873.00",Yes
Communities & Local Government,DCLG,15/10/2012,Current (non AEF) Grants to Local Authorities,Localism,CANNOCK CHASE DC,,,,5000213335,Grant Payable by Exchequer,WS11 1BG,"4,873.00",Yes
Communities & Local Government,DCLG,15/10/2012,Current (non AEF) Grants to Local Authorities,Localism,CANTERBURY CITY CNCL,,,,5000213181,Grant Payable by Exchequer,CT1 1YW,"4,873.00",Yes
Communities & Local Government,DCLG,15/10/2012,Current (non AEF) Grants to Local Authorities,Localism,CARLISLE CITY CNCL,,,,5000213182,Grant Payable by Exchequer,CA3 8QG,"4,873.00",Yes
Communities & Local Government,DCLG,15/10/2012,Current (non AEF) Grants to Local Authorities,Localism,CASTLE POINT BC,,,,5000213336,Grant Payable by Exchequer,SS7 1TF,"4,873.00",Yes
Communities & Local Government,DCLG,15/10/2012,Current (non AEF) Grants to Local Authorities,Localism,CENTRAL BEDFORDSHIRE COUNCIL,,,,5000213484,Grant Payable by Exchequer,SG17 5TQ,"4,873.00",Yes
Communities & Local Government,DCLG,15/10/2012,Current (non AEF) Grants to Local Authorities,Localism,CHARNWOOD BC,,,,5000213337,Grant Payable by Exchequer,LE11 2TU,"4,873.00",Yes
Communities & Local Government,DCLG,15/10/2012,Current (non AEF) Grants to Local Authorities,Localism,CHELMSFORD BC,,,,5000213338,Grant Payable by Exchequer,CM1 1JE,"4,873.00",Yes
Communities & Local Government,DCLG,15/10/2012,Current (non AEF) Grants to Local Authorities,Localism,CHELTENHAM BC,,,,5000213339,Grant Payable by Exchequer,GL50 1PW,"4,873.00",Yes
Communities & Local Government,DCLG,15/10/2012,Current (non AEF) Grants to Local Authorities,Localism,CHERWELL DC,,,,5000213183,Grant Payable by Exchequer,OX15 4AA,"4,873.00",Yes
Communities & Local Government,DCLG,15/10/2012,Current (non AEF) Grants to Local Authorities,Localism,CHESHIRE EAST COUNCIL,,,,5000213485,Grant Payable by Exchequer,SK10 1DP,"4,873.00",Yes
Communities & Local Government,DCLG,15/10/2012,Current (non AEF) Grants to Local Authorities,Localism,CHESHIRE WEST & CHESTER COUNCIL,,,,5000213486,Grant Payable by Exchequer,CH1 1SG,"4,873.00",Yes
Communities & Local Government,DCLG,15/10/2012,Current (non AEF) Grants to Local Authorities,Localism,CHESTERFIELD BC,,,,5000213340,Grant Payable by Exchequer,S40 1LP,"4,873.00",Yes
Communities & Local Government,DCLG,15/10/2012,Current (non AEF) Grants to Local Authorities,Localism,CHICHESTER DC,,,,5000213184,Grant Payable by Exchequer,PO19 1TY,"4,873.00",Yes
Communities & Local Government,DCLG,15/10/2012,Current (non AEF) Grants to Local Authorities,Localism,CHILTERN DC (HSG),,,,5000213185,Grant Payable by Exchequer,HP6 5AW,"4,873.00",Yes
Communities & Local Government,DCLG,15/10/2012,Current (non AEF) Grants to Local Authorities,Localism,CHORLEY DC,,,,5000213341,Grant Payable by Exchequer,PR7 1DP,"4,873.00",Yes
Communities & Local Government,DCLG,15/10/2012,Current (non AEF) Grants to Local Authorities,Localism,CHRISTCHURCH BC (HSG),,,,5000213186,Grant Payable by Exchequer,BH23 1AZ,"4,873.00",Yes
Communities & Local Government,DCLG,15/10/2012,Current (non AEF) Grants to Local Authorities,Localism,CITY OF LINCOLN COUNCIL,,,,5000213392,Grant Payable by Exchequer,LN1 1DB,"4,873.00",Yes
Communities & Local Government,DCLG,15/10/2012,Current (non AEF) Grants to Local Authorities,Localism,CITY OF LONDON (HSG),,,,5000213187,Grant Payable by Exchequer,EC2P 2EJ,"4,873.00",Yes
Communities & Local Government,DCLG,15/10/2012,Current (non AEF) Grants to Local Authorities,Localism,CITY OF SUNDERLAND (HSG),,,,5000213188,Grant Payable by Exchequer,SR2 7DN,"4,873.00",Yes
Communities & Local Government,DCLG,15/10/2012,Current (non AEF) Grants to Local Authorities,Localism,CITY OF WAKEFIELD MDC,,,,5000213461,Grant Payable by Exchequer,WF1 2QW,"4,873.00",Yes
Communities & Local Government,DCLG,15/10/2012,Current (non AEF) Grants to Local Authorities,Localism,COLCHESTER BC,,,,5000213342,Grant Payable by Exchequer,CO3 3WG,"4,873.00",Yes
Communities & Local Government,DCLG,15/10/2012,Current (non AEF) Grants to Local Authorities,Localism,COPELAND BC,,,,5000213189,Grant Payable by Exchequer,CA28 7NY,"4,873.00",Yes
Communities & Local Government,DCLG,15/10/2012,Current (non AEF) Grants to Local Authorities,Localism,CORBY BC,,,,5000213190,Grant Payable by Exchequer,NN17 1GD,"4,873.00",Yes
Communities & Local Government,DCLG,15/10/2012,Current (non AEF) Grants to Local Authorities,Localism,CORNWALL UNITARY AUTHORITY,,,,5000213489,Grant Payable by Exchequer,TR1 3AY,"4,873.00",Yes
Communities & Local Government,DCLG,15/10/2012,Current (non AEF) Grants to Local Authorities,Localism,COTSWOLD DC,,,,5000213191,Grant Payable by Exchequer,GL7 1PX,"4,873.00",Yes
Communities & Local Government,DCLG,15/10/2012,Current (non AEF) Grants to Local Authorities,Localism,COVENTRY CITY CNCL,,,,5000213343,Grant Payable by Exchequer,CV1 2QL,"4,873.00",Yes
Communities & Local Government,DCLG,15/10/2012,Current (non AEF) Grants to Local Authorities,Localism,CRAVEN DC (HSG),,,,5000213192,Grant Payable by Exchequer,BD23 1PS,"4,873.00",Yes
Communities & Local Government,DCLG,15/10/2012,Current (non AEF) Grants to Local Authorities,Localism,CRAWLEY BC,,,,5000213193,Grant Payable by Exchequer,RH10 1UZ,"4,873.00",Yes
Communities & Local Government,DCLG,15/10/2012,Current (non AEF) Grants to Local Authorities,Localism,CROYDON LB,,,,5000213344,Grant Payable by Exchequer,CR9 3JS,"4,873.00",Yes
Communities & Local Government,DCLG,15/10/2012,Current (non AEF) Grants to Local Authorities,Localism,DACORUM BC,,,,5000213345,Grant Payable by Exchequer,HP1 1HH,"4,873.00",Yes
Communities & Local Government,DCLG,15/10/2012,Current (non AEF) Grants to Local Authorities,Localism,DARLINGTON BC,,,,5000213346,Grant Payable by Exchequer,TS19 1JA,"4,873.00",Yes
Communities & Local Government,DCLG,15/10/2012,Current (non AEF) Grants to Local Authorities,Localism,DARTFORD BC,,,,5000213194,Grant Payable by Exchequer,DA1 1DR,"4,873.00",Yes
Communities & Local Government,DCLG,15/10/2012,Current (non AEF) Grants to Local Authorities,Localism,DAVENTRY DC,,,,5000213195,Grant Payable by Exchequer,NN11 5AF,"4,873.00",Yes
Communities & Local Government,DCLG,15/10/2012,Current (non AEF) Grants to Local Authorities,Localism,DERBY CITY CNCL,,,,5000213347,Grant Payable by Exchequer,DE1 2FS,"4,873.00",Yes
Communities & Local Government,DCLG,15/10/2012,Current (non AEF) Grants to Local Authorities,Localism,DERBYSHIRE DALES DC,,,,5000213196,Grant Payable by Exchequer,DE4 3NN,"4,873.00",Yes
Communities & Local Government,DCLG,15/10/2012,Current (non AEF) Grants to Local Authorities,Localism,DONCASTER MBC,,,,5000213348,Grant Payable by Exchequer,DN1 3QA,"4,873.00",Yes
Communities & Local Government,DCLG,15/10/2012,Current (non AEF) Grants to Local Authorities,Localism,DOVER DC,,,,5000213197,Grant Payable by Exchequer,CT16 3PD,"4,873.00",Yes
Communities & Local Government,DCLG,15/10/2012,Current (non AEF) Grants to Local Authorities,Localism,DUDLEY MBC,,,,5000213349,Grant Payable by Exchequer,DY1 1HF,"4,873.00",Yes
Communities & Local Government,DCLG,15/10/2012,Current (non AEF) Grants to Local Authorities,Localism,DURHAM UNITARY AUTHORITY,,,,5000213490,Grant Payable by Exchequer,DH1 5UE,"4,873.00",Yes
Communities & Local Government,DCLG,15/10/2012,Current (non AEF) Grants to Local Authorities,Localism,EALING LB,,,,5000213350,Grant Payable by Exchequer,W5 2HL,"4,873.00",Yes
Communities & Local Government,DCLG,15/10/2012,Current (non AEF) Grants to Local Authorities,Localism,EAST CAMBRIDGESHIRE DC,,,,5000213198,Grant Payable by Exchequer,CB7 4PL,"4,873.00",Yes
Communities & Local Government,DCLG,15/10/2012,Current (non AEF) Grants to Local Authorities,Localism,EAST DEVON DC,,,,5000213199,Grant Payable by Exchequer,EX10 8HL,"4,873.00",Yes
Communities & Local Government,DCLG,15/10/2012,Current (non AEF) Grants to Local Authorities,Localism,EAST DORSET DC,,,,5000213351,Grant Payable by Exchequer,BH21 4HN,"4,873.00",Yes
Communities & Local Government,DCLG,15/10/2012,Current (non AEF) Grants to Local Authorities,Localism,EAST HAMPSHIRE DC,,,,5000213200,Grant Payable by Exchequer,GU31 4EX,"4,873.00",Yes
Communities & Local Government,DCLG,15/10/2012,Current (non AEF) Grants to Local Authorities,Localism,EAST HERTFORDSHIRE DC,,,,5000213201,Grant Payable by Exchequer,SG13 8EQ,"4,873.00",Yes
Communities & Local Government,DCLG,15/10/2012,Current (non AEF) Grants to Local Authorities,Localism,EAST LINDSEY DC,,,,5000213202,Grant Payable by Exchequer,LN11 8UP,"4,873.00",Yes
Communities & Local Government,DCLG,15/10/2012,Current (non AEF) Grants to Local Authorities,Localism,EAST NORTHAMPTONSHIRE COUNCIL,,,,5000213203,Grant Payable by Exchequer,NN14 4LZ,"4,873.00",Yes
Communities & Local Government,DCLG,15/10/2012,Current (non AEF) Grants to Local Authorities,Localism,EAST RIDING OF YORKS (HSG),,,,5000213204,Grant Payable by Exchequer,HU17 9BA,"4,873.00",Yes
Communities & Local Government,DCLG,15/10/2012,Current (non AEF) Grants to Local Authorities,Localism,EAST STAFFORDSHIRE BC,,,,5000213205,Grant Payable by Exchequer,DE14 2EB,"4,873.00",Yes
Communities & Local Government,DCLG,15/10/2012,Current (non AEF) Grants to Local Authorities,Localism,EASTBOURNE BC,,,,5000213352,Grant Payable by Exchequer,BN21 4TW,"4,873.00",Yes
Communities & Local Government,DCLG,15/10/2012,Current (non AEF) Grants to Local Authorities,Localism,EASTLEIGH BOROUGH COUNCIL,,,,5000213353,Grant Payable by Exchequer,SO5 9YN,"4,873.00",Yes
Communities & Local Government,DCLG,15/10/2012,Current (non AEF) Grants to Local Authorities,Localism,EDEN DC (HSG),,,,5000213206,Grant Payable by Exchequer,CA11 7QF,"4,873.00",Yes
Communities & Local Government,DCLG,15/10/2012,Current (non AEF) Grants to Local Authorities,Localism,ELMBRIDGE BC (HSG),,,,5000213207,Grant Payable by Exchequer,KT10 9SD,"4,873.00",Yes
Communities & Local Government,DCLG,15/10/2012,Current (non AEF) Grants to Local Authorities,Localism,ENFIELD LB,,,,5000213354,Grant Payable by Exchequer,EN1 3XF,"4,873.00",Yes
Communities & Local Government,DCLG,15/10/2012,Current (non AEF) Grants to Local Authorities,Localism,EPPING FOREST DC,,,,5000213355,Grant Payable by Exchequer,CM16 4BZ,"4,873.00",Yes
Communities & Local Government,DCLG,15/10/2012,Current (non AEF) Grants to Local Authorities,Localism,EPSOM & EWELL BC,,,,5000213356,Grant Payable by Exchequer,KT18 5BY,"4,873.00",Yes
Communities & Local Government,DCLG,15/10/2012,Current (non AEF) Grants to Local Authorities,Localism,EREWASH BC,,,,5000213357,Grant Payable by Exchequer,DE7 5RP,"4,873.00",Yes
Communities & Local Government,DCLG,15/10/2012,Current (non AEF) Grants to Local Authorities,Localism,EXETER CITY CNCL,,,,5000213358,Grant Payable by Exchequer,EX1 1JN,"4,873.00",Yes
Communities & Local Government,DCLG,15/10/2012,Current (non AEF) Grants to Local Authorities,Localism,FAREHAM BC,,,,5000213208,Grant Payable by Exchequer,PO16 7PU,"4,873.00",Yes
Communities & Local Government,DCLG,15/10/2012,Current (non AEF) Grants to Local Authorities,Localism,FENLAND DC,,,,5000213209,Grant Payable by Exchequer,PE15 8NQ,"4,873.00",Yes
Communities & Local Government,DCLG,15/10/2012,Current (non AEF) Grants to Local Authorities,Localism,FOREST HEATH DISTRICT COUNCIL,,,,5000213210,Grant Payable by Exchequer,IP28 7EY,"4,873.00",Yes
Communities & Local Government,DCLG,15/10/2012,Current (non AEF) Grants to Local Authorities,Localism,FOREST OF DEAN DC,,,,5000213211,Grant Payable by Exchequer,GL16 8HG,"4,873.00",Yes
Communities & Local Government,DCLG,15/10/2012,Current (non AEF) Grants to Local Authorities,Localism,FYLDE BC,,,,5000213359,Grant Payable by Exchequer,FY8 1LW,"4,873.00",Yes
Communities & Local Government,DCLG,15/10/2012,Current (non AEF) Grants to Local Authorities,Localism,GATESHEAD MBC,,,,5000213360,Grant Payable by Exchequer,NE8 1HH,"4,873.00",Yes
Communities & Local Government,DCLG,15/10/2012,Current (non AEF) Grants to Local Authorities,Localism,GEDLING BC,,,,5000213361,Grant Payable by Exchequer,NG5 6LU,"4,873.00",Yes
Communities & Local Government,DCLG,15/10/2012,Current (non AEF) Grants to Local Authorities,Localism,GLOUCESTER CITY CNCL,,,,5000213362,Grant Payable by Exchequer,GL1 2EQ,"4,873.00",Yes
Communities & Local Government,DCLG,15/10/2012,Current (non AEF) Grants to Local Authorities,Localism,GMRB,,,,5000213331,Grant Payable by Exchequer,BL9 0SW,"4,873.00",Yes
Communities & Local Government,DCLG,15/10/2012,Current (non AEF) Grants to Local Authorities,Localism,GOSPORT BOROUGH COUNCIL,,,,5000213363,Grant Payable by Exchequer,PO12 1ED,"4,873.00",Yes
Communities & Local Government,DCLG,15/10/2012,Current (non AEF) Grants to Local Authorities,Localism,GRAVESHAM BC,,,,5000213364,Grant Payable by Exchequer,DA12 1AU,"4,873.00",Yes
Communities & Local Government,DCLG,15/10/2012,Current (non AEF) Grants to Local Authorities,Localism,GREAT YARMOUTH BC,,,,5000213365,Grant Payable by Exchequer,NR30 2QG,"4,873.00",Yes
Communities & Local Government,DCLG,15/10/2012,Current (non AEF) Grants to Local Authorities,Localism,GREENWICH LB,,,,5000213366,Grant Payable by Exchequer,SE18 6BU,"4,873.00",Yes
Communities & Local Government,DCLG,15/10/2012,Current (non AEF) Grants to Local Authorities,Localism,GUILDFORD BC,,,,5000213212,Grant Payable by Exchequer,GU2 5BB,"4,873.00",Yes
Communities & Local Government,DCLG,15/10/2012,Current (non AEF) Grants to Local Authorities,Localism,HALTON BC (HSG),,,,5000213213,Grant Payable by Exchequer,WA8 7QF,"4,873.00",Yes
Communities & Local Government,DCLG,15/10/2012,Current (non AEF) Grants to Local Authorities,Localism,HAMBLETON DC (HSG),,,,5000213214,Grant Payable by Exchequer,DL6 2UU,"4,873.00",Yes
Communities & Local Government,DCLG,15/10/2012,Current (non AEF) Grants to Local Authorities,Localism,HAMMERSMITH & FULHAM LB,,,,5000213368,Grant Payable by Exchequer,W6 9JU,"4,873.00",Yes
Communities & Local Government,DCLG,15/10/2012,Current (non AEF) Grants to Local Authorities,Localism,HARBOROUGH DC (HSG),,,,5000213215,Grant Payable by Exchequer,LE16 7AG,"4,873.00",Yes
Communities & Local Government,DCLG,15/10/2012,Current (non AEF) Grants to Local Authorities,Localism,HARINGEY LB,,,,5000213369,Grant Payable by Exchequer,N22 4TR,"4,873.00",Yes
Communities & Local Government,DCLG,15/10/2012,Current (non AEF) Grants to Local Authorities,Localism,HARLOW DISTRICT COUNCIL,,,,5000213370,Grant Payable by Exchequer,CM20 1WG,"4,873.00",Yes
Communities & Local Government,DCLG,15/10/2012,Current (non AEF) Grants to Local Authorities,Localism,HARROGATE BC,,,,5000213216,Grant Payable by Exchequer,HG1 2SG,"4,873.00",Yes
Communities & Local Government,DCLG,15/10/2012,Current (non AEF) Grants to Local Authorities,Localism,HARROW LB,,,,5000213371,Grant Payable by Exchequer,HA1 2UZ,"4,873.00",Yes
Communities & Local Government,DCLG,15/10/2012,Current (non AEF) Grants to Local Authorities,Localism,HART DC,,,,5000213372,Grant Payable by Exchequer,GU13 8AE,"4,873.00",Yes
Communities & Local Government,DCLG,15/10/2012,Current (non AEF) Grants to Local Authorities,Localism,HARTLEPOOL BOROUGH COUNCIL,,,,5000213373,Grant Payable by Exchequer,TS24 7BT,"4,873.00",Yes
Communities & Local Government,DCLG,15/10/2012,Current (non AEF) Grants to Local Authorities,Localism,HASTINGS BC,,,,5000213374,Grant Payable by Exchequer,TN34 3WN,"4,873.00",Yes
Communities & Local Government,DCLG,15/10/2012,Current (non AEF) Grants to Local Authorities,Localism,HAVANT BC,,,,5000213375,Grant Payable by Exchequer,PO9 2AX,"4,873.00",Yes
Communities & Local Government,DCLG,15/10/2012,Current (non AEF) Grants to Local Authorities,Localism,HAVERING LB,,,,5000213376,Grant Payable by Exchequer,RM1 3BB,"4,873.00",Yes
Communities & Local Government,DCLG,15/10/2012,Current (non AEF) Grants to Local Authorities,Localism,HEREFORDSHIRE COUNCIL,,,,5000213217,Grant Payable by Exchequer,HR4 0XH,"4,873.00",Yes
Communities & Local Government,DCLG,15/10/2012,Current (non AEF) Grants to Local Authorities,Localism,HERTSMERE BC,,,,5000213377,Grant Payable by Exchequer,WD6 1WA,"4,873.00",Yes
Communities & Local Government,DCLG,15/10/2012,Current (non AEF) Grants to Local Authorities,Localism,HIGH PEAK BC,,,,5000213218,Grant Payable by Exchequer,SK17 6EL,"4,873.00",Yes
Communities & Local Government,DCLG,15/10/2012,Current (non AEF) Grants to Local Authorities,Localism,HILLINGDON LB,,,,5000213378,Grant Payable by Exchequer,UB8 1UW,"4,873.00",Yes
Communities & Local Government,DCLG,15/10/2012,Current (non AEF) Grants to Local Authorities,Localism,HINCKLEY & BOSWORTH BC,,,,5000213219,Grant Payable by Exchequer,LE10 1BZ,"4,873.00",Yes
Communities & Local Government,DCLG,15/10/2012,Current (non AEF) Grants to Local Authorities,Localism,HORSHAM DC,,,,5000213220,Grant Payable by Exchequer,RH12 1RL,"4,873.00",Yes
Communities & Local Government,DCLG,15/10/2012,Current (non AEF) Grants to Local Authorities,Localism,HOUNSLOW LB,,Public Bodies,,5000213379,Grant Payable by Exchequer,TW3 4DN,"4,873.00",Yes
Communities & Local Government,DCLG,15/10/2012,Current (non AEF) Grants to Local Authorities,Localism,HULL CITY COUNCIL,,,,5000213387,Grant Payable by Exchequer,HU1 2AA,"4,873.00",Yes
Communities & Local Government,DCLG,15/10/2012,Current (non AEF) Grants to Local Authorities,Localism,HUNTINGDONSHIRE DC,,,,5000213221,Grant Payable by Exchequer,PE18 6TN,"4,873.00",Yes
Communities & Local Government,DCLG,15/10/2012,Current (non AEF) Grants to Local Authorities,Localism,HYNDBURN BC,,,,5000213380,Grant Payable by Exchequer,BB5 1EZ,"4,873.00",Yes
Communities & Local Government,DCLG,15/10/2012,Current (non AEF) Grants to Local Authorities,Localism,IPSWICH BC,,,,5000213381,Grant Payable by Exchequer,IP1 2EE,"4,873.00",Yes
Communities & Local Government,DCLG,15/10/2012,Current (non AEF) Grants to Local Authorities,Localism,ISLE OF WIGHT CNCL,,,,5000213382,Grant Payable by Exchequer,PO30 1UD,"4,873.00",Yes
Communities & Local Government,DCLG,15/10/2012,Current (non AEF) Grants to Local Authorities,Localism,ISLES OF SCILLY COUNCIL,,,,5000213383,Grant Payable by Exchequer,TR21 0LW,"4,873.00",Yes
Communities & Local Government,DCLG,15/10/2012,Current (non AEF) Grants to Local Authorities,Localism,ISLINGTON LB,,,,5000213384,Grant Payable by Exchequer,N1 1XR,"4,873.00",Yes
Communities & Local Government,DCLG,15/10/2012,Current (non AEF) Grants to Local Authorities,Localism,KETTERING BC,,,,5000213386,Grant Payable by Exchequer,NN15 7QX,"4,873.00",Yes
Communities & Local Government,DCLG,15/10/2012,Current (non AEF) Grants to Local Authorities,Localism,KINGS LYNN & WEST NORFOLK BC,,,,5000213222,Grant Payable by Exchequer,PE30 1EX,"4,873.00",Yes
Communities & Local Government,DCLG,15/10/2012,Current (non AEF) Grants to Local Authorities,Localism,KINGSTON UPON THAMES  (HSG),,,,5000213223,Grant Payable by Exchequer,KT1 1EU,"4,873.00",Yes
Communities & Local Government,DCLG,15/10/2012,Current (non AEF) Grants to Local Authorities,Localism,KIRKLEES COUNCIL (HSG),,,,5000213224,Grant Payable by Exchequer,HD1 2YU,"4,873.00",Yes
Communities & Local Government,DCLG,15/10/2012,Current (non AEF) Grants to Local Authorities,Localism,KNOWSLEY MBC,,,,5000213388,Grant Payable by Exchequer,L36 9YZ,"4,873.00",Yes
Communities & Local Government,DCLG,15/10/2012,Current (non AEF) Grants to Local Authorities,Localism,LANCASTER CITY CNCL,,,,5000213225,Grant Payable by Exchequer,LA1 1PJ,"4,873.00",Yes
Communities & Local Government,DCLG,15/10/2012,Current (non AEF) Grants to Local Authorities,Localism,LEEDS CITY CNCL,,,,5000213390,Grant Payable by Exchequer,LS1 1JF,"4,873.00",Yes
Communities & Local Government,DCLG,15/10/2012,Current (non AEF) Grants to Local Authorities,Localism,LEICESTER CITY CNCL (HSG),,,,5000213226,Grant Payable by Exchequer,LE1 6ZG,"4,873.00",Yes
Communities & Local Government,DCLG,15/10/2012,Current (non AEF) Grants to Local Authorities,Localism,LEWES DC,,,,5000213227,Grant Payable by Exchequer,BN7 2DQ,"4,873.00",Yes
Communities & Local Government,DCLG,15/10/2012,Current (non AEF) Grants to Local Authorities,Localism,LEWISHAM LB (HSG),,,,5000213228,Grant Payable by Exchequer,SE6 4RU,"4,873.00",Yes
Communities & Local Government,DCLG,15/10/2012,Current (non AEF) Grants to Local Authorities,Localism,LICHFIELD DC,,,,5000213391,Grant Payable by Exchequer,WS13 6YX,"4,873.00",Yes
Communities & Local Government,DCLG,15/10/2012,Current (non AEF) Grants to Local Authorities,Localism,LIVERPOOL CITY COUNCIL,,,,5000213393,Grant Payable by Exchequer,L2 2DH,"4,873.00",Yes
Communities & Local Government,DCLG,15/10/2012,Current (non AEF) Grants to Local Authorities,Localism,LONDON BOROUGH OF HACKNEY,,,,5000213367,Grant Payable by Exchequer,E8 4RU,"4,873.00",Yes
Communities & Local Government,DCLG,15/10/2012,Current (non AEF) Grants to Local Authorities,Localism,LONDON BOROUGH OF LAMBETH,,,,5000213389,Grant Payable by Exchequer,SW2 1RL,"4,873.00",Yes
Communities & Local Government,DCLG,15/10/2012,Current (non AEF) Grants to Local Authorities,Localism,LONDON BOROUGH OF NEWHAM,,,,5000213402,Grant Payable by Exchequer,E16 2QU,"4,873.00",Yes
Communities & Local Government,DCLG,15/10/2012,Current (non AEF) Grants to Local Authorities,Localism,LONDON BOROUGH OF REDBRIDGE,,,,5000213419,Grant Payable by Exchequer,IG1 1NN,"4,873.00",Yes
Communities & Local Government,DCLG,15/10/2012,Current (non AEF) Grants to Local Authorities,Localism,LUTON BC,,,,5000213394,Grant Payable by Exchequer,LU1 1DX,"4,873.00",Yes
Communities & Local Government,DCLG,15/10/2012,Current (non AEF) Grants to Local Authorities,Localism,MAIDSTONE BC,,,,5000213229,Grant Payable by Exchequer,ME15 6JQ,"4,873.00",Yes
Communities & Local Government,DCLG,15/10/2012,Current (non AEF) Grants to Local Authorities,Localism,MALDON DC,,,,5000213230,Grant Payable by Exchequer,CM9 7DL,"4,873.00",Yes
Communities & Local Government,DCLG,15/10/2012,Current (non AEF) Grants to Local Authorities,Localism,MALVERN HILLS DC,,,,5000213395,Grant Payable by Exchequer,WR14 3AF,"4,873.00",Yes
Communities & Local Government,DCLG,15/10/2012,Current (non AEF) Grants to Local Authorities,Localism,MANCHESTER CITY CNCL (HSG),,,,5000213231,Grant Payable by Exchequer,M60 2JR,"4,873.00",Yes
Communities & Local Government,DCLG,15/10/2012,Current (non AEF) Grants to Local Authorities,Localism,MANSFIELD DC,,,,5000213396,Grant Payable by Exchequer,NG19 7BH,"4,873.00",Yes
Communities & Local Government,DCLG,15/10/2012,Current (non AEF) Grants to Local Authorities,Localism,MEDWAY TOWNS D C (HSG),,,,5000213232,Grant Payable by Exchequer,ME4 4TR,"4,873.00",Yes
Communities & Local Government,DCLG,15/10/2012,Current (non AEF) Grants to Local Authorities,Localism,MELTON BC,,,,5000213233,Grant Payable by Exchequer,LE13 0UL,"4,873.00",Yes
Communities & Local Government,DCLG,15/10/2012,Current (non AEF) Grants to Local Authorities,Localism,MENDIP DISTRICT COUNCIL,,,,5000213234,Grant Payable by Exchequer,BA4 5BA,"4,873.00",Yes
Communities & Local Government,DCLG,15/10/2012,Current (non AEF) Grants to Local Authorities,Localism,MERTON LB,,,,5000213397,Grant Payable by Exchequer,SM4 5DX,"4,873.00",Yes
Communities & Local Government,DCLG,15/10/2012,Current (non AEF) Grants to Local Authorities,Localism,MID DEVON DC,,,,5000213235,Grant Payable by Exchequer,EX16 6PP,"4,873.00",Yes
Communities & Local Government,DCLG,15/10/2012,Current (non AEF) Grants to Local Authorities,Localism,MID SUFFOLK DC,,,,5000213236,Grant Payable by Exchequer,IP1 2DH,"4,873.00",Yes
Communities & Local Government,DCLG,15/10/2012,Current (non AEF) Grants to Local Authorities,Localism,MID SUSSEX DC,,,,5000213237,Grant Payable by Exchequer,RH16 1SS,"4,873.00",Yes
Communities & Local Government,DCLG,15/10/2012,Current (non AEF) Grants to Local Authorities,Localism,MIDDLESBROUGH BC,,,,5000213398,Grant Payable by Exchequer,TS1 2QQ,"4,873.00",Yes
Communities & Local Government,DCLG,15/10/2012,Current (non AEF) Grants to Local Authorities,Localism,MILTON KEYNES BC,,,,5000213399,Grant Payable by Exchequer,MK9 3WJ,"4,873.00",Yes
Communities & Local Government,DCLG,15/10/2012,Current (non AEF) Grants to Local Authorities,Localism,MOLE VALLEY DC,,,,5000213238,Grant Payable by Exchequer,RH4 1SJ,"4,873.00",Yes
Communities & Local Government,DCLG,15/10/2012,Current (non AEF) Grants to Local Authorities,Localism,NEW FOREST DC,,Public Bodies,,5000213239,Grant Payable by Exchequer,SO43 9ZG,"4,873.00",Yes
Communities & Local Government,DCLG,15/10/2012,Current (non AEF) Grants to Local Authorities,Localism,NEWARK & SHERWOOD DC (HSG),,,,5000213240,Grant Payable by Exchequer,NG23 5QX,"4,873.00",Yes
Communities & Local Government,DCLG,15/10/2012,Current (non AEF) Grants to Local Authorities,Localism,NEWCASTLE UNDER LYME BC,,,,5000213400,Grant Payable by Exchequer,ST5 2AG,"4,873.00",Yes
Communities & Local Government,DCLG,15/10/2012,Current (non AEF) Grants to Local Authorities,Localism,NEWCASTLE UPON TYNE DC,,,,5000213401,Grant Payable by Exchequer,NE99 1RD,"4,873.00",Yes
Communities & Local Government,DCLG,15/10/2012,Current (non AEF) Grants to Local Authorities,Localism,NORTH DEVON DC,,,,5000213241,Grant Payable by Exchequer,EX31 1EA,"4,873.00",Yes
Communities & Local Government,DCLG,15/10/2012,Current (non AEF) Grants to Local Authorities,Localism,NORTH DORSET DC,,,,5000213242,Grant Payable by Exchequer,DT11 7LL,"4,873.00",Yes
Communities & Local Government,DCLG,15/10/2012,Current (non AEF) Grants to Local Authorities,Localism,NORTH EAST DERBYSHIRE DC,,,,5000213403,Grant Payable by Exchequer,S40 1LF,"4,873.00",Yes
Communities & Local Government,DCLG,15/10/2012,Current (non AEF) Grants to Local Authorities,Localism,NORTH EAST LINCOLN DC (HSG),,,,5000213243,Grant Payable by Exchequer,DN35 8LN,"4,873.00",Yes
Communities & Local Government,DCLG,15/10/2012,Current (non AEF) Grants to Local Authorities,Localism,NORTH HERTS DC (HOUSING) (HSG),,,,5000213244,Grant Payable by Exchequer,SG6 3HN,"4,873.00",Yes
Communities & Local Government,DCLG,15/10/2012,Current (non AEF) Grants to Local Authorities,Localism,NORTH KESTEVEN DC,,,,5000213404,Grant Payable by Exchequer,NG34 7EF,"4,873.00",Yes
Communities & Local Government,DCLG,15/10/2012,Current (non AEF) Grants to Local Authorities,Localism,NORTH LINCOLNSHIRE DC (HSG),,,,5000213245,Grant Payable by Exchequer,DN16 1AB,"4,873.00",Yes
Communities & Local Government,DCLG,15/10/2012,Current (non AEF) Grants to Local Authorities,Localism,NORTH NORFOLK DC,,,,5000213246,Grant Payable by Exchequer,NR27 9EJ,"4,873.00",Yes
Communities & Local Government,DCLG,15/10/2012,Current (non AEF) Grants to Local Authorities,Localism,NORTH SOMERSET DC,,,,5000213405,Grant Payable by Exchequer,BS23 1LL,"4,873.00",Yes
Communities & Local Government,DCLG,15/10/2012,Current (non AEF) Grants to Local Authorities,Localism,NORTH TYNESIDE MBC,,,,5000213406,Grant Payable by Exchequer,NE27 0BY,"4,873.00",Yes
Communities & Local Government,DCLG,15/10/2012,Current (non AEF) Grants to Local Authorities,Localism,NORTH WARWICKSHIRE BC,,Large,,5000213247,Grant Payable by Exchequer,CV9 1DE,"4,873.00",Yes
Communities & Local Government,DCLG,15/10/2012,Current (non AEF) Grants to Local Authorities,Localism,NORTH WEST LEICESTER DC,,,,5000213248,Grant Payable by Exchequer,LE67 3FJ,"4,873.00",Yes
Communities & Local Government,DCLG,15/10/2012,Current (non AEF) Grants to Local Authorities,Localism,NORTHAMPTON BOROUGH COUNCIL,,,,5000213407,Grant Payable by Exchequer,NN4 7NR,"4,873.00",Yes
Communities & Local Government,DCLG,15/10/2012,Current (non AEF) Grants to Local Authorities,Localism,NORTHUMBERLAND COUNTY COUNCIL,,,,5000213483,Grant Payable by Exchequer,NE61 2EF,"4,873.00",Yes
Communities & Local Government,DCLG,15/10/2012,Current (non AEF) Grants to Local Authorities,Localism,NORWICH CITY CNCL,,,,5000213408,Grant Payable by Exchequer,NR2 1NH,"4,873.00",Yes
Communities & Local Government,DCLG,15/10/2012,Current (non AEF) Grants to Local Authorities,Localism,NOTTINGHAM CITY COUNCIL,,,,5000213409,Grant Payable by Exchequer,M33 0DJ,"4,873.00",Yes
Communities & Local Government,DCLG,15/10/2012,Current (non AEF) Grants to Local Authorities,Localism,NUNEATON & BEDWORTH BC,,,,5000213410,Grant Payable by Exchequer,CV11 5AA,"4,873.00",Yes
Communities & Local Government,DCLG,15/10/2012,Current (non AEF) Grants to Local Authorities,Localism,OADBY & WIGSTON BC (HSG),,,,5000213249,Grant Payable by Exchequer,LE8 2DR,"4,873.00",Yes
Communities & Local Government,DCLG,15/10/2012,Current (non AEF) Grants to Local Authorities,Localism,OLDHAM MBC,,,,5000213411,Grant Payable by Exchequer,OL1 1UH,"4,873.00",Yes
Communities & Local Government,DCLG,15/10/2012,Current (non AEF) Grants to Local Authorities,Localism,OXFORD CITY COUNCIL,,,,5000213412,Grant Payable by Exchequer,OX1 1DF,"4,873.00",Yes
Communities & Local Government,DCLG,15/10/2012,Current (non AEF) Grants to Local Authorities,Localism,PENDLE BC,,,,5000213413,Grant Payable by Exchequer,BB9 OLX,"4,873.00",Yes
Communities & Local Government,DCLG,15/10/2012,Current (non AEF) Grants to Local Authorities,Localism,PETERBOROUGH CITY CNCL,,,,5000213414,Grant Payable by Exchequer,PE1 1HG,"4,873.00",Yes
Communities & Local Government,DCLG,15/10/2012,Current (non AEF) Grants to Local Authorities,Localism,PLYMOUTH CITY CNCL,,,,5000213415,Grant Payable by Exchequer,PL1 2AA,"4,873.00",Yes
Communities & Local Government,DCLG,15/10/2012,Current (non AEF) Grants to Local Authorities,Localism,POOLE BC (HSG),,,,5000213250,Grant Payable by Exchequer,BH15 2RU,"4,873.00",Yes
Communities & Local Government,DCLG,15/10/2012,Current (non AEF) Grants to Local Authorities,Localism,PORTSMOUTH CITY COUNCIL,,,,5000213416,Grant Payable by Exchequer,PO1 2AR,"4,873.00",Yes
Communities & Local Government,DCLG,15/10/2012,Current (non AEF) Grants to Local Authorities,Localism,PRESTON BC,,,,5000213417,Grant Payable by Exchequer,PR1 2RL,"4,873.00",Yes
Communities & Local Government,DCLG,15/10/2012,Current (non AEF) Grants to Local Authorities,Localism,PURBECK DC,,,,5000213251,Grant Payable by Exchequer,DT2 8UP,"4,873.00",Yes
Communities & Local Government,DCLG,15/10/2012,Current (non AEF) Grants to Local Authorities,Localism,READING BC,,,,5000213418,Grant Payable by Exchequer,RG1 7TD,"4,873.00",Yes
Communities & Local Government,DCLG,15/10/2012,Current (non AEF) Grants to Local Authorities,Localism,REDCAR & CLEVELAND BOROUGH COUNCIL,,,,5000213420,Grant Payable by Exchequer,TS6 9AR,"4,873.00",Yes
Communities & Local Government,DCLG,15/10/2012,Current (non AEF) Grants to Local Authorities,Localism,REDDITCH BC,,,,5000213421,Grant Payable by Exchequer,B98 8AH,"4,873.00",Yes
Communities & Local Government,DCLG,15/10/2012,Current (non AEF) Grants to Local Authorities,Localism,REIGATE & BANSTEAD BC,,,,5000213422,Grant Payable by Exchequer,RH2 OSH,"4,873.00",Yes
Communities & Local Government,DCLG,15/10/2012,Current (non AEF) Grants to Local Authorities,Localism,RIBBLE VALLEY BC,,,,5000213252,Grant Payable by Exchequer,BB7 2RA,"4,873.00",Yes
Communities & Local Government,DCLG,15/10/2012,Current (non AEF) Grants to Local Authorities,Localism,RICHMOND UPON THAMES LB,,,,5000213423,Grant Payable by Exchequer,TW1 3BZ,"4,873.00",Yes
Communities & Local Government,DCLG,15/10/2012,Current (non AEF) Grants to Local Authorities,Localism,RICHMONDSHIRE DC,,,,5000213253,Grant Payable by Exchequer,DL10 4JE,"4,873.00",Yes
Communities & Local Government,DCLG,15/10/2012,Current (non AEF) Grants to Local Authorities,Localism,ROCHDALE MBC,,,,5000213424,Grant Payable by Exchequer,OL16 1LQ,"4,873.00",Yes
Communities & Local Government,DCLG,15/10/2012,Current (non AEF) Grants to Local Authorities,Localism,ROCHFORD DISTRICT COUNCIL,,,,5000213425,Grant Payable by Exchequer,SS4 1BW,"4,873.00",Yes
Communities & Local Government,DCLG,15/10/2012,Current (non AEF) Grants to Local Authorities,Localism,ROSSENDALE BC,,,,5000213426,Grant Payable by Exchequer,BB4 7LZ,"4,873.00",Yes
Communities & Local Government,DCLG,15/10/2012,Current (non AEF) Grants to Local Authorities,Localism,ROTHER DC (HSG),,,,5000213254,Grant Payable by Exchequer,TN39 3JX,"4,873.00",Yes
Communities & Local Government,DCLG,15/10/2012,Current (non AEF) Grants to Local Authorities,Localism,ROTHERHAM MBC,,,,5000213427,Grant Payable by Exchequer,S60 1AE,"4,873.00",Yes
Communities & Local Government,DCLG,15/10/2012,Current (non AEF) Grants to Local Authorities,Localism,ROYAL BOROUGH OF KENSINGTON & CHELS,,,,5000213385,Grant Payable by Exchequer,W8 7NX,"4,873.00",Yes
Communities & Local Government,DCLG,15/10/2012,Current (non AEF) Grants to Local Authorities,Localism,RUGBY BC,,,,5000213428,Grant Payable by Exchequer,CV21 2LA,"4,873.00",Yes
Communities & Local Government,DCLG,15/10/2012,Current (non AEF) Grants to Local Authorities,Localism,RUNNYMEDE BOROUGH COUNCIL,,,,5000213429,Grant Payable by Exchequer,KT15 2AH,"4,873.00",Yes
Communities & Local Government,DCLG,15/10/2012,Current (non AEF) Grants to Local Authorities,Localism,RUSHCLIFFE BOROUGH COUNCIL,,,,5000213255,Grant Payable by Exchequer,NG2 5FE,"4,873.00",Yes
Communities & Local Government,DCLG,15/10/2012,Current (non AEF) Grants to Local Authorities,Localism,RUSHMOOR BC,,,,5000213430,Grant Payable by Exchequer,GU14 7JU,"4,873.00",Yes
Communities & Local Government,DCLG,15/10/2012,Current (non AEF) Grants to Local Authorities,Localism,RUTLAND CC,,,,5000213431,Grant Payable by Exchequer,LE15 6HP,"4,873.00",Yes
Communities & Local Government,DCLG,15/10/2012,Current (non AEF) Grants to Local Authorities,Localism,RYEDALE DC,,,,5000213256,Grant Payable by Exchequer,YO17 0HH,"4,873.00",Yes
Communities & Local Government,DCLG,15/10/2012,Current (non AEF) Grants to Local Authorities,Localism,SALFORD CITY CNCL,,,,5000213432,Grant Payable by Exchequer,M27 5AW,"4,873.00",Yes
Communities & Local Government,DCLG,15/10/2012,Current (non AEF) Grants to Local Authorities,Localism,SANDWELL MBC,,,,5000213433,Grant Payable by Exchequer,B69 3BS,"4,873.00",Yes
Communities & Local Government,DCLG,15/10/2012,Current (non AEF) Grants to Local Authorities,Localism,SCARBOROUGH BC,,Large,,5000213257,Grant Payable by Exchequer,YO11 2HG,"4,873.00",Yes
Communities & Local Government,DCLG,15/10/2012,Current (non AEF) Grants to Local Authorities,Localism,SEDGEMOOR DC,,,,5000213258,Grant Payable by Exchequer,TA6 3AR,"4,873.00",Yes
Communities & Local Government,DCLG,15/10/2012,Current (non AEF) Grants to Local Authorities,Localism,SEFTON MBC,,,,5000213434,Grant Payable by Exchequer,L20 3NQ,"4,873.00",Yes
Communities & Local Government,DCLG,15/10/2012,Current (non AEF) Grants to Local Authorities,Localism,SELBY DC,,,,5000213259,Grant Payable by Exchequer,YO8 0SA,"4,873.00",Yes
Communities & Local Government,DCLG,15/10/2012,Current (non AEF) Grants to Local Authorities,Localism,SEVENOAKS DC,,,,5000213260,Grant Payable by Exchequer,TN13 1HG,"4,873.00",Yes
Communities & Local Government,DCLG,15/10/2012,Current (non AEF) Grants to Local Authorities,Localism,SHEFFIELD CITY CNCL,,,,5000213435,Grant Payable by Exchequer,S1 1UR,"4,873.00",Yes
Communities & Local Government,DCLG,15/10/2012,Current (non AEF) Grants to Local Authorities,Localism,SHEPWAY DISTRICT COUNCIL,,,,5000213261,Grant Payable by Exchequer,CT20 2QY,"4,873.00",Yes
Communities & Local Government,DCLG,15/10/2012,Current (non AEF) Grants to Local Authorities,Localism,SHROPSHIRE UNITARY AUTHORITY,,,,5000213488,Grant Payable by Exchequer,SY2 6ND,"4,873.00",Yes
Communities & Local Government,DCLG,15/10/2012,Current (non AEF) Grants to Local Authorities,Localism,SLOUGH BOROUGH COUNCIL,,,,5000213436,Grant Payable by Exchequer,SL1 3UQ,"4,873.00",Yes
Communities & Local Government,DCLG,15/10/2012,Current (non AEF) Grants to Local Authorities,Localism,SOLIHULL MBC,,,,5000213437,Grant Payable by Exchequer,B91 3QR,"4,873.00",Yes
Communities & Local Government,DCLG,15/10/2012,Current (non AEF) Grants to Local Authorities,Localism,SOUTH BUCKS DC (HSG),,,,5000213262,Grant Payable by Exchequer,UB9 4LH,"4,873.00",Yes
Communities & Local Government,DCLG,15/10/2012,Current (non AEF) Grants to Local Authorities,Localism,SOUTH CAMBRIDGESHIRE DC,,,,5000213263,Grant Payable by Exchequer,CB23 6EA,"4,873.00",Yes
Communities & Local Government,DCLG,15/10/2012,Current (non AEF) Grants to Local Authorities,Localism,SOUTH DERBYSHIRE D C,,,,5000213264,Grant Payable by Exchequer,DE11 0AH,"4,873.00",Yes
Communities & Local Government,DCLG,15/10/2012,Current (non AEF) Grants to Local Authorities,Localism,SOUTH GLOUCESTERSHIRE DC (HSG),,,,5000213265,Grant Payable by Exchequer,BS15 2TR,"4,873.00",Yes
Communities & Local Government,DCLG,15/10/2012,Current (non AEF) Grants to Local Authorities,Localism,SOUTH HAMS DC,,,,5000213266,Grant Payable by Exchequer,TQ9 5NE,"4,873.00",Yes
Communities & Local Government,DCLG,15/10/2012,Current (non AEF) Grants to Local Authorities,Localism,SOUTH HOLLAND,,,,5000213267,Grant Payable by Exchequer,PE11 2XE,"4,873.00",Yes
Communities & Local Government,DCLG,15/10/2012,Current (non AEF) Grants to Local Authorities,Localism,SOUTH KESTEVEN DC (HSG),,,,5000213268,Grant Payable by Exchequer,NG31 6PZ,"4,873.00",Yes
Communities & Local Government,DCLG,15/10/2012,Current (non AEF) Grants to Local Authorities,Localism,SOUTH LAKELAND DC,,,,5000213269,Grant Payable by Exchequer,LA49 4DQ,"4,873.00",Yes
Communities & Local Government,DCLG,15/10/2012,Current (non AEF) Grants to Local Authorities,Localism,SOUTH NORFOLK DC,,,,5000213270,Grant Payable by Exchequer,NR15 2XE,"4,873.00",Yes
Communities & Local Government,DCLG,15/10/2012,Current (non AEF) Grants to Local Authorities,Localism,SOUTH NORTHAMPTONSHIRE DC,,,,5000213271,Grant Payable by Exchequer,NN12 7AE,"4,873.00",Yes
Communities & Local Government,DCLG,15/10/2012,Current (non AEF) Grants to Local Authorities,Localism,SOUTH OXFORDSHIRE DC,,,,5000213272,Grant Payable by Exchequer,OX10 8HQ,"4,873.00",Yes
Communities & Local Government,DCLG,15/10/2012,Current (non AEF) Grants to Local Authorities,Localism,SOUTH RIBBLE BC,,,,5000213438,Grant Payable by Exchequer,PR5 1DH,"4,873.00",Yes
Communities & Local Government,DCLG,15/10/2012,Current (non AEF) Grants to Local Authorities,Localism,SOUTH SOMERSET DC,,,,5000213273,Grant Payable by Exchequer,BA20 2DS,"4,873.00",Yes
Communities & Local Government,DCLG,15/10/2012,Current (non AEF) Grants to Local Authorities,Localism,SOUTH STAFFORDSHIRE DC,,,,5000213274,Grant Payable by Exchequer,WV8 1PX,"4,873.00",Yes
Communities & Local Government,DCLG,15/10/2012,Current (non AEF) Grants to Local Authorities,Localism,SOUTH TYNESIDE COUNCIL,,,,5000213439,Grant Payable by Exchequer,NE33 2RL,"4,873.00",Yes
Communities & Local Government,DCLG,15/10/2012,Current (non AEF) Grants to Local Authorities,Localism,SOUTHAMPTON CITY CNCL,,,,5000213440,Grant Payable by Exchequer,SO14 7LF,"4,873.00",Yes
Communities & Local Government,DCLG,15/10/2012,Current (non AEF) Grants to Local Authorities,Localism,SOUTHEND ON SEA BC,,,,5000213441,Grant Payable by Exchequer,SS2 6EP,"4,873.00",Yes
Communities & Local Government,DCLG,15/10/2012,Current (non AEF) Grants to Local Authorities,Localism,SOUTHWARK LB,,,,5000213442,Grant Payable by Exchequer,SE1 2QH,"4,873.00",Yes
Communities & Local Government,DCLG,15/10/2012,Current (non AEF) Grants to Local Authorities,Localism,SPELTHORNE DC,,,,5000213275,Grant Payable by Exchequer,TW18 1XB,"4,873.00",Yes
Communities & Local Government,DCLG,15/10/2012,Current (non AEF) Grants to Local Authorities,Localism,ST ALBANS CITY COUNCIL,,,,5000213443,Grant Payable by Exchequer,AL1 3JE,"4,873.00",Yes
Communities & Local Government,DCLG,15/10/2012,Current (non AEF) Grants to Local Authorities,Localism,ST EDMUNDSBURY (HSG),,,,5000213276,Grant Payable by Exchequer,IP33 3YS,"4,873.00",Yes
Communities & Local Government,DCLG,15/10/2012,Current (non AEF) Grants to Local Authorities,Localism,ST HELENS MBC,,,,5000213444,Grant Payable by Exchequer,WA10 1HP,"4,873.00",Yes
Communities & Local Government,DCLG,15/10/2012,Current (non AEF) Grants to Local Authorities,Localism,STAFFORD BC,,,,5000213445,Grant Payable by Exchequer,ST16 3AQ,"4,873.00",Yes
Communities & Local Government,DCLG,15/10/2012,Current (non AEF) Grants to Local Authorities,Localism,STAFFORDSHIRE MOORLANDS DC,,,,5000213277,Grant Payable by Exchequer,ST13 6HQ,"4,873.00",Yes
Communities & Local Government,DCLG,15/10/2012,Current (non AEF) Grants to Local Authorities,Localism,STEVENAGE BC,,,,5000213446,Grant Payable by Exchequer,SG1 1HN,"4,873.00",Yes
Communities & Local Government,DCLG,15/10/2012,Current (non AEF) Grants to Local Authorities,Localism,STOCKPORT MBC,,,,5000213447,Grant Payable by Exchequer,SK1 3XE,"4,873.00",Yes
Communities & Local Government,DCLG,15/10/2012,Current (non AEF) Grants to Local Authorities,Localism,STOCKTON-ON-TEES BC (HSG),,,,5000213278,Grant Payable by Exchequer,TS23 2YS,"4,873.00",Yes
Communities & Local Government,DCLG,15/10/2012,Current (non AEF) Grants to Local Authorities,Localism,STOKE ON TRENT CITY COUNCIL,,,,5000213448,Grant Payable by Exchequer,ST4 1RJ,"4,873.00",Yes
Communities & Local Government,DCLG,15/10/2012,Current (non AEF) Grants to Local Authorities,Localism,STRATFORD ON AVON DC,,,,5000213449,Grant Payable by Exchequer,CV37 6HX,"4,873.00",Yes
Communities & Local Government,DCLG,15/10/2012,Current (non AEF) Grants to Local Authorities,Localism,STROUD DC (HSG),,,,5000213279,Grant Payable by Exchequer,GL5 4UB,"4,873.00",Yes
Communities & Local Government,DCLG,15/10/2012,Current (non AEF) Grants to Local Authorities,Localism,SUFFOLK COASTAL DC (HSG),,,,5000213280,Grant Payable by Exchequer,IP12 1AU,"4,873.00",Yes
Communities & Local Government,DCLG,15/10/2012,Current (non AEF) Grants to Local Authorities,Localism,SURREY HEATH BC,,,,5000213450,Grant Payable by Exchequer,GU15 3HD,"4,873.00",Yes
Communities & Local Government,DCLG,15/10/2012,Current (non AEF) Grants to Local Authorities,Localism,SUTTON LB,,,,5000213451,Grant Payable by Exchequer,SM1 1EA,"4,873.00",Yes
Communities & Local Government,DCLG,15/10/2012,Current (non AEF) Grants to Local Authorities,Localism,SWALE BC,,,,5000213452,Grant Payable by Exchequer,ME10 3HT,"4,873.00",Yes
Communities & Local Government,DCLG,15/10/2012,Current (non AEF) Grants to Local Authorities,Localism,SWINDON BC,,,,5000213453,Grant Payable by Exchequer,SN1 2JH,"4,873.00",Yes
Communities & Local Government,DCLG,15/10/2012,Current (non AEF) Grants to Local Authorities,Localism,TAMESIDE MBC,,,,5000213454,Grant Payable by Exchequer,OL6 6DL,"4,873.00",Yes
Communities & Local Government,DCLG,15/10/2012,Current (non AEF) Grants to Local Authorities,Localism,TAMWORTH BOROUGH COUNCIL,,,,5000213455,Grant Payable by Exchequer,B79 7BZ,"4,873.00",Yes
Communities & Local Government,DCLG,15/10/2012,Current (non AEF) Grants to Local Authorities,Localism,TANDRIDGE DC,,,,5000213281,Grant Payable by Exchequer,RH8 0BT,"4,873.00",Yes
Communities & Local Government,DCLG,15/10/2012,Current (non AEF) Grants to Local Authorities,Localism,TAUNTON DEANE BC,,,,5000213282,Grant Payable by Exchequer,TA1 1HE,"4,873.00",Yes
Communities & Local Government,DCLG,15/10/2012,Current (non AEF) Grants to Local Authorities,Localism,TEIGNBRIDGE DC,,,,5000213283,Grant Payable by Exchequer,TQ12 4XX,"4,873.00",Yes
Communities & Local Government,DCLG,15/10/2012,Current (non AEF) Grants to Local Authorities,Localism,TELFORD & WREKIN DC,,,,5000213456,Grant Payable by Exchequer,TF3 4LF,"4,873.00",Yes
Communities & Local Government,DCLG,15/10/2012,Current (non AEF) Grants to Local Authorities,Localism,TENDRING DC,,,,5000213284,Grant Payable by Exchequer,CO15 1SE,"4,873.00",Yes
Communities & Local Government,DCLG,15/10/2012,Current (non AEF) Grants to Local Authorities,Localism,TEST VALLEY BC,,,,5000213285,Grant Payable by Exchequer,SP10 3AJ,"4,873.00",Yes
Communities & Local Government,DCLG,15/10/2012,Current (non AEF) Grants to Local Authorities,Localism,TEWKESBURY BC,,,,5000213286,Grant Payable by Exchequer,GL20 5TT,"4,873.00",Yes
Communities & Local Government,DCLG,15/10/2012,Current (non AEF) Grants to Local Authorities,Localism,THANET DC,,,,5000213287,Grant Payable by Exchequer,CT8 1XZ,"4,873.00",Yes
Communities & Local Government,DCLG,15/10/2012,Current (non AEF) Grants to Local Authorities,Localism,THREE RIVERS DC,,,,5000213457,Grant Payable by Exchequer,WD3 1RL,"4,873.00",Yes
Communities & Local Government,DCLG,15/10/2012,Current (non AEF) Grants to Local Authorities,Localism,THURROCK  BOROUGH COUNCIL,,,,5000213458,Grant Payable by Exchequer,RM17 6LT,"4,873.00",Yes
Communities & Local Government,DCLG,15/10/2012,Current (non AEF) Grants to Local Authorities,Localism,TONBRIDGE & MALLING BC,,,,5000213288,Grant Payable by Exchequer,ME19 6LZ,"4,873.00",Yes
Communities & Local Government,DCLG,15/10/2012,Current (non AEF) Grants to Local Authorities,Localism,TORBAY BC,,,,5000213459,Grant Payable by Exchequer,TQ1 3DR,"4,873.00",Yes
Communities & Local Government,DCLG,15/10/2012,Current (non AEF) Grants to Local Authorities,Localism,TORRIDGE DC,,,,5000213289,Grant Payable by Exchequer,EX39 2HT,"4,873.00",Yes
Communities & Local Government,DCLG,15/10/2012,Current (non AEF) Grants to Local Authorities,Localism,TOWER HAMLETS LB (HSG),,,,5000213290,Grant Payable by Exchequer,E14 2BG,"4,873.00",Yes
Communities & Local Government,DCLG,15/10/2012,Current (non AEF) Grants to Local Authorities,Localism,TRAFFORD MBC,,,,5000213460,Grant Payable by Exchequer,M32 0YY,"4,873.00",Yes
Communities & Local Government,DCLG,15/10/2012,Current (non AEF) Grants to Local Authorities,Localism,TUNBRIDGE WELLS BC,,,,5000213291,Grant Payable by Exchequer,TN1 1RS,"4,873.00",Yes
Communities & Local Government,DCLG,15/10/2012,Current (non AEF) Grants to Local Authorities,Localism,UTTLESFORD DC,,,,5000213292,Grant Payable by Exchequer,CB11 4ER,"4,873.00",Yes
Communities & Local Government,DCLG,15/10/2012,Current (non AEF) Grants to Local Authorities,Localism,VALE OF WHITE HORSE DC,,,,5000213293,Grant Payable by Exchequer,OX14 3JH,"4,873.00",Yes
Communities & Local Government,DCLG,15/10/2012,Current (non AEF) Grants to Local Authorities,Localism,WALSALL MBC,,,,5000213462,Grant Payable by Exchequer,WS1 1TW,"4,873.00",Yes
Communities & Local Government,DCLG,15/10/2012,Current (non AEF) Grants to Local Authorities,Localism,WALTHAM FOREST LB,,,,5000213463,Grant Payable by Exchequer,E17 4JA,"4,873.00",Yes
Communities & Local Government,DCLG,15/10/2012,Current (non AEF) Grants to Local Authorities,Localism,WANDSWORTH LB,,,,5000213464,Grant Payable by Exchequer,SW18 2PU,"4,873.00",Yes
Communities & Local Government,DCLG,15/10/2012,Current (non AEF) Grants to Local Authorities,Localism,WARRINGTON BC,,,,5000213465,Grant Payable by Exchequer,WA1 1BN,"4,873.00",Yes
Communities & Local Government,DCLG,15/10/2012,Current (non AEF) Grants to Local Authorities,Localism,WARWICK,,,,5000213466,Grant Payable by Exchequer,CV32 4NW,"4,873.00",Yes
Communities & Local Government,DCLG,15/10/2012,Current (non AEF) Grants to Local Authorities,Localism,WATFORD COUNCIL,,,,5000213467,Grant Payable by Exchequer,WD17 3EX,"4,873.00",Yes
Communities & Local Government,DCLG,15/10/2012,Current (non AEF) Grants to Local Authorities,Localism,WAVENEY DISTRICT COUNCIL,,Large,,5000213294,Grant Payable by Exchequer,NR32 1HS,"4,873.00",Yes
Communities & Local Government,DCLG,15/10/2012,Current (non AEF) Grants to Local Authorities,Localism,WAVERLEY BC V177,,,,5000213295,Grant Payable by Exchequer,GU7 1HR,"4,873.00",Yes
Communities & Local Government,DCLG,15/10/2012,Current (non AEF) Grants to Local Authorities,Localism,WEALDEN DC,,,,5000213296,Grant Payable by Exchequer,BN22 9LN,"4,873.00",Yes
Communities & Local Government,DCLG,15/10/2012,Current (non AEF) Grants to Local Authorities,Localism,WELLINGBOROUGH,,,,5000213468,Grant Payable by Exchequer,NN8 1BN,"4,873.00",Yes
Communities & Local Government,DCLG,15/10/2012,Current (non AEF) Grants to Local Authorities,Localism,WELWYN HATFIELD COUNCIL,,,,5000213297,Grant Payable by Exchequer,AL8 6AE,"4,873.00",Yes
Communities & Local Government,DCLG,15/10/2012,Current (non AEF) Grants to Local Authorities,Localism,WEST BERKSHIRE COUNCIL,,,,5000213469,Grant Payable by Exchequer,RG14 2AF,"4,873.00",Yes
Communities & Local Government,DCLG,15/10/2012,Current (non AEF) Grants to Local Authorities,Localism,WEST DEVON BC,,,,5000213298,Grant Payable by Exchequer,PL19 0BZ,"4,873.00",Yes
Communities & Local Government,DCLG,15/10/2012,Current (non AEF) Grants to Local Authorities,Localism,WEST DORSET DC,,,,5000213299,Grant Payable by Exchequer,DT1 1UZ,"4,873.00",Yes
Communities & Local Government,DCLG,15/10/2012,Current (non AEF) Grants to Local Authorities,Localism,WEST LANCASHIRE BC,,,,5000213470,Grant Payable by Exchequer,L39 2DF,"4,873.00",Yes
Communities & Local Government,DCLG,15/10/2012,Current (non AEF) Grants to Local Authorities,Localism,WEST LINDSEY DC,,,,5000213300,Grant Payable by Exchequer,DN21 2NA,"4,873.00",Yes
Communities & Local Government,DCLG,15/10/2012,Current (non AEF) Grants to Local Authorities,Localism,WEST OXFORDSHIRE DC,,,,5000213301,Grant Payable by Exchequer,OX28 1NB,"4,873.00",Yes
Communities & Local Government,DCLG,15/10/2012,Current (non AEF) Grants to Local Authorities,Localism,WEST SOMERSET DC,,,,5000213302,Grant Payable by Exchequer,TA4 4QA,"4,873.00",Yes
Communities & Local Government,DCLG,15/10/2012,Current (non AEF) Grants to Local Authorities,Localism,WESTMINSTER CITY CNCL,,,,5000213471,Grant Payable by Exchequer,SW1E 6QP,"4,873.00",Yes
Communities & Local Government,DCLG,15/10/2012,Current (non AEF) Grants to Local Authorities,Localism,WEYMOUTH & PORTLAND BC,,,,5000213472,Grant Payable by Exchequer,DT4 8TA,"4,873.00",Yes
Communities & Local Government,DCLG,15/10/2012,Current (non AEF) Grants to Local Authorities,Localism,WIGAN MBC,,,,5000213473,Grant Payable by Exchequer,WN1 1YD,"4,873.00",Yes
Communities & Local Government,DCLG,15/10/2012,Current (non AEF) Grants to Local Authorities,Localism,WILTSHIRE COUNCIL,,,,5000213482,Grant Payable by Exchequer,BA14 8JN,"4,873.00",Yes
Communities & Local Government,DCLG,15/10/2012,Current (non AEF) Grants to Local Authorities,Localism,WINCHESTER CITY CNCL,,,,5000213303,Grant Payable by Exchequer,SO23 9LJ,"4,873.00",Yes
Communities & Local Government,DCLG,15/10/2012,Current (non AEF) Grants to Local Authorities,Localism,WINDSOR & MAIDENHEAD (HSG),,,,5000213304,Grant Payable by Exchequer,SL6 1RF,"4,873.00",Yes
Communities & Local Government,DCLG,15/10/2012,Current (non AEF) Grants to Local Authorities,Localism,WIRRAL MBC,,,,5000213474,Grant Payable by Exchequer,CH41 6BU,"4,873.00",Yes
Communities & Local Government,DCLG,15/10/2012,Current (non AEF) Grants to Local Authorities,Localism,WOKING BC,,,,5000213475,Grant Payable by Exchequer,GU21 1YL,"4,873.00",Yes
Communities & Local Government,DCLG,15/10/2012,Current (non AEF) Grants to Local Authorities,Localism,WOKINGHAM DC,,,,5000213476,Grant Payable by Exchequer,RG11 1WJ,"4,873.00",Yes
Communities & Local Government,DCLG,15/10/2012,Current (non AEF) Grants to Local Authorities,Localism,WOLVERHAMPTON MBC,,,,5000213477,Grant Payable by Exchequer,WV1 1RL,"4,873.00",Yes
Communities & Local Government,DCLG,15/10/2012,Current (non AEF) Grants to Local Authorities,Localism,WORCESTER CITY CNCL,,,,5000213478,Grant Payable by Exchequer,WR1 2EZ,"4,873.00",Yes
Communities & Local Government,DCLG,15/10/2012,Current (non AEF) Grants to Local Authorities,Localism,WORTHING BC,,,,5000213479,Grant Payable by Exchequer,BN11 1HB,"4,873.00",Yes
Communities & Local Government,DCLG,15/10/2012,Current (non AEF) Grants to Local Authorities,Localism,WYCHAVON DISTRICT COUNCIL,,,,5000213305,Grant Payable by Exchequer,WR10 1PT,"4,873.00",Yes
Communities & Local Government,DCLG,15/10/2012,Current (non AEF) Grants to Local Authorities,Localism,WYCOMBE DC,,Medium,,5000213306,Grant Payable by Exchequer,HP11 1BB,"4,873.00",Yes
Communities & Local Government,DCLG,15/10/2012,Current (non AEF) Grants to Local Authorities,Localism,WYRE BC,,,,5000213307,Grant Payable by Exchequer,FY6 7PU,"4,873.00",Yes
Communities & Local Government,DCLG,15/10/2012,Current (non AEF) Grants to Local Authorities,Localism,WYRE FOREST DISTRICT COUNCIL,,,,5000213480,Grant Payable by Exchequer,DY10 1DA,"4,873.00",Yes
Communities & Local Government,DCLG,15/10/2012,Current (non AEF) Grants to Local Authorities,Localism,YORK CITY CNCL,,,,5000213481,Grant Payable by Exchequer,YO1 0EG,"4,873.00",Yes
Communities & Local Government,DCLG,15/10/2012,Current (non AEF) Grants to Local Authorities,Neighbourhoods,ADUR DC,,,,5000212534,Grant Payable by Exchequer,BN11 1HB,"16,444.00",Yes
Communities & Local Government,DCLG,15/10/2012,Current (non AEF) Grants to Local Authorities,Neighbourhoods,ALLERDALE BC,,,,5000212535,Grant Payable by Exchequer,CA14 2RS,"7,669.00",Yes
Communities & Local Government,DCLG,15/10/2012,Current (non AEF) Grants to Local Authorities,Neighbourhoods,AMBER VALLEY BC,,,,5000212536,Grant Payable by Exchequer,DE5 3WZ,"40,511.00",Yes
Communities & Local Government,DCLG,15/10/2012,Current (non AEF) Grants to Local Authorities,Neighbourhoods,ARUN DC,,,,5000212390,Grant Payable by Exchequer,BN17 5LF,"81,529.00",Yes
Communities & Local Government,DCLG,15/10/2012,Current (non AEF) Grants to Local Authorities,Neighbourhoods,ASHFIELD DC,,,,5000212537,Grant Payable by Exchequer,NG17 8DA,"69,247.00",Yes
Communities & Local Government,DCLG,15/10/2012,Current (non AEF) Grants to Local Authorities,Neighbourhoods,ASHFORD BC,,,,5000212391,Grant Payable by Exchequer,TN23 1PL,"110,093.00",Yes
Communities & Local Government,DCLG,15/10/2012,Current (non AEF) Grants to Local Authorities,Neighbourhoods,AYLESBURY VALE DC(HSG),,,,5000212392,Grant Payable by Exchequer,HP20 1SD,"134,069.00",Yes
Communities & Local Government,DCLG,15/10/2012,Current (non AEF) Grants to Local Authorities,Neighbourhoods,BABERGH DC,,,,5000212393,Grant Payable by Exchequer,IP7 6SJ,"48,216.00",Yes
Communities & Local Government,DCLG,15/10/2012,Current (non AEF) Grants to Local Authorities,Neighbourhoods,BARKING & DAGENHAM LB (HSG),,,,5000212394,Grant Payable by Exchequer,RM10 7BY,"112,483.00",Yes
Communities & Local Government,DCLG,15/10/2012,Current (non AEF) Grants to Local Authorities,Neighbourhoods,BARNET LBC,,,,5000212538,Grant Payable by Exchequer,NW4 4BG,"239,726.00",Yes
Communities & Local Government,DCLG,15/10/2012,Current (non AEF) Grants to Local Authorities,Neighbourhoods,BARNSLEY MBC,,,,5000212539,Grant Payable by Exchequer,S70 2AQ,"158,553.00",Yes
Communities & Local Government,DCLG,15/10/2012,Current (non AEF) Grants to Local Authorities,Neighbourhoods,BARROW BC,,,,5000212540,Grant Payable by Exchequer,LA14 2LD,"13,418.00",Yes
Communities & Local Government,DCLG,15/10/2012,Current (non AEF) Grants to Local Authorities,Neighbourhoods,BASILDON BOROUGH COUNCIL,,,,5000212541,Grant Payable by Exchequer,SS14 0DF,"55,090.00",Yes
Communities & Local Government,DCLG,15/10/2012,Current (non AEF) Grants to Local Authorities,Neighbourhoods,BASINGSTOKE & DEANE BC,,,,5000212542,Grant Payable by Exchequer,RG21 2AJ,"198,716.00",Yes
Communities & Local Government,DCLG,15/10/2012,Current (non AEF) Grants to Local Authorities,Neighbourhoods,BASSETLAW DC (HSG),,,,5000212395,Grant Payable by Exchequer,S80 2AH,"41,898.00",Yes
Communities & Local Government,DCLG,15/10/2012,Current (non AEF) Grants to Local Authorities,Neighbourhoods,BATH & NE SOMERSET DC (HSG),,,,5000212396,Grant Payable by Exchequer,BA1 5AW,"93,285.00",Yes
Communities & Local Government,DCLG,15/10/2012,Current (non AEF) Grants to Local Authorities,Neighbourhoods,BEDFORD UNITARY AUTHORITY,,,,5000212739,Grant Payable by Exchequer,MK40 1SJ,"202,174.00",Yes
Communities & Local Government,DCLG,15/10/2012,Current (non AEF) Grants to Local Authorities,Neighbourhoods,BEXLEY LB (HSG),,,,5000212397,Grant Payable by Exchequer,DA8 1TL,"53,403.00",Yes
Communities & Local Government,DCLG,15/10/2012,Current (non AEF) Grants to Local Authorities,Neighbourhoods,BIRMINGHAM CITY CNCL,,,,5000212543,Grant Payable by Exchequer,B3 3AB,"567,903.00",Yes
Communities & Local Government,DCLG,15/10/2012,Current (non AEF) Grants to Local Authorities,Neighbourhoods,BLABY DC (HSG),,,,5000212398,Grant Payable by Exchequer,LE9 5EP,"31,154.00",Yes
Communities & Local Government,DCLG,15/10/2012,Current (non AEF) Grants to Local Authorities,Neighbourhoods,BLACKBURN WITH DARWEN BC,,,,5000212544,Grant Payable by Exchequer,BB1 7DY,"24,775.00",Yes
Communities & Local Government,DCLG,15/10/2012,Current (non AEF) Grants to Local Authorities,Neighbourhoods,BLACKPOOL BC,,,,5000212545,Grant Payable by Exchequer,FY1 1NA,"78,987.00",Yes
Communities & Local Government,DCLG,15/10/2012,Current (non AEF) Grants to Local Authorities,Neighbourhoods,BOLSOVER DC,,,,5000212546,Grant Payable by Exchequer,S44 6NF,"23,789.00",Yes
Communities & Local Government,DCLG,15/10/2012,Current (non AEF) Grants to Local Authorities,Neighbourhoods,BOLTON MBC,,,,5000212547,Grant Payable by Exchequer,BL1 1RU,"129,254.00",Yes
Communities & Local Government,DCLG,15/10/2012,Current (non AEF) Grants to Local Authorities,Neighbourhoods,BOSTON BC,,,,5000212399,Grant Payable by Exchequer,PE21 8QR,"32,158.00",Yes
Communities & Local Government,DCLG,15/10/2012,Current (non AEF) Grants to Local Authorities,Neighbourhoods,BOURNEMOUTH DC,,,,5000212548,Grant Payable by Exchequer,BH2 6EB,"142,561.00",Yes
Communities & Local Government,DCLG,15/10/2012,Current (non AEF) Grants to Local Authorities,Neighbourhoods,BRACKNELL FOREST DC,,,,5000212549,Grant Payable by Exchequer,RG12 1AQ,"109,842.00",Yes
Communities & Local Government,DCLG,15/10/2012,Current (non AEF) Grants to Local Authorities,Neighbourhoods,BRADFORD MBC,,,,5000212550,Grant Payable by Exchequer,BD1 1HX,"299,420.00",Yes
Communities & Local Government,DCLG,15/10/2012,Current (non AEF) Grants to Local Authorities,Neighbourhoods,BRAINTREE DC,,,,5000212400,Grant Payable by Exchequer,CM7 6HB,"75,171.00",Yes
Communities & Local Government,DCLG,15/10/2012,Current (non AEF) Grants to Local Authorities,Neighbourhoods,BRECKLAND DC,,,,5000212401,Grant Payable by Exchequer,NR19 1EE,"66,794.00",Yes
Communities & Local Government,DCLG,15/10/2012,Current (non AEF) Grants to Local Authorities,Neighbourhoods,BRENT LB (HSG),,,,5000212402,Grant Payable by Exchequer,HA9 9HD,"213,931.00",Yes
Communities & Local Government,DCLG,15/10/2012,Current (non AEF) Grants to Local Authorities,Neighbourhoods,BRENTWOOD BC,,,,5000212551,Grant Payable by Exchequer,CM15 8AY,"35,928.00",Yes
Communities & Local Government,DCLG,15/10/2012,Current (non AEF) Grants to Local Authorities,Neighbourhoods,BRIGHTON & HOVE CITY COUNCIL,,,,5000212552,Grant Payable by Exchequer,BN3 2SR,"78,149.00",Yes
Communities & Local Government,DCLG,15/10/2012,Current (non AEF) Grants to Local Authorities,Neighbourhoods,BRISTOL CITY CNCL (HSG),,,,5000212403,Grant Payable by Exchequer,BS99 7BL,"374,625.00",Yes
Communities & Local Government,DCLG,15/10/2012,Current (non AEF) Grants to Local Authorities,Neighbourhoods,BROADLAND DC,,Large,,5000212404,Grant Payable by Exchequer,NR7 0DU,"34,057.00",Yes
Communities & Local Government,DCLG,15/10/2012,Current (non AEF) Grants to Local Authorities,Neighbourhoods,BROMLEY LB,,,,5000212553,Grant Payable by Exchequer,BR1 3UH,"155,096.00",Yes
Communities & Local Government,DCLG,15/10/2012,Current (non AEF) Grants to Local Authorities,Neighbourhoods,BROMSGROVE DC,,,,5000212405,Grant Payable by Exchequer,B60 1AA,"27,996.00",Yes
Communities & Local Government,DCLG,15/10/2012,Current (non AEF) Grants to Local Authorities,Neighbourhoods,BROXBOURNE BC,,Public Bodies,,5000212554,Grant Payable by Exchequer,EN8 9XG,"48,017.00",Yes
Communities & Local Government,DCLG,15/10/2012,Current (non AEF) Grants to Local Authorities,Neighbourhoods,BROXTOWE BC,,,,5000212555,Grant Payable by Exchequer,NG9 1AB,"30,813.00",Yes
Communities & Local Government,DCLG,15/10/2012,Current (non AEF) Grants to Local Authorities,Neighbourhoods,BUCKINGHAMSHIRE CC,,,,5000212556,Grant Payable by Exchequer,HP20 1UD,"78,109.00",Yes
Communities & Local Government,DCLG,15/10/2012,Current (non AEF) Grants to Local Authorities,Neighbourhoods,BURNLEY BC,,,,5000212557,Grant Payable by Exchequer,BB11 1JA,"6,390.00",Yes
Communities & Local Government,DCLG,15/10/2012,Current (non AEF) Grants to Local Authorities,Neighbourhoods,CALDERDALE MBC,,,,5000212559,Grant Payable by Exchequer,HX1 1YP,"131,991.00",Yes
Communities & Local Government,DCLG,15/10/2012,Current (non AEF) Grants to Local Authorities,Neighbourhoods,CAMBRIDGE CITY COUNCIL,,,,5000212560,Grant Payable by Exchequer,CB2 3NA,"116,515.00",Yes
Communities & Local Government,DCLG,15/10/2012,Current (non AEF) Grants to Local Authorities,Neighbourhoods,CAMBRIDGESHIRE COUNTY CNCL,,,,5000212561,Grant Payable by Exchequer,CB3 0AP,"125,328.00",Yes
Communities & Local Government,DCLG,15/10/2012,Current (non AEF) Grants to Local Authorities,Neighbourhoods,CAMDEN LB,,,,5000212562,Grant Payable by Exchequer,WC1H 8NG,"221,812.00",Yes
Communities & Local Government,DCLG,15/10/2012,Current (non AEF) Grants to Local Authorities,Neighbourhoods,CANNOCK CHASE DC,,,,5000212563,Grant Payable by Exchequer,WS11 1BG,"44,734.00",Yes
Communities & Local Government,DCLG,15/10/2012,Current (non AEF) Grants to Local Authorities,Neighbourhoods,CANTERBURY CITY CNCL,,,,5000212406,Grant Payable by Exchequer,CT1 1YW,"69,663.00",Yes
Communities & Local Government,DCLG,15/10/2012,Current (non AEF) Grants to Local Authorities,Neighbourhoods,CARLISLE CITY CNCL,,,,5000212407,Grant Payable by Exchequer,CA3 8QG,"49,923.00",Yes
Communities & Local Government,DCLG,15/10/2012,Current (non AEF) Grants to Local Authorities,Neighbourhoods,CASTLE POINT BC,,,,5000212564,Grant Payable by Exchequer,SS7 1TF,"30,414.00",Yes
Communities & Local Government,DCLG,15/10/2012,Current (non AEF) Grants to Local Authorities,Neighbourhoods,CENTRAL BEDFORDSHIRE COUNCIL,,,,5000212736,Grant Payable by Exchequer,SG17 5TQ,"222,325.00",Yes
Communities & Local Government,DCLG,15/10/2012,Current (non AEF) Grants to Local Authorities,Neighbourhoods,CHARNWOOD BC,,,,5000212565,Grant Payable by Exchequer,LE11 2TU,"100,805.00",Yes
Communities & Local Government,DCLG,15/10/2012,Current (non AEF) Grants to Local Authorities,Neighbourhoods,CHELMSFORD BC,,,,5000212566,Grant Payable by Exchequer,CM1 1JE,"54,680.00",Yes
Communities & Local Government,DCLG,15/10/2012,Current (non AEF) Grants to Local Authorities,Neighbourhoods,CHELTENHAM BC,,,,5000212567,Grant Payable by Exchequer,GL50 1PW,"44,687.00",Yes
Communities & Local Government,DCLG,15/10/2012,Current (non AEF) Grants to Local Authorities,Neighbourhoods,CHERWELL DC,,,,5000212408,Grant Payable by Exchequer,OX15 4AA,"53,849.00",Yes
